﻿Body,Body Name,Clearing Date,Document No,Amount in £,Vendor Name ,Vendor No,Expense Area,G/L Account Text,G/L Acc No
http://statistics.data.gov.uk/doc/local-authority/00CC,BarnsleyMBC,11/07/2022,5100325868,571.31,ABILITY HANDLING LTD,509490,BH,Plant hire,320002
http://statistics.data.gov.uk/doc/local-authority/00CC,BarnsleyMBC,09/08/2022,5100326836,571.31,ABILITY HANDLING LTD,509490,BH,Plant hire,320002
http://statistics.data.gov.uk/doc/local-authority/00CC,BarnsleyMBC,09/08/2022,5100326837,-571.31,ABILITY HANDLING LTD,509490,BH,Plant hire,320002
http://statistics.data.gov.uk/doc/local-authority/00CC,BarnsleyMBC,10/08/2022,5100326838,571.31,ABILITY HANDLING LTD,509490,BH,Plant hire,320002
http://statistics.data.gov.uk/doc/local-authority/00CC,BarnsleyMBC,07/09/2022,5100327744,571.31,ABILITY HANDLING LTD,509490,BH,Plant hire,320002
http://statistics.data.gov.uk/doc/local-authority/00CC,BarnsleyMBC,22/09/2022,5100328157,571.31,ABILITY HANDLING LTD,509490,BH,Plant hire,320002
http://statistics.data.gov.uk/doc/local-authority/00CC,BarnsleyMBC,01/07/2022,5100325501,605.15,ADRIAN WELCH GLASS & GLAZING LTD,508511,BH,Direct - Building Items,403013
http://statistics.data.gov.uk/doc/local-authority/00CC,BarnsleyMBC,02/08/2022,5100326522,507.25,ADRIAN WELCH GLASS & GLAZING LTD,508511,BH,Direct - Building Items,403013
http://statistics.data.gov.uk/doc/local-authority/00CC,BarnsleyMBC,08/08/2022,5100326733,524.02,ADRIAN WELCH GLASS & GLAZING LTD,508511,BH,Direct - Building Items,403013
http://statistics.data.gov.uk/doc/local-authority/00CC,BarnsleyMBC,01/09/2022,5100327551,587.92,ADT FIRE & SECURITY PLC,552026,BH,Security Hire,424009
http://statistics.data.gov.uk/doc/local-authority/00CC,BarnsleyMBC,06/09/2022,5100327676,"1,164.96",ADT FIRE & SECURITY PLC,552026,BH,Security Hire,424009
http://statistics.data.gov.uk/doc/local-authority/00CC,BarnsleyMBC,28/09/2022,5100328252,705.6,ADT WORKPLACE LIMITED,552586,BH,Printing - External Provider,422001
http://statistics.data.gov.uk/doc/local-authority/00CC,BarnsleyMBC,07/07/2022,5100325773,"18,000.00",AIRCENTRIC LIMITED,551118,BH,Direct - Building Items,403013
http://statistics.data.gov.uk/doc/local-authority/00CC,BarnsleyMBC,05/07/2022,5100325419,"3,309.47",AKW MEDICARE LTD,526870,BH,Direct - Building Items,403013
http://statistics.data.gov.uk/doc/local-authority/00CC,BarnsleyMBC,06/07/2022,5100325571,513.79,AKW MEDICARE LTD,526870,BH,Direct - Building Items,403013
http://statistics.data.gov.uk/doc/local-authority/00CC,BarnsleyMBC,12/07/2022,5100325768,513.79,AKW MEDICARE LTD,526870,BH,Direct - Building Items,403013
http://statistics.data.gov.uk/doc/local-authority/00CC,BarnsleyMBC,18/07/2022,5100325917,"3,375.66",AKW MEDICARE LTD,526870,BH,Direct - Building Items,403013
http://statistics.data.gov.uk/doc/local-authority/00CC,BarnsleyMBC,12/08/2022,5100326824,"3,244.78",AKW MEDICARE LTD,526870,BH,Direct - Building Items,403013
http://statistics.data.gov.uk/doc/local-authority/00CC,BarnsleyMBC,26/08/2022,5100327251,629.78,AKW MEDICARE LTD,526870,BH,Direct - Building Items,403013
http://statistics.data.gov.uk/doc/local-authority/00CC,BarnsleyMBC,05/07/2022,5100325573,"1,652.23",ALGECO UK LIMITED,539651,BH,Plant hire,320002
http://statistics.data.gov.uk/doc/local-authority/00CC,BarnsleyMBC,12/07/2022,5100325904,"1,652.23",ALGECO UK LIMITED,539651,BH,Plant hire,320002
http://statistics.data.gov.uk/doc/local-authority/00CC,BarnsleyMBC,11/08/2022,5100326896,"1,652.23",ALGECO UK LIMITED,539651,BH,Plant hire,320002
http://statistics.data.gov.uk/doc/local-authority/00CC,BarnsleyMBC,05/09/2022,5100327647,"1,652.23",ALGECO UK LIMITED,539651,BH,Plant hire,320002
http://statistics.data.gov.uk/doc/local-authority/00CC,BarnsleyMBC,23/09/2022,5100328164,927.05,ALGECO UK LIMITED,539651,BH,Plant hire,320002
http://statistics.data.gov.uk/doc/local-authority/00CC,BarnsleyMBC,04/07/2022,5100325383,"1,093.16",AMP Biomass Fuel Ltd TA AMP Clean E,535019,BH,Energy - Fuel Oil,210003
http://statistics.data.gov.uk/doc/local-authority/00CC,BarnsleyMBC,04/07/2022,5100325387,"1,613.44",AMP Biomass Fuel Ltd TA AMP Clean E,535019,BH,Energy - Fuel Oil,210003
http://statistics.data.gov.uk/doc/local-authority/00CC,BarnsleyMBC,04/07/2022,5100325384,"5,508.11",AMP Biomass Fuel Ltd TA AMP Clean E,535019,BH,Energy - Fuel Oil,210003
http://statistics.data.gov.uk/doc/local-authority/00CC,BarnsleyMBC,04/07/2022,5100325382,"2,174.26",AMP Biomass Fuel Ltd TA AMP Clean E,535019,BH,Energy - Fuel Oil,210003
http://statistics.data.gov.uk/doc/local-authority/00CC,BarnsleyMBC,04/07/2022,5100325385,"1,880.90",AMP Biomass Fuel Ltd TA AMP Clean E,535019,BH,Energy - Fuel Oil,210003
http://statistics.data.gov.uk/doc/local-authority/00CC,BarnsleyMBC,05/08/2022,5100326726,"3,149.22",AMP Biomass Fuel Ltd TA AMP Clean E,535019,BH,Energy - Fuel Oil,210003
http://statistics.data.gov.uk/doc/local-authority/00CC,BarnsleyMBC,05/08/2022,5100326730,"5,263.08",AMP Biomass Fuel Ltd TA AMP Clean E,535019,BH,Energy - Fuel Oil,210003
http://statistics.data.gov.uk/doc/local-authority/00CC,BarnsleyMBC,05/08/2022,5100326727,"2,251.91",AMP Biomass Fuel Ltd TA AMP Clean E,535019,BH,Energy - Fuel Oil,210003
http://statistics.data.gov.uk/doc/local-authority/00CC,BarnsleyMBC,05/08/2022,5100326728,"1,716.97",AMP Biomass Fuel Ltd TA AMP Clean E,535019,BH,Energy - Fuel Oil,210003
http://statistics.data.gov.uk/doc/local-authority/00CC,BarnsleyMBC,26/08/2022,5100327370,"7,263.91",AMP Biomass Fuel Ltd TA AMP Clean E,535019,BH,Energy - Fuel Oil,210003
http://statistics.data.gov.uk/doc/local-authority/00CC,BarnsleyMBC,01/07/2022,5100325524,"4,154.40",APPLY SCAFFOLDING SERVICES LTD,551732,BH,Main contractor,506011
http://statistics.data.gov.uk/doc/local-authority/00CC,BarnsleyMBC,07/07/2022,5100325757,513.6,APPLY SCAFFOLDING SERVICES LTD,551732,BH,Main contractor,506011
http://statistics.data.gov.uk/doc/local-authority/00CC,BarnsleyMBC,14/07/2022,5100326002,"3,637.82",APPLY SCAFFOLDING SERVICES LTD,551732,BH,Main contractor,506011
http://statistics.data.gov.uk/doc/local-authority/00CC,BarnsleyMBC,01/08/2022,5100326559,"29,539.76",APPLY SCAFFOLDING SERVICES LTD,551732,BH,Main contractor,506011
http://statistics.data.gov.uk/doc/local-authority/00CC,BarnsleyMBC,01/08/2022,5100326558,"1,756.02",APPLY SCAFFOLDING SERVICES LTD,551732,BH,Main contractor,506011
http://statistics.data.gov.uk/doc/local-authority/00CC,BarnsleyMBC,11/08/2022,5100326894,"11,957.40",APPLY SCAFFOLDING SERVICES LTD,551732,BH,Main contractor,506011
http://statistics.data.gov.uk/doc/local-authority/00CC,BarnsleyMBC,11/08/2022,5100326895,"2,935.80",APPLY SCAFFOLDING SERVICES LTD,551732,BH,Main contractor,506011
http://statistics.data.gov.uk/doc/local-authority/00CC,BarnsleyMBC,30/08/2022,5100327401,"7,518.28",APPLY SCAFFOLDING SERVICES LTD,551732,BH,Main contractor,506011
http://statistics.data.gov.uk/doc/local-authority/00CC,BarnsleyMBC,30/08/2022,5100327402,"20,020.04",APPLY SCAFFOLDING SERVICES LTD,551732,BH,Main contractor,506011
http://statistics.data.gov.uk/doc/local-authority/00CC,BarnsleyMBC,14/09/2022,5100327920,"9,350.28",APPLY SCAFFOLDING SERVICES LTD,551732,BH,Main contractor,506011
http://statistics.data.gov.uk/doc/local-authority/00CC,BarnsleyMBC,14/09/2022,5100327919,"6,801.48",APPLY SCAFFOLDING SERVICES LTD,551732,BH,Main contractor,506011
http://statistics.data.gov.uk/doc/local-authority/00CC,BarnsleyMBC,15/09/2022,5100327978,"6,984.70",APPLY SCAFFOLDING SERVICES LTD,551732,BH,Main contractor,506011
http://statistics.data.gov.uk/doc/local-authority/00CC,BarnsleyMBC,13/07/2022,5100325922,"6,203.23",ARCUS CONSULTING LLP,511642,BH,Main contractor,506011
http://statistics.data.gov.uk/doc/local-authority/00CC,BarnsleyMBC,12/08/2022,5100326972,"6,312.20",ARCUS CONSULTING LLP,511642,BH,Main contractor,506011
http://statistics.data.gov.uk/doc/local-authority/00CC,BarnsleyMBC,12/08/2022,5100326973,"2,813.42",ARCUS CONSULTING LLP,511642,BH,Main contractor,506011
http://statistics.data.gov.uk/doc/local-authority/00CC,BarnsleyMBC,28/09/2022,5100328260,"27,793.80",ARCUS CONSULTING LLP,511642,BH,Quantity Surveying & Building Regulation,424021
http://statistics.data.gov.uk/doc/local-authority/00CC,BarnsleyMBC,01/08/2022,5100326370,"1,068.00",ARENA TRAINING CENTRE LTD,515355,BH,Training Courses,112001
http://statistics.data.gov.uk/doc/local-authority/00CC,BarnsleyMBC,08/07/2022,5100325562,"4,466.40",ARP Research Ltd,532218,BH,Miscellaneous Materials,402009
http://statistics.data.gov.uk/doc/local-authority/00CC,BarnsleyMBC,19/08/2022,5100327015,"3,349.80",ARP Research Ltd,532218,BH,Miscellaneous Materials,402009
http://statistics.data.gov.uk/doc/local-authority/00CC,BarnsleyMBC,18/08/2022,5100327143,"26,897.00",BAAS CONSTRUCTION LIMITED,552099,BH,Main contractor,506011
http://statistics.data.gov.uk/doc/local-authority/00CC,BarnsleyMBC,21/09/2022,5100328010,"21,634.08",BAAS CONSTRUCTION LIMITED,552099,BH,Main contractor,506011
http://statistics.data.gov.uk/doc/local-authority/00CC,BarnsleyMBC,11/07/2022,5100325646,"2,352.28",BARNSLEY HOSPITAL NHS TRUST,500520,BH,Employee Welfare - Medical Care,115001
http://statistics.data.gov.uk/doc/local-authority/00CC,BarnsleyMBC,11/08/2022,5100326724,"1,096.64",BARNSLEY HOSPITAL NHS TRUST,500520,BH,Employee Welfare - Medical Care,115001
http://statistics.data.gov.uk/doc/local-authority/00CC,BarnsleyMBC,12/09/2022,5100327692,790.66,BARNSLEY HOSPITAL NHS TRUST,500520,BH,Employee Welfare - Medical Care,115001
http://statistics.data.gov.uk/doc/local-authority/00CC,BarnsleyMBC,02/08/2022,5100326506,766.8,BARNSLEY LOCK & SAFE CO LTD,500411,BH,Direct - Building Items,403013
http://statistics.data.gov.uk/doc/local-authority/00CC,BarnsleyMBC,25/08/2022,5100327324,"1,533.60",BARNSLEY LOCK & SAFE CO LTD,500411,BH,Direct - Tools & Parts,403019
http://statistics.data.gov.uk/doc/local-authority/00CC,BarnsleyMBC,01/08/2022,5100326563,"21,105.84",BARNSLEY NORSE LTD,524701,BH,Cleaning -  Buildings - External Provide,240001
http://statistics.data.gov.uk/doc/local-authority/00CC,BarnsleyMBC,22/08/2022,5100327092,"21,105.84",BARNSLEY NORSE LTD,524701,BH,Cleaning -  Buildings - External Provide,240001
http://statistics.data.gov.uk/doc/local-authority/00CC,BarnsleyMBC,22/09/2022,5100328057,"21,105.84",BARNSLEY NORSE LTD,524701,BH,Cleaning -  Buildings - External Provide,240001
http://statistics.data.gov.uk/doc/local-authority/00CC,BarnsleyMBC,06/07/2022,5100325527,"8,499.99",BCB TRADING LTD,550198,BH,Training Courses,112001
http://statistics.data.gov.uk/doc/local-authority/00CC,BarnsleyMBC,08/08/2022,5100326560,"8,499.99",BCB TRADING LTD,550198,BH,Training Courses,112001
http://statistics.data.gov.uk/doc/local-authority/00CC,BarnsleyMBC,08/09/2022,5100327473,"8,499.99",BCB TRADING LTD,550198,BH,Training Courses,112001
http://statistics.data.gov.uk/doc/local-authority/00CC,BarnsleyMBC,05/09/2022,5100327644,"1,170.00",BDO LLP,526720,BH,Audit Fee,424018
http://statistics.data.gov.uk/doc/local-authority/00CC,BarnsleyMBC,05/09/2022,5100327648,"6,960.00",BDO LLP,526720,BH,Audit Fee,424018
http://statistics.data.gov.uk/doc/local-authority/00CC,BarnsleyMBC,27/09/2022,5100328219,"16,290.00",BDO LLP,526720,BH,Audit Fee,424018
http://statistics.data.gov.uk/doc/local-authority/00CC,BarnsleyMBC,06/07/2022,5100325561,"1,463.81",BEAST BROADBAND LTD,539810,BH,ICT Services and Support,426014
http://statistics.data.gov.uk/doc/local-authority/00CC,BarnsleyMBC,27/07/2022,5100326435,"2,195.71",BEAST BROADBAND LTD,539810,BH,ICT Services and Support,426014
http://statistics.data.gov.uk/doc/local-authority/00CC,BarnsleyMBC,08/09/2022,5100327798,"2,493.16",BEAST BROADBAND LTD,539810,BH,ICT Services and Support,426014
http://statistics.data.gov.uk/doc/local-authority/00CC,BarnsleyMBC,06/07/2022,5100325747,"1,325.20",BMBC - INCOME A/C,510654,BH,Property Rents,211002
http://statistics.data.gov.uk/doc/local-authority/00CC,BarnsleyMBC,11/07/2022,5100325842,678,BMBC - INCOME A/C,510654,BH,Training Courses,112001
http://statistics.data.gov.uk/doc/local-authority/00CC,BarnsleyMBC,15/07/2022,5100326064,669,BMBC - INCOME A/C,510654,BH,Vehicle Hire,300006
http://statistics.data.gov.uk/doc/local-authority/00CC,BarnsleyMBC,15/07/2022,5100326062,841.66,BMBC - INCOME A/C,510654,BH,Vehicle Hire,300006
http://statistics.data.gov.uk/doc/local-authority/00CC,BarnsleyMBC,15/07/2022,5100326065,700.99,BMBC - INCOME A/C,510654,BH,Vehicle Hire,300006
http://statistics.data.gov.uk/doc/local-authority/00CC,BarnsleyMBC,19/07/2022,5100326170,841.99,BMBC - INCOME A/C,510654,BH,Direct - Fuel & Gas,403017
http://statistics.data.gov.uk/doc/local-authority/00CC,BarnsleyMBC,22/07/2022,5100326270,"1,454.92",BMBC - INCOME A/C,510654,BH,Energy - Electricity,210001
http://statistics.data.gov.uk/doc/local-authority/00CC,BarnsleyMBC,22/07/2022,5100326269,"6,311.68",BMBC - INCOME A/C,510654,BH,Miscellaneous Insurances,460016
http://statistics.data.gov.uk/doc/local-authority/00CC,BarnsleyMBC,25/07/2022,5100326309,"93,238.66",BMBC - INCOME A/C,510654,BH,Property Rents,211002
http://statistics.data.gov.uk/doc/local-authority/00CC,BarnsleyMBC,25/07/2022,5100326308,"93,238.66",BMBC - INCOME A/C,510654,BH,Property Rents,211002
http://statistics.data.gov.uk/doc/local-authority/00CC,BarnsleyMBC,26/07/2022,5100326356,"115,268.38",BMBC - INCOME A/C,510654,BH,Transport Leasing - Long term agreements,320001
http://statistics.data.gov.uk/doc/local-authority/00CC,BarnsleyMBC,29/07/2022,5100326496,700.99,BMBC - INCOME A/C,510654,BH,Vehicle Hire,300006
http://statistics.data.gov.uk/doc/local-authority/00CC,BarnsleyMBC,29/07/2022,5100326495,669,BMBC - INCOME A/C,510654,BH,Vehicle Hire,300006
http://statistics.data.gov.uk/doc/local-authority/00CC,BarnsleyMBC,29/07/2022,5100326493,937.39,BMBC - INCOME A/C,510654,BH,Vehicle Hire,300006
http://statistics.data.gov.uk/doc/local-authority/00CC,BarnsleyMBC,29/07/2022,5100326494,841.66,BMBC - INCOME A/C,510654,BH,Vehicle Hire,300006
http://statistics.data.gov.uk/doc/local-authority/00CC,BarnsleyMBC,29/07/2022,5100326516,"114,261.96",BMBC - INCOME A/C,510654,BH,Transport Leasing - Long term agreements,320001
http://statistics.data.gov.uk/doc/local-authority/00CC,BarnsleyMBC,29/07/2022,5100326515,"204,460.00",BMBC - INCOME A/C,510654,BH,Miscellaneous Materials,402009
http://statistics.data.gov.uk/doc/local-authority/00CC,BarnsleyMBC,29/07/2022,5100326511,605.92,BMBC - INCOME A/C,510654,BH,Pest Control,424012
http://statistics.data.gov.uk/doc/local-authority/00CC,BarnsleyMBC,02/08/2022,5100326570,"14,861.32",BMBC - INCOME A/C,510654,BH,Transport Leasing - Long term agreements,320001
http://statistics.data.gov.uk/doc/local-authority/00CC,BarnsleyMBC,02/08/2022,5100326572,"6,610.16",BMBC - INCOME A/C,510654,BH,Transport Leasing - Long term agreements,320001
http://statistics.data.gov.uk/doc/local-authority/00CC,BarnsleyMBC,02/08/2022,5100326637,650,BMBC - INCOME A/C,510654,BH,National Non Domestic Rates,212003
http://statistics.data.gov.uk/doc/local-authority/00CC,BarnsleyMBC,02/08/2022,5100326571,"1,325.20",BMBC - INCOME A/C,510654,BH,Property Rents,211002
http://statistics.data.gov.uk/doc/local-authority/00CC,BarnsleyMBC,02/08/2022,5100326636,650,BMBC - INCOME A/C,510654,BH,National Non Domestic Rates,212003
http://statistics.data.gov.uk/doc/local-authority/00CC,BarnsleyMBC,04/08/2022,5100326693,650,BMBC - INCOME A/C,510654,BH,National Non Domestic Rates,212003
http://statistics.data.gov.uk/doc/local-authority/00CC,BarnsleyMBC,04/08/2022,5100326721,650,BMBC - INCOME A/C,510654,BH,National Non Domestic Rates,212003
http://statistics.data.gov.uk/doc/local-authority/00CC,BarnsleyMBC,23/08/2022,5100327255,"3,697.36",BMBC - INCOME A/C,510654,BH,Transport Leasing - Long term agreements,320001
http://statistics.data.gov.uk/doc/local-authority/00CC,BarnsleyMBC,23/08/2022,5100327256,"9,267.79",BMBC - INCOME A/C,510654,BH,Transport Leasing - Long term agreements,320001
http://statistics.data.gov.uk/doc/local-authority/00CC,BarnsleyMBC,06/09/2022,5100327683,669,BMBC - INCOME A/C,510654,BH,Vehicle Hire,300006
http://statistics.data.gov.uk/doc/local-authority/00CC,BarnsleyMBC,06/09/2022,5100327690,937.39,BMBC - INCOME A/C,510654,BH,Vehicle Hire,300006
http://statistics.data.gov.uk/doc/local-authority/00CC,BarnsleyMBC,06/09/2022,5100327684,841.66,BMBC - INCOME A/C,510654,BH,Vehicle Hire,300006
http://statistics.data.gov.uk/doc/local-authority/00CC,BarnsleyMBC,06/09/2022,5100327682,700.99,BMBC - INCOME A/C,510654,BH,Vehicle Hire,300006
http://statistics.data.gov.uk/doc/local-authority/00CC,BarnsleyMBC,14/09/2022,5100327937,"114,189.00",BMBC - INCOME A/C,510654,BH,Transport Leasing - Long term agreements,320001
http://statistics.data.gov.uk/doc/local-authority/00CC,BarnsleyMBC,15/09/2022,5100327986,"6,119.51",BMBC - INCOME A/C,510654,BH,Transport Leasing - Long term agreements,320001
http://statistics.data.gov.uk/doc/local-authority/00CC,BarnsleyMBC,15/09/2022,5100327987,"10,040.72",BMBC - INCOME A/C,510654,BH,Transport Leasing - Long term agreements,320001
http://statistics.data.gov.uk/doc/local-authority/00CC,BarnsleyMBC,16/09/2022,5100328001,548,BMBC - INCOME A/C,510654,BH,Training Courses,112001
http://statistics.data.gov.uk/doc/local-authority/00CC,BarnsleyMBC,20/09/2022,5100328077,548,BMBC - INCOME A/C,510654,BH,Training Courses,112001
http://statistics.data.gov.uk/doc/local-authority/00CC,BarnsleyMBC,27/09/2022,5100328232,"3,539.69",BMBC - INCOME A/C,510654,BH,Energy - Electricity,210001
http://statistics.data.gov.uk/doc/local-authority/00CC,BarnsleyMBC,30/09/2022,5100328408,"24,900.00",BMBC - INCOME A/C,510654,BH,National Non Domestic Rates,212003
http://statistics.data.gov.uk/doc/local-authority/00CC,BarnsleyMBC,03/08/2022,5100326641,546.54,BOS OFFICE SUPPLIES GROUP LTD,526135,BH,Training Courses,112001
http://statistics.data.gov.uk/doc/local-authority/00CC,BarnsleyMBC,16/08/2022,5100327104,"2,045.04",BOS OFFICE SUPPLIES GROUP LTD,526135,BH,Furniture,404001
http://statistics.data.gov.uk/doc/local-authority/00CC,BarnsleyMBC,02/09/2022,5100327507,"1,000.00",BOS OFFICE SUPPLIES GROUP LTD,526135,BH,Printing - External Provider,422001
http://statistics.data.gov.uk/doc/local-authority/00CC,BarnsleyMBC,02/09/2022,5100327508,722.4,BOS OFFICE SUPPLIES GROUP LTD,526135,BH,Printing - External Provider,422001
http://statistics.data.gov.uk/doc/local-authority/00CC,BarnsleyMBC,07/09/2022,5100327509,"1,172.83",BOS OFFICE SUPPLIES GROUP LTD,526135,BH,Direct - Tools & Parts,403019
http://statistics.data.gov.uk/doc/local-authority/00CC,BarnsleyMBC,31/08/2022,5100327445,"3,432.00",BRIAN TOTTY SIGNS & DESIGN LTD,510048,BH,Direct - General Materials,403011
http://statistics.data.gov.uk/doc/local-authority/00CC,BarnsleyMBC,29/09/2022,1900025942,"1,172.09",BRITISH GAS TRADING LTD,504282,BH,Energy - Gas,210002
http://statistics.data.gov.uk/doc/local-authority/00CC,BarnsleyMBC,05/07/2022,5100325504,885.34,BUILDBASE LTD,512640,BH,Direct - Building Items,403013
http://statistics.data.gov.uk/doc/local-authority/00CC,BarnsleyMBC,15/07/2022,5100325911,822,BUILDBASE LTD,512640,BH,,
http://statistics.data.gov.uk/doc/local-authority/00CC,BarnsleyMBC,01/07/2022,5200076410,581.14,BUSINESS STREAM,585193,BH,Water Rates,213001
http://statistics.data.gov.uk/doc/local-authority/00CC,BarnsleyMBC,01/07/2022,5200076417,602.87,BUSINESS STREAM,585193,BH,Water Rates,213001
http://statistics.data.gov.uk/doc/local-authority/00CC,BarnsleyMBC,01/07/2022,5200076419,703.6,BUSINESS STREAM,585193,BH,Water Rates,213001
http://statistics.data.gov.uk/doc/local-authority/00CC,BarnsleyMBC,01/07/2022,5200076425,695.12,BUSINESS STREAM,585193,BH,Water Rates,213001
http://statistics.data.gov.uk/doc/local-authority/00CC,BarnsleyMBC,01/07/2022,5200076426,654.69,BUSINESS STREAM,585193,BH,Water Rates,213001
http://statistics.data.gov.uk/doc/local-authority/00CC,BarnsleyMBC,01/07/2022,5200076438,572.55,BUSINESS STREAM,585193,BH,Water Rates,213001
http://statistics.data.gov.uk/doc/local-authority/00CC,BarnsleyMBC,01/07/2022,5200076439,517.11,BUSINESS STREAM,585193,BH,Water Rates,213001
http://statistics.data.gov.uk/doc/local-authority/00CC,BarnsleyMBC,28/07/2022,5200076568,557.8,BUSINESS STREAM,585193,BH,Water Rates,213001
http://statistics.data.gov.uk/doc/local-authority/00CC,BarnsleyMBC,28/07/2022,5200076587,535.55,BUSINESS STREAM,585193,BH,Water Rates,213001
http://statistics.data.gov.uk/doc/local-authority/00CC,BarnsleyMBC,28/07/2022,5200076599,623.23,BUSINESS STREAM,585193,BH,Water Rates,213001
http://statistics.data.gov.uk/doc/local-authority/00CC,BarnsleyMBC,28/07/2022,5200076600,650.45,BUSINESS STREAM,585193,BH,Water Rates,213001
http://statistics.data.gov.uk/doc/local-authority/00CC,BarnsleyMBC,28/07/2022,5200076566,750.41,BUSINESS STREAM,585193,BH,Water Rates,213001
http://statistics.data.gov.uk/doc/local-authority/00CC,BarnsleyMBC,26/08/2022,5200076859,618.77,BUSINESS STREAM,585193,BH,Water Rates,213001
http://statistics.data.gov.uk/doc/local-authority/00CC,BarnsleyMBC,26/08/2022,5200076861,"1,387.54",BUSINESS STREAM,585193,BH,Water Rates,213001
http://statistics.data.gov.uk/doc/local-authority/00CC,BarnsleyMBC,26/08/2022,5200076868,629.74,BUSINESS STREAM,585193,BH,Water Rates,213001
http://statistics.data.gov.uk/doc/local-authority/00CC,BarnsleyMBC,26/08/2022,5200076869,689.73,BUSINESS STREAM,585193,BH,Water Rates,213001
http://statistics.data.gov.uk/doc/local-authority/00CC,BarnsleyMBC,25/07/2022,5100326231,"12,872.40",CANDY CONTRACTS (UK) LTD,551974,BH,Main contractor,506011
http://statistics.data.gov.uk/doc/local-authority/00CC,BarnsleyMBC,30/09/2022,5100328410,561,CENTURION FIRE & SECURITY LTD,500651,BH,Security Hire,424009
http://statistics.data.gov.uk/doc/local-authority/00CC,BarnsleyMBC,11/08/2022,5100326813,"1,560.00",CHARTERED INSTITUTE OF HOUSING,500638,BH,Training Courses,112001
http://statistics.data.gov.uk/doc/local-authority/00CC,BarnsleyMBC,08/07/2022,1900025760,"16,814.51",CHEVIN HOUSING ASSOCIATION LTD,501017,BH,Tied Accommodation Allowance,212004
http://statistics.data.gov.uk/doc/local-authority/00CC,BarnsleyMBC,09/08/2022,1900025853,"17,223.58",CHEVIN HOUSING ASSOCIATION LTD,501017,BH,Property Rents,211002
http://statistics.data.gov.uk/doc/local-authority/00CC,BarnsleyMBC,13/09/2022,1900025980,"18,058.37",CHEVIN HOUSING ASSOCIATION LTD,501017,BH,Tied Accommodation Allowance,212004
http://statistics.data.gov.uk/doc/local-authority/00CC,BarnsleyMBC,15/09/2022,1900025989,"18,058.37",CHEVIN HOUSING ASSOCIATION LTD,501017,BH,Property Rents,211002
http://statistics.data.gov.uk/doc/local-authority/00CC,BarnsleyMBC,07/07/2022,5100325779,501.6,CHIPPINDALE PLANT LTD,502040,BH,Equipment - Hire,400002
http://statistics.data.gov.uk/doc/local-authority/00CC,BarnsleyMBC,08/09/2022,5100327755,524.4,CHIPPINDALE PLANT LTD,502040,BH,Equipment - Hire,400002
http://statistics.data.gov.uk/doc/local-authority/00CC,BarnsleyMBC,15/09/2022,5100327960,"1,207.20",CHRIS CLARKE LYNDALE,550223,BH,Plant hire,320002
http://statistics.data.gov.uk/doc/local-authority/00CC,BarnsleyMBC,15/09/2022,5100327961,"1,207.20",CHRIS CLARKE LYNDALE,550223,BH,Plant hire,320002
http://statistics.data.gov.uk/doc/local-authority/00CC,BarnsleyMBC,15/09/2022,5100327959,727.2,CHRIS CLARKE LYNDALE,550223,BH,Plant hire,320002
http://statistics.data.gov.uk/doc/local-authority/00CC,BarnsleyMBC,04/07/2022,1900025740,670.3,Christopher Brownley,851219,BH,Training Courses,112001
http://statistics.data.gov.uk/doc/local-authority/00CC,BarnsleyMBC,28/07/2022,5100326467,"9,700.74",CITIZENS ADVICE BUREAU,514939,BH,Professional fees,424006
http://statistics.data.gov.uk/doc/local-authority/00CC,BarnsleyMBC,08/09/2022,5100327735,"3,233.58",CITIZENS ADVICE BUREAU,514939,BH,Professional fees,424006
http://statistics.data.gov.uk/doc/local-authority/00CC,BarnsleyMBC,21/07/2022,5100326185,"3,300.00",Citrus Training Ltd,539103,BH,Other Training Providers,506001
http://statistics.data.gov.uk/doc/local-authority/00CC,BarnsleyMBC,28/09/2022,5100328254,"1,308.00",Citrus Training Ltd,539103,BH,Training Courses,112001
http://statistics.data.gov.uk/doc/local-authority/00CC,BarnsleyMBC,28/09/2022,5100328255,654,Citrus Training Ltd,539103,BH,Training Courses,112001
http://statistics.data.gov.uk/doc/local-authority/00CC,BarnsleyMBC,01/07/2022,5100325516,"1,609.02",CITY PLUMBING SUPPLIES,530034,BH,Direct - Building Items,403013
http://statistics.data.gov.uk/doc/local-authority/00CC,BarnsleyMBC,01/07/2022,5100325515,"1,379.66",CITY PLUMBING SUPPLIES,530034,BH,Direct - Building Items,403013
http://statistics.data.gov.uk/doc/local-authority/00CC,BarnsleyMBC,04/07/2022,5100325460,674.33,CITY PLUMBING SUPPLIES,530034,BH,,
http://statistics.data.gov.uk/doc/local-authority/00CC,BarnsleyMBC,04/07/2022,5100325533,"8,459.00",CITY PLUMBING SUPPLIES,530034,BH,,
http://statistics.data.gov.uk/doc/local-authority/00CC,BarnsleyMBC,04/07/2022,5100325472,868.25,CITY PLUMBING SUPPLIES,530034,BH,,
http://statistics.data.gov.uk/doc/local-authority/00CC,BarnsleyMBC,04/07/2022,5100325459,"1,107.00",CITY PLUMBING SUPPLIES,530034,BH,,
http://statistics.data.gov.uk/doc/local-authority/00CC,BarnsleyMBC,04/07/2022,5100325534,"1,374.37",CITY PLUMBING SUPPLIES,530034,BH,Direct - Building Items,403013
http://statistics.data.gov.uk/doc/local-authority/00CC,BarnsleyMBC,04/07/2022,5100325535,"1,374.37",CITY PLUMBING SUPPLIES,530034,BH,Direct - Building Items,403013
http://statistics.data.gov.uk/doc/local-authority/00CC,BarnsleyMBC,05/07/2022,5100325468,"1,393.73",CITY PLUMBING SUPPLIES,530034,BH,,
http://statistics.data.gov.uk/doc/local-authority/00CC,BarnsleyMBC,05/07/2022,5100325503,"1,366.14",CITY PLUMBING SUPPLIES,530034,BH,Direct - Building Items,403013
http://statistics.data.gov.uk/doc/local-authority/00CC,BarnsleyMBC,05/07/2022,5100325474,"1,600.56",CITY PLUMBING SUPPLIES,530034,BH,,
http://statistics.data.gov.uk/doc/local-authority/00CC,BarnsleyMBC,05/07/2022,5100325576,531.56,CITY PLUMBING SUPPLIES,530034,BH,Direct - Building Items,403013
http://statistics.data.gov.uk/doc/local-authority/00CC,BarnsleyMBC,05/07/2022,5100325477,542.64,CITY PLUMBING SUPPLIES,530034,BH,,
http://statistics.data.gov.uk/doc/local-authority/00CC,BarnsleyMBC,05/07/2022,5100325577,"1,451.17",CITY PLUMBING SUPPLIES,530034,BH,Direct - Building Items,403013
http://statistics.data.gov.uk/doc/local-authority/00CC,BarnsleyMBC,05/07/2022,5100325578,"1,396.42",CITY PLUMBING SUPPLIES,530034,BH,Direct - Building Items,403013
http://statistics.data.gov.uk/doc/local-authority/00CC,BarnsleyMBC,06/07/2022,5100325489,"2,718.34",CITY PLUMBING SUPPLIES,530034,BH,,
http://statistics.data.gov.uk/doc/local-authority/00CC,BarnsleyMBC,06/07/2022,5100325488,795.66,CITY PLUMBING SUPPLIES,530034,BH,,
http://statistics.data.gov.uk/doc/local-authority/00CC,BarnsleyMBC,07/07/2022,5100325549,"2,652.41",CITY PLUMBING SUPPLIES,530034,BH,,
http://statistics.data.gov.uk/doc/local-authority/00CC,BarnsleyMBC,07/07/2022,5100325550,"2,061.50",CITY PLUMBING SUPPLIES,530034,BH,,
http://statistics.data.gov.uk/doc/local-authority/00CC,BarnsleyMBC,07/07/2022,5100325756,"1,482.04",CITY PLUMBING SUPPLIES,530034,BH,Direct - Building Items,403013
http://statistics.data.gov.uk/doc/local-authority/00CC,BarnsleyMBC,11/07/2022,5100325724,"1,426.20",CITY PLUMBING SUPPLIES,530034,BH,,
http://statistics.data.gov.uk/doc/local-authority/00CC,BarnsleyMBC,11/07/2022,5100325723,"1,163.69",CITY PLUMBING SUPPLIES,530034,BH,,
http://statistics.data.gov.uk/doc/local-authority/00CC,BarnsleyMBC,11/07/2022,5100325780,"1,315.64",CITY PLUMBING SUPPLIES,530034,BH,Direct - Building Items,403013
http://statistics.data.gov.uk/doc/local-authority/00CC,BarnsleyMBC,14/07/2022,5100325949,"3,223.32",CITY PLUMBING SUPPLIES,530034,BH,,
http://statistics.data.gov.uk/doc/local-authority/00CC,BarnsleyMBC,14/07/2022,5100325962,"1,080.00",CITY PLUMBING SUPPLIES,530034,BH,Direct - Building Items,403013
http://statistics.data.gov.uk/doc/local-authority/00CC,BarnsleyMBC,14/07/2022,5100325956,"1,793.52",CITY PLUMBING SUPPLIES,530034,BH,Equipment - Repair and Maintenance,400003
http://statistics.data.gov.uk/doc/local-authority/00CC,BarnsleyMBC,14/07/2022,5100325967,917.09,CITY PLUMBING SUPPLIES,530034,BH,,
http://statistics.data.gov.uk/doc/local-authority/00CC,BarnsleyMBC,14/07/2022,5100325944,"1,634.38",CITY PLUMBING SUPPLIES,530034,BH,,
http://statistics.data.gov.uk/doc/local-authority/00CC,BarnsleyMBC,14/07/2022,5100325946,"7,739.40",CITY PLUMBING SUPPLIES,530034,BH,,
http://statistics.data.gov.uk/doc/local-authority/00CC,BarnsleyMBC,14/07/2022,5100325945,"1,030.39",CITY PLUMBING SUPPLIES,530034,BH,,
http://statistics.data.gov.uk/doc/local-authority/00CC,BarnsleyMBC,14/07/2022,5100325954,552.1,CITY PLUMBING SUPPLIES,530034,BH,,
http://statistics.data.gov.uk/doc/local-authority/00CC,BarnsleyMBC,15/07/2022,5100325998,"1,062.52",CITY PLUMBING SUPPLIES,530034,BH,Direct - Building Items,403013
http://statistics.data.gov.uk/doc/local-authority/00CC,BarnsleyMBC,15/07/2022,5100326060,"1,104.72",CITY PLUMBING SUPPLIES,530034,BH,Direct - Building Items,403013
http://statistics.data.gov.uk/doc/local-authority/00CC,BarnsleyMBC,15/07/2022,5100326061,"1,378.18",CITY PLUMBING SUPPLIES,530034,BH,Direct - Building Items,403013
http://statistics.data.gov.uk/doc/local-authority/00CC,BarnsleyMBC,18/07/2022,5100325940,"2,860.80",CITY PLUMBING SUPPLIES,530034,BH,,
http://statistics.data.gov.uk/doc/local-authority/00CC,BarnsleyMBC,18/07/2022,5100325941,"1,383.36",CITY PLUMBING SUPPLIES,530034,BH,,
http://statistics.data.gov.uk/doc/local-authority/00CC,BarnsleyMBC,18/07/2022,5100325938,"10,341.18",CITY PLUMBING SUPPLIES,530034,BH,,
http://statistics.data.gov.uk/doc/local-authority/00CC,BarnsleyMBC,18/07/2022,5100325936,"2,901.31",CITY PLUMBING SUPPLIES,530034,BH,,
http://statistics.data.gov.uk/doc/local-authority/00CC,BarnsleyMBC,18/07/2022,5100325994,"3,106.38",CITY PLUMBING SUPPLIES,530034,BH,,
http://statistics.data.gov.uk/doc/local-authority/00CC,BarnsleyMBC,18/07/2022,5100325997,"1,060.79",CITY PLUMBING SUPPLIES,530034,BH,Direct - Building Items,403013
http://statistics.data.gov.uk/doc/local-authority/00CC,BarnsleyMBC,19/07/2022,5100325978,"3,953.93",CITY PLUMBING SUPPLIES,530034,BH,,
http://statistics.data.gov.uk/doc/local-authority/00CC,BarnsleyMBC,21/07/2022,5100326146,"4,346.79",CITY PLUMBING SUPPLIES,530034,BH,,
http://statistics.data.gov.uk/doc/local-authority/00CC,BarnsleyMBC,21/07/2022,5100326145,552.18,CITY PLUMBING SUPPLIES,530034,BH,,
http://statistics.data.gov.uk/doc/local-authority/00CC,BarnsleyMBC,25/07/2022,5100326196,"1,755.14",CITY PLUMBING SUPPLIES,530034,BH,,
http://statistics.data.gov.uk/doc/local-authority/00CC,BarnsleyMBC,25/07/2022,5100326197,676.12,CITY PLUMBING SUPPLIES,530034,BH,,
http://statistics.data.gov.uk/doc/local-authority/00CC,BarnsleyMBC,25/07/2022,5100326195,557.88,CITY PLUMBING SUPPLIES,530034,BH,,
http://statistics.data.gov.uk/doc/local-authority/00CC,BarnsleyMBC,26/07/2022,5100326249,524.18,CITY PLUMBING SUPPLIES,530034,BH,,
http://statistics.data.gov.uk/doc/local-authority/00CC,BarnsleyMBC,27/07/2022,5100326272,729.42,CITY PLUMBING SUPPLIES,530034,BH,,
http://statistics.data.gov.uk/doc/local-authority/00CC,BarnsleyMBC,27/07/2022,5100326273,"1,115.58",CITY PLUMBING SUPPLIES,530034,BH,,
http://statistics.data.gov.uk/doc/local-authority/00CC,BarnsleyMBC,28/07/2022,5100326313,"7,427.28",CITY PLUMBING SUPPLIES,530034,BH,,
http://statistics.data.gov.uk/doc/local-authority/00CC,BarnsleyMBC,28/07/2022,5100326318,"2,122.08",CITY PLUMBING SUPPLIES,530034,BH,,
http://statistics.data.gov.uk/doc/local-authority/00CC,BarnsleyMBC,28/07/2022,5100326340,"1,197.89",CITY PLUMBING SUPPLIES,530034,BH,Direct - Building Items,403013
http://statistics.data.gov.uk/doc/local-authority/00CC,BarnsleyMBC,28/07/2022,5100326310,"1,273.42",CITY PLUMBING SUPPLIES,530034,BH,,
http://statistics.data.gov.uk/doc/local-authority/00CC,BarnsleyMBC,01/08/2022,5100326413,"1,627.46",CITY PLUMBING SUPPLIES,530034,BH,,
http://statistics.data.gov.uk/doc/local-authority/00CC,BarnsleyMBC,01/08/2022,5100326415,"2,388.49",CITY PLUMBING SUPPLIES,530034,BH,,
http://statistics.data.gov.uk/doc/local-authority/00CC,BarnsleyMBC,01/08/2022,5100326412,731.62,CITY PLUMBING SUPPLIES,530034,BH,Direct - Building Items,403013
http://statistics.data.gov.uk/doc/local-authority/00CC,BarnsleyMBC,01/08/2022,5100326419,"2,122.08",CITY PLUMBING SUPPLIES,530034,BH,,
http://statistics.data.gov.uk/doc/local-authority/00CC,BarnsleyMBC,01/08/2022,5100326421,"1,061.04",CITY PLUMBING SUPPLIES,530034,BH,,
http://statistics.data.gov.uk/doc/local-authority/00CC,BarnsleyMBC,03/08/2022,5100326504,"1,074.35",CITY PLUMBING SUPPLIES,530034,BH,,
http://statistics.data.gov.uk/doc/local-authority/00CC,BarnsleyMBC,03/08/2022,5100326644,991.43,CITY PLUMBING SUPPLIES,530034,BH,,
http://statistics.data.gov.uk/doc/local-authority/00CC,BarnsleyMBC,04/08/2022,5100326561,"1,027.17",CITY PLUMBING SUPPLIES,530034,BH,Direct - Building Items,403013
http://statistics.data.gov.uk/doc/local-authority/00CC,BarnsleyMBC,04/08/2022,5100326542,"1,033.78",CITY PLUMBING SUPPLIES,530034,BH,,
http://statistics.data.gov.uk/doc/local-authority/00CC,BarnsleyMBC,08/08/2022,5100326751,"1,341.74",CITY PLUMBING SUPPLIES,530034,BH,Direct - Building Items,403013
http://statistics.data.gov.uk/doc/local-authority/00CC,BarnsleyMBC,08/08/2022,5100326746,"1,342.71",CITY PLUMBING SUPPLIES,530034,BH,Direct - Building Items,403013
http://statistics.data.gov.uk/doc/local-authority/00CC,BarnsleyMBC,08/08/2022,5100326749,"1,060.94",CITY PLUMBING SUPPLIES,530034,BH,Direct - Building Items,403013
http://statistics.data.gov.uk/doc/local-authority/00CC,BarnsleyMBC,08/08/2022,5100326750,"1,298.67",CITY PLUMBING SUPPLIES,530034,BH,Direct - Building Items,403013
http://statistics.data.gov.uk/doc/local-authority/00CC,BarnsleyMBC,08/08/2022,5100326756,746.55,CITY PLUMBING SUPPLIES,530034,BH,Direct - Building Items,403013
http://statistics.data.gov.uk/doc/local-authority/00CC,BarnsleyMBC,08/08/2022,5100326753,"1,351.27",CITY PLUMBING SUPPLIES,530034,BH,Direct - Building Items,403013
http://statistics.data.gov.uk/doc/local-authority/00CC,BarnsleyMBC,08/08/2022,5100326754,"1,385.75",CITY PLUMBING SUPPLIES,530034,BH,Direct - Building Items,403013
http://statistics.data.gov.uk/doc/local-authority/00CC,BarnsleyMBC,08/08/2022,5100326755,"1,370.30",CITY PLUMBING SUPPLIES,530034,BH,Direct - Building Items,403013
http://statistics.data.gov.uk/doc/local-authority/00CC,BarnsleyMBC,08/08/2022,5100326757,842.32,CITY PLUMBING SUPPLIES,530034,BH,Direct - Building Items,403013
http://statistics.data.gov.uk/doc/local-authority/00CC,BarnsleyMBC,08/08/2022,5100326743,"1,339.65",CITY PLUMBING SUPPLIES,530034,BH,Direct - Building Items,403013
http://statistics.data.gov.uk/doc/local-authority/00CC,BarnsleyMBC,08/08/2022,5100326759,"4,016.80",CITY PLUMBING SUPPLIES,530034,BH,Direct - Building Items,403013
http://statistics.data.gov.uk/doc/local-authority/00CC,BarnsleyMBC,08/08/2022,5100326745,"1,205.44",CITY PLUMBING SUPPLIES,530034,BH,Direct - Building Items,403013
http://statistics.data.gov.uk/doc/local-authority/00CC,BarnsleyMBC,08/08/2022,5100326747,"1,114.63",CITY PLUMBING SUPPLIES,530034,BH,Direct - Building Items,403013
http://statistics.data.gov.uk/doc/local-authority/00CC,BarnsleyMBC,08/08/2022,5100326744,"1,713.60",CITY PLUMBING SUPPLIES,530034,BH,,
http://statistics.data.gov.uk/doc/local-authority/00CC,BarnsleyMBC,08/08/2022,5100326763,"1,713.60",CITY PLUMBING SUPPLIES,530034,BH,,
http://statistics.data.gov.uk/doc/local-authority/00CC,BarnsleyMBC,08/08/2022,5100326709,514.66,CITY PLUMBING SUPPLIES,530034,BH,,
http://statistics.data.gov.uk/doc/local-authority/00CC,BarnsleyMBC,08/08/2022,5100326752,"1,023.28",CITY PLUMBING SUPPLIES,530034,BH,Direct - Building Items,403013
http://statistics.data.gov.uk/doc/local-authority/00CC,BarnsleyMBC,08/08/2022,5100326748,810.57,CITY PLUMBING SUPPLIES,530034,BH,Direct - Building Items,403013
http://statistics.data.gov.uk/doc/local-authority/00CC,BarnsleyMBC,09/08/2022,5100326758,"1,339.25",CITY PLUMBING SUPPLIES,530034,BH,Direct - Building Items,403013
http://statistics.data.gov.uk/doc/local-authority/00CC,BarnsleyMBC,10/08/2022,5100326842,"1,343.09",CITY PLUMBING SUPPLIES,530034,BH,Direct - Building Items,403013
http://statistics.data.gov.uk/doc/local-authority/00CC,BarnsleyMBC,11/08/2022,5100326840,"1,334.98",CITY PLUMBING SUPPLIES,530034,BH,Direct - Building Items,403013
http://statistics.data.gov.uk/doc/local-authority/00CC,BarnsleyMBC,11/08/2022,5100326841,"1,334.98",CITY PLUMBING SUPPLIES,530034,BH,Direct - Building Items,403013
http://statistics.data.gov.uk/doc/local-authority/00CC,BarnsleyMBC,11/08/2022,5100326906,"1,337.78",CITY PLUMBING SUPPLIES,530034,BH,Direct - Building Items,403013
http://statistics.data.gov.uk/doc/local-authority/00CC,BarnsleyMBC,11/08/2022,5100326909,"1,136.49",CITY PLUMBING SUPPLIES,530034,BH,Direct - Building Items,403013
http://statistics.data.gov.uk/doc/local-authority/00CC,BarnsleyMBC,11/08/2022,5100326911,"1,033.81",CITY PLUMBING SUPPLIES,530034,BH,Direct - Building Items,403013
http://statistics.data.gov.uk/doc/local-authority/00CC,BarnsleyMBC,11/08/2022,5100326804,"6,372.00",CITY PLUMBING SUPPLIES,530034,BH,,
http://statistics.data.gov.uk/doc/local-authority/00CC,BarnsleyMBC,12/08/2022,5100326943,568.89,CITY PLUMBING SUPPLIES,530034,BH,,
http://statistics.data.gov.uk/doc/local-authority/00CC,BarnsleyMBC,12/08/2022,5100326941,"1,567.02",CITY PLUMBING SUPPLIES,530034,BH,Direct - Building Items,403013
http://statistics.data.gov.uk/doc/local-authority/00CC,BarnsleyMBC,12/08/2022,5100326942,974.35,CITY PLUMBING SUPPLIES,530034,BH,Direct - Building Items,403013
http://statistics.data.gov.uk/doc/local-authority/00CC,BarnsleyMBC,12/08/2022,5100326938,"1,067.11",CITY PLUMBING SUPPLIES,530034,BH,Direct - Building Items,403013
http://statistics.data.gov.uk/doc/local-authority/00CC,BarnsleyMBC,15/08/2022,5100326870,"2,122.08",CITY PLUMBING SUPPLIES,530034,BH,,
http://statistics.data.gov.uk/doc/local-authority/00CC,BarnsleyMBC,15/08/2022,5100326866,"1,702.15",CITY PLUMBING SUPPLIES,530034,BH,,
http://statistics.data.gov.uk/doc/local-authority/00CC,BarnsleyMBC,15/08/2022,5100326868,"2,531.45",CITY PLUMBING SUPPLIES,530034,BH,,
http://statistics.data.gov.uk/doc/local-authority/00CC,BarnsleyMBC,15/08/2022,5100326908,"1,419.66",CITY PLUMBING SUPPLIES,530034,BH,,
http://statistics.data.gov.uk/doc/local-authority/00CC,BarnsleyMBC,15/08/2022,5100327025,774.37,CITY PLUMBING SUPPLIES,530034,BH,Direct - Building Items,403013
http://statistics.data.gov.uk/doc/local-authority/00CC,BarnsleyMBC,15/08/2022,5100326867,"3,713.64",CITY PLUMBING SUPPLIES,530034,BH,,
http://statistics.data.gov.uk/doc/local-authority/00CC,BarnsleyMBC,15/08/2022,5100326907,"2,442.72",CITY PLUMBING SUPPLIES,530034,BH,,
http://statistics.data.gov.uk/doc/local-authority/00CC,BarnsleyMBC,15/08/2022,5100326904,"1,086.78",CITY PLUMBING SUPPLIES,530034,BH,Direct - Building Items,403013
http://statistics.data.gov.uk/doc/local-authority/00CC,BarnsleyMBC,15/08/2022,5100326903,"1,359.82",CITY PLUMBING SUPPLIES,530034,BH,Direct - Building Items,403013
http://statistics.data.gov.uk/doc/local-authority/00CC,BarnsleyMBC,16/08/2022,5100327024,"1,146.92",CITY PLUMBING SUPPLIES,530034,BH,Direct - Building Items,403013
http://statistics.data.gov.uk/doc/local-authority/00CC,BarnsleyMBC,16/08/2022,5100327023,"1,353.44",CITY PLUMBING SUPPLIES,530034,BH,Direct - Building Items,403013
http://statistics.data.gov.uk/doc/local-authority/00CC,BarnsleyMBC,16/08/2022,5100326922,"2,122.08",CITY PLUMBING SUPPLIES,530034,BH,,
http://statistics.data.gov.uk/doc/local-authority/00CC,BarnsleyMBC,17/08/2022,5100327022,936.03,CITY PLUMBING SUPPLIES,530034,BH,Direct - Building Items,403013
http://statistics.data.gov.uk/doc/local-authority/00CC,BarnsleyMBC,18/08/2022,5100327054,762.18,CITY PLUMBING SUPPLIES,530034,BH,,
http://statistics.data.gov.uk/doc/local-authority/00CC,BarnsleyMBC,18/08/2022,5100327084,"1,356.22",CITY PLUMBING SUPPLIES,530034,BH,Direct - Building Items,403013
http://statistics.data.gov.uk/doc/local-authority/00CC,BarnsleyMBC,18/08/2022,5100327046,"1,310.99",CITY PLUMBING SUPPLIES,530034,BH,,
http://statistics.data.gov.uk/doc/local-authority/00CC,BarnsleyMBC,22/08/2022,5100327147,"1,135.31",CITY PLUMBING SUPPLIES,530034,BH,Direct - Building Items,403013
http://statistics.data.gov.uk/doc/local-authority/00CC,BarnsleyMBC,23/08/2022,5100327261,746.55,CITY PLUMBING SUPPLIES,530034,BH,Direct - Building Items,403013
http://statistics.data.gov.uk/doc/local-authority/00CC,BarnsleyMBC,23/08/2022,5100327262,746.55,CITY PLUMBING SUPPLIES,530034,BH,Direct - Building Items,403013
http://statistics.data.gov.uk/doc/local-authority/00CC,BarnsleyMBC,23/08/2022,5100327263,"1,068.82",CITY PLUMBING SUPPLIES,530034,BH,Direct - Building Items,403013
http://statistics.data.gov.uk/doc/local-authority/00CC,BarnsleyMBC,23/08/2022,5100327146,"1,072.91",CITY PLUMBING SUPPLIES,530034,BH,Direct - Building Items,403013
http://statistics.data.gov.uk/doc/local-authority/00CC,BarnsleyMBC,24/08/2022,5100327198,"1,056.80",CITY PLUMBING SUPPLIES,530034,BH,,
http://statistics.data.gov.uk/doc/local-authority/00CC,BarnsleyMBC,24/08/2022,5100327264,"1,135.31",CITY PLUMBING SUPPLIES,530034,BH,Direct - Building Items,403013
http://statistics.data.gov.uk/doc/local-authority/00CC,BarnsleyMBC,24/08/2022,5100327193,"1,846.80",CITY PLUMBING SUPPLIES,530034,BH,,
http://statistics.data.gov.uk/doc/local-authority/00CC,BarnsleyMBC,25/08/2022,5100327205,781.65,CITY PLUMBING SUPPLIES,530034,BH,Equipment - Electrical Goods,400007
http://statistics.data.gov.uk/doc/local-authority/00CC,BarnsleyMBC,25/08/2022,5100327213,"1,591.56",CITY PLUMBING SUPPLIES,530034,BH,,
http://statistics.data.gov.uk/doc/local-authority/00CC,BarnsleyMBC,25/08/2022,5100327206,"1,003.10",CITY PLUMBING SUPPLIES,530034,BH,,
http://statistics.data.gov.uk/doc/local-authority/00CC,BarnsleyMBC,25/08/2022,5100327208,585.57,CITY PLUMBING SUPPLIES,530034,BH,,
http://statistics.data.gov.uk/doc/local-authority/00CC,BarnsleyMBC,25/08/2022,5100327204,"3,881.59",CITY PLUMBING SUPPLIES,530034,BH,,
http://statistics.data.gov.uk/doc/local-authority/00CC,BarnsleyMBC,26/08/2022,5100327288,"7,451.47",CITY PLUMBING SUPPLIES,530034,BH,,
http://statistics.data.gov.uk/doc/local-authority/00CC,BarnsleyMBC,26/08/2022,5100327327,"1,062.24",CITY PLUMBING SUPPLIES,530034,BH,Direct - Building Items,403013
http://statistics.data.gov.uk/doc/local-authority/00CC,BarnsleyMBC,26/08/2022,5100327328,"1,115.26",CITY PLUMBING SUPPLIES,530034,BH,Direct - Building Items,403013
http://statistics.data.gov.uk/doc/local-authority/00CC,BarnsleyMBC,30/08/2022,5100327359,"1,748.35",CITY PLUMBING SUPPLIES,530034,BH,,
http://statistics.data.gov.uk/doc/local-authority/00CC,BarnsleyMBC,30/08/2022,5100327363,"17,580.00",CITY PLUMBING SUPPLIES,530034,BH,,
http://statistics.data.gov.uk/doc/local-authority/00CC,BarnsleyMBC,30/08/2022,5100327361,982.85,CITY PLUMBING SUPPLIES,530034,BH,,
http://statistics.data.gov.uk/doc/local-authority/00CC,BarnsleyMBC,30/08/2022,5100327362,598.11,CITY PLUMBING SUPPLIES,530034,BH,,
http://statistics.data.gov.uk/doc/local-authority/00CC,BarnsleyMBC,31/08/2022,5100327395,781.65,CITY PLUMBING SUPPLIES,530034,BH,Equipment - Electrical Goods,400007
http://statistics.data.gov.uk/doc/local-authority/00CC,BarnsleyMBC,31/08/2022,5100327396,"1,095.48",CITY PLUMBING SUPPLIES,530034,BH,,
http://statistics.data.gov.uk/doc/local-authority/00CC,BarnsleyMBC,31/08/2022,5100327400,705.56,CITY PLUMBING SUPPLIES,530034,BH,,
http://statistics.data.gov.uk/doc/local-authority/00CC,BarnsleyMBC,01/09/2022,5100327418,894.41,CITY PLUMBING SUPPLIES,530034,BH,,
http://statistics.data.gov.uk/doc/local-authority/00CC,BarnsleyMBC,01/09/2022,5100327503,789.78,CITY PLUMBING SUPPLIES,530034,BH,Direct - Building Items,403013
http://statistics.data.gov.uk/doc/local-authority/00CC,BarnsleyMBC,01/09/2022,5100327423,"1,031.88",CITY PLUMBING SUPPLIES,530034,BH,,
http://statistics.data.gov.uk/doc/local-authority/00CC,BarnsleyMBC,02/09/2022,5100327628,579.45,CITY PLUMBING SUPPLIES,530034,BH,,
http://statistics.data.gov.uk/doc/local-authority/00CC,BarnsleyMBC,02/09/2022,5100327557,815.13,CITY PLUMBING SUPPLIES,530034,BH,Direct - Building Items,403013
http://statistics.data.gov.uk/doc/local-authority/00CC,BarnsleyMBC,02/09/2022,5100327626,878.68,CITY PLUMBING SUPPLIES,530034,BH,Direct - Building Items,403013
http://statistics.data.gov.uk/doc/local-authority/00CC,BarnsleyMBC,06/09/2022,5100327634,809.09,CITY PLUMBING SUPPLIES,530034,BH,Direct - Building Items,403013
http://statistics.data.gov.uk/doc/local-authority/00CC,BarnsleyMBC,06/09/2022,5100327635,"1,119.94",CITY PLUMBING SUPPLIES,530034,BH,Direct - Building Items,403013
http://statistics.data.gov.uk/doc/local-authority/00CC,BarnsleyMBC,06/09/2022,5100327531,"1,063.92",CITY PLUMBING SUPPLIES,530034,BH,,
http://statistics.data.gov.uk/doc/local-authority/00CC,BarnsleyMBC,06/09/2022,5100327533,"2,256.38",CITY PLUMBING SUPPLIES,530034,BH,,
http://statistics.data.gov.uk/doc/local-authority/00CC,BarnsleyMBC,06/09/2022,5100327629,"1,226.83",CITY PLUMBING SUPPLIES,530034,BH,Direct - Building Items,403013
http://statistics.data.gov.uk/doc/local-authority/00CC,BarnsleyMBC,07/09/2022,5100327581,"1,124.40",CITY PLUMBING SUPPLIES,530034,BH,,
http://statistics.data.gov.uk/doc/local-authority/00CC,BarnsleyMBC,07/09/2022,5100327583,"1,660.20",CITY PLUMBING SUPPLIES,530034,BH,,
http://statistics.data.gov.uk/doc/local-authority/00CC,BarnsleyMBC,08/09/2022,5100327674,"1,084.59",CITY PLUMBING SUPPLIES,530034,BH,Direct - Building Items,403013
http://statistics.data.gov.uk/doc/local-authority/00CC,BarnsleyMBC,08/09/2022,5100327672,"1,183.89",CITY PLUMBING SUPPLIES,530034,BH,Direct - Building Items,403013
http://statistics.data.gov.uk/doc/local-authority/00CC,BarnsleyMBC,08/09/2022,5100327673,"1,183.89",CITY PLUMBING SUPPLIES,530034,BH,Direct - Building Items,403013
http://statistics.data.gov.uk/doc/local-authority/00CC,BarnsleyMBC,08/09/2022,5100327643,523.56,CITY PLUMBING SUPPLIES,530034,BH,,
http://statistics.data.gov.uk/doc/local-authority/00CC,BarnsleyMBC,08/09/2022,5100327638,"2,753.69",CITY PLUMBING SUPPLIES,530034,BH,,
http://statistics.data.gov.uk/doc/local-authority/00CC,BarnsleyMBC,12/09/2022,5100327786,805.04,CITY PLUMBING SUPPLIES,530034,BH,,
http://statistics.data.gov.uk/doc/local-authority/00CC,BarnsleyMBC,12/09/2022,5100327784,510.52,CITY PLUMBING SUPPLIES,530034,BH,,
http://statistics.data.gov.uk/doc/local-authority/00CC,BarnsleyMBC,12/09/2022,5100327857,683.54,CITY PLUMBING SUPPLIES,530034,BH,,
http://statistics.data.gov.uk/doc/local-authority/00CC,BarnsleyMBC,12/09/2022,5100327797,"2,011.12",CITY PLUMBING SUPPLIES,530034,BH,,
http://statistics.data.gov.uk/doc/local-authority/00CC,BarnsleyMBC,12/09/2022,5100327785,597.67,CITY PLUMBING SUPPLIES,530034,BH,,
http://statistics.data.gov.uk/doc/local-authority/00CC,BarnsleyMBC,13/09/2022,5100327791,"6,672.36",CITY PLUMBING SUPPLIES,530034,BH,,
http://statistics.data.gov.uk/doc/local-authority/00CC,BarnsleyMBC,13/09/2022,5100327871,"1,166.31",CITY PLUMBING SUPPLIES,530034,BH,Direct - Building Items,403013
http://statistics.data.gov.uk/doc/local-authority/00CC,BarnsleyMBC,14/09/2022,5100327872,"1,026.61",CITY PLUMBING SUPPLIES,530034,BH,Direct - Building Items,403013
http://statistics.data.gov.uk/doc/local-authority/00CC,BarnsleyMBC,15/09/2022,5100327989,"1,345.80",CITY PLUMBING SUPPLIES,530034,BH,Direct - Building Items,403013
http://statistics.data.gov.uk/doc/local-authority/00CC,BarnsleyMBC,23/09/2022,5100328123,"3,014.20",CITY PLUMBING SUPPLIES,530034,BH,Direct - Building Items,403013
http://statistics.data.gov.uk/doc/local-authority/00CC,BarnsleyMBC,03/08/2022,5100326646,"3,798.00",CLOSOMAT LTD,534392,BH,Direct - Building Items,403013
http://statistics.data.gov.uk/doc/local-authority/00CC,BarnsleyMBC,24/08/2022,5100327282,"3,798.00",CLOSOMAT LTD,534392,BH,Direct - Building Items,403013
http://statistics.data.gov.uk/doc/local-authority/00CC,BarnsleyMBC,29/09/2022,5100328345,618,CLOSOMAT LTD,534392,BH,Main contractor,506011
http://statistics.data.gov.uk/doc/local-authority/00CC,BarnsleyMBC,22/09/2022,5100328131,"1,989.60",Corgi Technical Services Limited,537701,BH,Training Courses,112001
http://statistics.data.gov.uk/doc/local-authority/00CC,BarnsleyMBC,10/08/2022,5200076675,"2,668.83",CORONA ENERGY,585148,BH,Energy - Gas,210002
http://statistics.data.gov.uk/doc/local-authority/00CC,BarnsleyMBC,10/08/2022,5200076676,"2,941.75",CORONA ENERGY,585148,BH,Energy - Gas,210002
http://statistics.data.gov.uk/doc/local-authority/00CC,BarnsleyMBC,10/08/2022,5200076679,653.9,CORONA ENERGY,585148,BH,Energy - Gas,210002
http://statistics.data.gov.uk/doc/local-authority/00CC,BarnsleyMBC,10/08/2022,5200076680,722.46,CORONA ENERGY,585148,BH,Energy - Gas,210002
http://statistics.data.gov.uk/doc/local-authority/00CC,BarnsleyMBC,10/08/2022,5200076682,"6,048.59",CORONA ENERGY,585148,BH,Energy - Gas,210002
http://statistics.data.gov.uk/doc/local-authority/00CC,BarnsleyMBC,10/08/2022,5200076690,"6,632.24",CORONA ENERGY,585148,BH,Energy - Gas,210002
http://statistics.data.gov.uk/doc/local-authority/00CC,BarnsleyMBC,10/08/2022,5200076691,"3,039.46",CORONA ENERGY,585148,BH,Energy - Gas,210002
http://statistics.data.gov.uk/doc/local-authority/00CC,BarnsleyMBC,10/08/2022,5200076694,560.01,CORONA ENERGY,585148,BH,Energy - Gas,210002
http://statistics.data.gov.uk/doc/local-authority/00CC,BarnsleyMBC,10/08/2022,5200076695,"5,470.53",CORONA ENERGY,585148,BH,Energy - Gas,210002
http://statistics.data.gov.uk/doc/local-authority/00CC,BarnsleyMBC,10/08/2022,5200076696,"4,638.04",CORONA ENERGY,585148,BH,Energy - Gas,210002
http://statistics.data.gov.uk/doc/local-authority/00CC,BarnsleyMBC,10/08/2022,5200076701,"2,172.10",CORONA ENERGY,585148,BH,Energy - Gas,210002
http://statistics.data.gov.uk/doc/local-authority/00CC,BarnsleyMBC,10/08/2022,5200076702,"7,479.36",CORONA ENERGY,585148,BH,Energy - Gas,210002
http://statistics.data.gov.uk/doc/local-authority/00CC,BarnsleyMBC,10/08/2022,5200076703,"3,230.49",CORONA ENERGY,585148,BH,Energy - Gas,210002
http://statistics.data.gov.uk/doc/local-authority/00CC,BarnsleyMBC,10/08/2022,5200076708,"1,812.11",CORONA ENERGY,585148,BH,Energy - Gas,210002
http://statistics.data.gov.uk/doc/local-authority/00CC,BarnsleyMBC,10/08/2022,5200076709,"9,436.64",CORONA ENERGY,585148,BH,Energy - Gas,210002
http://statistics.data.gov.uk/doc/local-authority/00CC,BarnsleyMBC,10/08/2022,5200076710,"4,798.09",CORONA ENERGY,585148,BH,Energy - Gas,210002
http://statistics.data.gov.uk/doc/local-authority/00CC,BarnsleyMBC,10/08/2022,5200076742,"4,940.83",CORONA ENERGY,585148,BH,Energy - Gas,210002
http://statistics.data.gov.uk/doc/local-authority/00CC,BarnsleyMBC,10/08/2022,5200076743,"6,253.31",CORONA ENERGY,585148,BH,Energy - Gas,210002
http://statistics.data.gov.uk/doc/local-authority/00CC,BarnsleyMBC,10/08/2022,5200076748,"6,508.71",CORONA ENERGY,585148,BH,Energy - Gas,210002
http://statistics.data.gov.uk/doc/local-authority/00CC,BarnsleyMBC,10/08/2022,5200076749,"8,525.06",CORONA ENERGY,585148,BH,Energy - Gas,210002
http://statistics.data.gov.uk/doc/local-authority/00CC,BarnsleyMBC,10/08/2022,5200076750,"4,141.25",CORONA ENERGY,585148,BH,Energy - Gas,210002
http://statistics.data.gov.uk/doc/local-authority/00CC,BarnsleyMBC,10/08/2022,5200076751,"2,708.09",CORONA ENERGY,585148,BH,Energy - Gas,210002
http://statistics.data.gov.uk/doc/local-authority/00CC,BarnsleyMBC,10/08/2022,5200076755,"2,461.11",CORONA ENERGY,585148,BH,Energy - Gas,210002
http://statistics.data.gov.uk/doc/local-authority/00CC,BarnsleyMBC,10/08/2022,5200076756,"12,859.96",CORONA ENERGY,585148,BH,Energy - Gas,210002
http://statistics.data.gov.uk/doc/local-authority/00CC,BarnsleyMBC,10/08/2022,5200076721,512.95,CORONA ENERGY,585148,BH,Energy - Gas,210002
http://statistics.data.gov.uk/doc/local-authority/00CC,BarnsleyMBC,10/08/2022,5200076722,"3,430.14",CORONA ENERGY,585148,BH,Energy - Gas,210002
http://statistics.data.gov.uk/doc/local-authority/00CC,BarnsleyMBC,10/08/2022,5200076714,"4,073.58",CORONA ENERGY,585148,BH,Energy - Gas,210002
http://statistics.data.gov.uk/doc/local-authority/00CC,BarnsleyMBC,10/08/2022,5200076712,989.57,CORONA ENERGY,585148,BH,Energy - Gas,210002
http://statistics.data.gov.uk/doc/local-authority/00CC,BarnsleyMBC,10/08/2022,5200076711,"1,477.06",CORONA ENERGY,585148,BH,Energy - Gas,210002
http://statistics.data.gov.uk/doc/local-authority/00CC,BarnsleyMBC,10/08/2022,5200076723,"4,150.80",CORONA ENERGY,585148,BH,Energy - Gas,210002
http://statistics.data.gov.uk/doc/local-authority/00CC,BarnsleyMBC,10/08/2022,5200076726,795.11,CORONA ENERGY,585148,BH,Energy - Gas,210002
http://statistics.data.gov.uk/doc/local-authority/00CC,BarnsleyMBC,10/08/2022,5200076727,"1,714.28",CORONA ENERGY,585148,BH,Energy - Gas,210002
http://statistics.data.gov.uk/doc/local-authority/00CC,BarnsleyMBC,10/08/2022,5200076729,"3,367.13",CORONA ENERGY,585148,BH,Energy - Gas,210002
http://statistics.data.gov.uk/doc/local-authority/00CC,BarnsleyMBC,10/08/2022,5200076735,"1,074.14",CORONA ENERGY,585148,BH,Energy - Gas,210002
http://statistics.data.gov.uk/doc/local-authority/00CC,BarnsleyMBC,10/08/2022,5200076737,"5,987.49",CORONA ENERGY,585148,BH,Energy - Gas,210002
http://statistics.data.gov.uk/doc/local-authority/00CC,BarnsleyMBC,10/08/2022,5200076738,"3,573.27",CORONA ENERGY,585148,BH,Energy - Gas,210002
http://statistics.data.gov.uk/doc/local-authority/00CC,BarnsleyMBC,10/08/2022,5200076663,"3,806.08",CORONA ENERGY,585148,BH,Energy - Gas,210002
http://statistics.data.gov.uk/doc/local-authority/00CC,BarnsleyMBC,10/08/2022,5200076664,"1,080.80",CORONA ENERGY,585148,BH,Energy - Gas,210002
http://statistics.data.gov.uk/doc/local-authority/00CC,BarnsleyMBC,10/08/2022,5200076665,752.94,CORONA ENERGY,585148,BH,Energy - Gas,210002
http://statistics.data.gov.uk/doc/local-authority/00CC,BarnsleyMBC,10/08/2022,5200076667,"3,571.73",CORONA ENERGY,585148,BH,Energy - Gas,210002
http://statistics.data.gov.uk/doc/local-authority/00CC,BarnsleyMBC,10/08/2022,5200076670,"2,160.41",CORONA ENERGY,585148,BH,Energy - Gas,210002
http://statistics.data.gov.uk/doc/local-authority/00CC,BarnsleyMBC,10/08/2022,5200076741,809.18,CORONA ENERGY,585148,BH,Energy - Gas,210002
http://statistics.data.gov.uk/doc/local-authority/00CC,BarnsleyMBC,19/07/2022,5100326004,"2,351.10",CT FLOORING,551316,BH,Main contractor,506011
http://statistics.data.gov.uk/doc/local-authority/00CC,BarnsleyMBC,19/07/2022,5100326003,"2,492.99",CT FLOORING,551316,BH,Main contractor,506011
http://statistics.data.gov.uk/doc/local-authority/00CC,BarnsleyMBC,02/08/2022,5100326459,"14,595.12",CT FLOORING,551316,BH,Main contractor,506011
http://statistics.data.gov.uk/doc/local-authority/00CC,BarnsleyMBC,18/08/2022,5100327027,"11,370.35",CT FLOORING,551316,BH,Main contractor,506011
http://statistics.data.gov.uk/doc/local-authority/00CC,BarnsleyMBC,29/09/2022,5100328183,"12,781.63",CT FLOORING,551316,BH,Main contractor,506011
http://statistics.data.gov.uk/doc/local-authority/00CC,BarnsleyMBC,12/08/2022,5100326890,900,D & I WINDOWS SOLUTIONS LTD,552226,BH,,
http://statistics.data.gov.uk/doc/local-authority/00CC,BarnsleyMBC,20/09/2022,5100327965,"1,179.84",D & I WINDOWS SOLUTIONS LTD,552226,BH,Main contractor,506011
http://statistics.data.gov.uk/doc/local-authority/00CC,BarnsleyMBC,21/07/2022,5100326163,840,David Tolson Partnership Ltd,536536,BH,Consultants Fees,424007
http://statistics.data.gov.uk/doc/local-authority/00CC,BarnsleyMBC,17/08/2022,5100327118,"3,885.00",David Tolson Partnership Ltd,536536,BH,Consultants Fees,424007
http://statistics.data.gov.uk/doc/local-authority/00CC,BarnsleyMBC,29/07/2022,5100325924,781.8,Devonshires Solicitors LLP,538532,BH,Legal Fees,424011
http://statistics.data.gov.uk/doc/local-authority/00CC,BarnsleyMBC,19/08/2022,5100326410,"5,400.00",Devonshires Solicitors LLP,538532,BH,Legal Fees,424011
http://statistics.data.gov.uk/doc/local-authority/00CC,BarnsleyMBC,30/09/2022,5100327651,604.8,Devonshires Solicitors LLP,538532,BH,Legal Fees,424011
http://statistics.data.gov.uk/doc/local-authority/00CC,BarnsleyMBC,11/07/2022,1900025741,"2,750.00",DODWORTH CRIME & SAFETY SUB GROUP,519054,BH,Expenses - Miscellaneous,460012
http://statistics.data.gov.uk/doc/local-authority/00CC,BarnsleyMBC,06/07/2022,5100325733,"1,050.00",DOYLE SECURITY LTD,500865,BH,Security Hire,424009
http://statistics.data.gov.uk/doc/local-authority/00CC,BarnsleyMBC,04/08/2022,5100326587,"1,050.00",DOYLE SECURITY LTD,500865,BH,Security Hire,424009
http://statistics.data.gov.uk/doc/local-authority/00CC,BarnsleyMBC,02/09/2022,5100327504,"1,050.00",DOYLE SECURITY LTD,500865,BH,Security Hire,424009
http://statistics.data.gov.uk/doc/local-authority/00CC,BarnsleyMBC,22/08/2022,5100327219,706.86,DriveTech UK Limited,535505,BH,Transport Leasing - Long term agreements,320001
http://statistics.data.gov.uk/doc/local-authority/00CC,BarnsleyMBC,12/07/2022,5100325766,732.16,DULUX DECORATING CENTRE,505156,BH,,
http://statistics.data.gov.uk/doc/local-authority/00CC,BarnsleyMBC,15/08/2022,5100326876,573.5,DULUX DECORATING CENTRE,505156,BH,,
http://statistics.data.gov.uk/doc/local-authority/00CC,BarnsleyMBC,27/07/2022,5100326417,"2,544.00",ECS GAS TRAINING LIMITED,530526,BH,Training Courses,112001
http://statistics.data.gov.uk/doc/local-authority/00CC,BarnsleyMBC,01/07/2022,5100325448,"34,098.96",EDMUNDSON ELECTRICAL LTD,512393,BH,,
http://statistics.data.gov.uk/doc/local-authority/00CC,BarnsleyMBC,01/07/2022,5100325510,"1,157.94",EDMUNDSON ELECTRICAL LTD,512393,BH,Equipment - Electrical Goods,400007
http://statistics.data.gov.uk/doc/local-authority/00CC,BarnsleyMBC,04/07/2022,5100325362,"1,116.00",EDMUNDSON ELECTRICAL LTD,512393,BH,,
http://statistics.data.gov.uk/doc/local-authority/00CC,BarnsleyMBC,05/07/2022,5100325438,"13,575.36",EDMUNDSON ELECTRICAL LTD,512393,BH,,
http://statistics.data.gov.uk/doc/local-authority/00CC,BarnsleyMBC,06/07/2022,5100325748,"6,971.10",EDMUNDSON ELECTRICAL LTD,512393,BH,,
http://statistics.data.gov.uk/doc/local-authority/00CC,BarnsleyMBC,06/07/2022,5100325566,"1,567.20",EDMUNDSON ELECTRICAL LTD,512393,BH,,
http://statistics.data.gov.uk/doc/local-authority/00CC,BarnsleyMBC,07/07/2022,5100325564,"59,376.00",EDMUNDSON ELECTRICAL LTD,512393,BH,,
http://statistics.data.gov.uk/doc/local-authority/00CC,BarnsleyMBC,11/07/2022,5100325874,"1,008.00",EDMUNDSON ELECTRICAL LTD,512393,BH,,
http://statistics.data.gov.uk/doc/local-authority/00CC,BarnsleyMBC,11/07/2022,5100325875,"1,008.00",EDMUNDSON ELECTRICAL LTD,512393,BH,,
http://statistics.data.gov.uk/doc/local-authority/00CC,BarnsleyMBC,12/07/2022,5100325792,"4,196.70",EDMUNDSON ELECTRICAL LTD,512393,BH,,
http://statistics.data.gov.uk/doc/local-authority/00CC,BarnsleyMBC,12/07/2022,5100325876,"1,008.00",EDMUNDSON ELECTRICAL LTD,512393,BH,,
http://statistics.data.gov.uk/doc/local-authority/00CC,BarnsleyMBC,14/07/2022,5100325930,"26,404.80",EDMUNDSON ELECTRICAL LTD,512393,BH,,
http://statistics.data.gov.uk/doc/local-authority/00CC,BarnsleyMBC,15/07/2022,5100325928,"1,080.00",EDMUNDSON ELECTRICAL LTD,512393,BH,,
http://statistics.data.gov.uk/doc/local-authority/00CC,BarnsleyMBC,19/07/2022,5100325987,"1,008.00",EDMUNDSON ELECTRICAL LTD,512393,BH,,
http://statistics.data.gov.uk/doc/local-authority/00CC,BarnsleyMBC,19/07/2022,5100325988,"1,008.00",EDMUNDSON ELECTRICAL LTD,512393,BH,,
http://statistics.data.gov.uk/doc/local-authority/00CC,BarnsleyMBC,19/07/2022,5100325986,"1,008.00",EDMUNDSON ELECTRICAL LTD,512393,BH,,
http://statistics.data.gov.uk/doc/local-authority/00CC,BarnsleyMBC,19/07/2022,5100325985,"1,008.00",EDMUNDSON ELECTRICAL LTD,512393,BH,,
http://statistics.data.gov.uk/doc/local-authority/00CC,BarnsleyMBC,19/07/2022,5100325989,"1,008.00",EDMUNDSON ELECTRICAL LTD,512393,BH,,
http://statistics.data.gov.uk/doc/local-authority/00CC,BarnsleyMBC,19/07/2022,5100325990,"1,008.00",EDMUNDSON ELECTRICAL LTD,512393,BH,,
http://statistics.data.gov.uk/doc/local-authority/00CC,BarnsleyMBC,19/07/2022,5100325991,"1,008.00",EDMUNDSON ELECTRICAL LTD,512393,BH,,
http://statistics.data.gov.uk/doc/local-authority/00CC,BarnsleyMBC,19/07/2022,5100325992,"1,008.00",EDMUNDSON ELECTRICAL LTD,512393,BH,,
http://statistics.data.gov.uk/doc/local-authority/00CC,BarnsleyMBC,20/07/2022,5100326084,629.1,EDMUNDSON ELECTRICAL LTD,512393,BH,,
http://statistics.data.gov.uk/doc/local-authority/00CC,BarnsleyMBC,21/07/2022,5100326083,"7,440.00",EDMUNDSON ELECTRICAL LTD,512393,BH,,
http://statistics.data.gov.uk/doc/local-authority/00CC,BarnsleyMBC,21/07/2022,5100326238,"1,836.60",EDMUNDSON ELECTRICAL LTD,512393,BH,,
http://statistics.data.gov.uk/doc/local-authority/00CC,BarnsleyMBC,21/07/2022,5100326239,768,EDMUNDSON ELECTRICAL LTD,512393,BH,Direct - Tools & Parts,403019
http://statistics.data.gov.uk/doc/local-authority/00CC,BarnsleyMBC,25/07/2022,5100326188,"1,104.00",EDMUNDSON ELECTRICAL LTD,512393,BH,,
http://statistics.data.gov.uk/doc/local-authority/00CC,BarnsleyMBC,27/07/2022,5100326334,"1,137.24",EDMUNDSON ELECTRICAL LTD,512393,BH,,
http://statistics.data.gov.uk/doc/local-authority/00CC,BarnsleyMBC,27/07/2022,5100326326,"9,398.16",EDMUNDSON ELECTRICAL LTD,512393,BH,,
http://statistics.data.gov.uk/doc/local-authority/00CC,BarnsleyMBC,27/07/2022,5100326389,"1,008.00",EDMUNDSON ELECTRICAL LTD,512393,BH,,
http://statistics.data.gov.uk/doc/local-authority/00CC,BarnsleyMBC,27/07/2022,5100326388,"1,008.00",EDMUNDSON ELECTRICAL LTD,512393,BH,,
http://statistics.data.gov.uk/doc/local-authority/00CC,BarnsleyMBC,27/07/2022,5100326387,"1,008.00",EDMUNDSON ELECTRICAL LTD,512393,BH,,
http://statistics.data.gov.uk/doc/local-authority/00CC,BarnsleyMBC,27/07/2022,5100326386,"1,008.00",EDMUNDSON ELECTRICAL LTD,512393,BH,,
http://statistics.data.gov.uk/doc/local-authority/00CC,BarnsleyMBC,27/07/2022,5100326382,"1,008.00",EDMUNDSON ELECTRICAL LTD,512393,BH,,
http://statistics.data.gov.uk/doc/local-authority/00CC,BarnsleyMBC,27/07/2022,5100326385,"1,008.00",EDMUNDSON ELECTRICAL LTD,512393,BH,,
http://statistics.data.gov.uk/doc/local-authority/00CC,BarnsleyMBC,27/07/2022,5100326383,"1,008.00",EDMUNDSON ELECTRICAL LTD,512393,BH,,
http://statistics.data.gov.uk/doc/local-authority/00CC,BarnsleyMBC,27/07/2022,5100326384,"1,008.00",EDMUNDSON ELECTRICAL LTD,512393,BH,,
http://statistics.data.gov.uk/doc/local-authority/00CC,BarnsleyMBC,29/07/2022,5100326350,"10,548.00",EDMUNDSON ELECTRICAL LTD,512393,BH,,
http://statistics.data.gov.uk/doc/local-authority/00CC,BarnsleyMBC,02/08/2022,5100326638,856.8,EDMUNDSON ELECTRICAL LTD,512393,BH,,
http://statistics.data.gov.uk/doc/local-authority/00CC,BarnsleyMBC,04/08/2022,5100326590,"2,460.00",EDMUNDSON ELECTRICAL LTD,512393,BH,,
http://statistics.data.gov.uk/doc/local-authority/00CC,BarnsleyMBC,05/08/2022,5100326608,"1,413.60",EDMUNDSON ELECTRICAL LTD,512393,BH,,
http://statistics.data.gov.uk/doc/local-authority/00CC,BarnsleyMBC,08/08/2022,5100326657,514.32,EDMUNDSON ELECTRICAL LTD,512393,BH,,
http://statistics.data.gov.uk/doc/local-authority/00CC,BarnsleyMBC,09/08/2022,5100326687,"1,008.00",EDMUNDSON ELECTRICAL LTD,512393,BH,,
http://statistics.data.gov.uk/doc/local-authority/00CC,BarnsleyMBC,09/08/2022,5100326685,"1,008.00",EDMUNDSON ELECTRICAL LTD,512393,BH,,
http://statistics.data.gov.uk/doc/local-authority/00CC,BarnsleyMBC,09/08/2022,5100326686,"1,008.00",EDMUNDSON ELECTRICAL LTD,512393,BH,,
http://statistics.data.gov.uk/doc/local-authority/00CC,BarnsleyMBC,09/08/2022,5100326689,"1,008.00",EDMUNDSON ELECTRICAL LTD,512393,BH,,
http://statistics.data.gov.uk/doc/local-authority/00CC,BarnsleyMBC,09/08/2022,5100326684,"1,008.00",EDMUNDSON ELECTRICAL LTD,512393,BH,,
http://statistics.data.gov.uk/doc/local-authority/00CC,BarnsleyMBC,09/08/2022,5100326683,"1,008.00",EDMUNDSON ELECTRICAL LTD,512393,BH,,
http://statistics.data.gov.uk/doc/local-authority/00CC,BarnsleyMBC,09/08/2022,5100326682,"1,008.00",EDMUNDSON ELECTRICAL LTD,512393,BH,,
http://statistics.data.gov.uk/doc/local-authority/00CC,BarnsleyMBC,09/08/2022,5100326688,"1,008.00",EDMUNDSON ELECTRICAL LTD,512393,BH,,
http://statistics.data.gov.uk/doc/local-authority/00CC,BarnsleyMBC,10/08/2022,5100326862,566.72,EDMUNDSON ELECTRICAL LTD,512393,BH,Equipment - Electrical Goods,400007
http://statistics.data.gov.uk/doc/local-authority/00CC,BarnsleyMBC,12/08/2022,5100326846,874.8,EDMUNDSON ELECTRICAL LTD,512393,BH,,
http://statistics.data.gov.uk/doc/local-authority/00CC,BarnsleyMBC,15/08/2022,5100326849,"6,888.00",EDMUNDSON ELECTRICAL LTD,512393,BH,,
http://statistics.data.gov.uk/doc/local-authority/00CC,BarnsleyMBC,17/08/2022,5100327007,"1,008.00",EDMUNDSON ELECTRICAL LTD,512393,BH,,
http://statistics.data.gov.uk/doc/local-authority/00CC,BarnsleyMBC,17/08/2022,5100327006,"1,008.00",EDMUNDSON ELECTRICAL LTD,512393,BH,,
http://statistics.data.gov.uk/doc/local-authority/00CC,BarnsleyMBC,17/08/2022,5100327017,"1,008.00",EDMUNDSON ELECTRICAL LTD,512393,BH,,
http://statistics.data.gov.uk/doc/local-authority/00CC,BarnsleyMBC,17/08/2022,5100327008,"1,008.00",EDMUNDSON ELECTRICAL LTD,512393,BH,,
http://statistics.data.gov.uk/doc/local-authority/00CC,BarnsleyMBC,17/08/2022,5100327009,"1,008.00",EDMUNDSON ELECTRICAL LTD,512393,BH,,
http://statistics.data.gov.uk/doc/local-authority/00CC,BarnsleyMBC,17/08/2022,5100327018,"1,008.00",EDMUNDSON ELECTRICAL LTD,512393,BH,,
http://statistics.data.gov.uk/doc/local-authority/00CC,BarnsleyMBC,17/08/2022,5100327010,"1,008.00",EDMUNDSON ELECTRICAL LTD,512393,BH,,
http://statistics.data.gov.uk/doc/local-authority/00CC,BarnsleyMBC,17/08/2022,5100327019,"1,008.00",EDMUNDSON ELECTRICAL LTD,512393,BH,,
http://statistics.data.gov.uk/doc/local-authority/00CC,BarnsleyMBC,18/08/2022,5100326985,612,EDMUNDSON ELECTRICAL LTD,512393,BH,,
http://statistics.data.gov.uk/doc/local-authority/00CC,BarnsleyMBC,22/08/2022,5100327162,"1,207.80",EDMUNDSON ELECTRICAL LTD,512393,BH,Direct - Tools & Parts,403019
http://statistics.data.gov.uk/doc/local-authority/00CC,BarnsleyMBC,25/08/2022,5100327345,"4,556.74",EDMUNDSON ELECTRICAL LTD,512393,BH,,
http://statistics.data.gov.uk/doc/local-authority/00CC,BarnsleyMBC,25/08/2022,5100327220,894.3,EDMUNDSON ELECTRICAL LTD,512393,BH,,
http://statistics.data.gov.uk/doc/local-authority/00CC,BarnsleyMBC,26/08/2022,5100327296,"3,436.80",EDMUNDSON ELECTRICAL LTD,512393,BH,,
http://statistics.data.gov.uk/doc/local-authority/00CC,BarnsleyMBC,26/08/2022,5100327294,"4,558.50",EDMUNDSON ELECTRICAL LTD,512393,BH,,
http://statistics.data.gov.uk/doc/local-authority/00CC,BarnsleyMBC,26/08/2022,5100327299,"6,873.60",EDMUNDSON ELECTRICAL LTD,512393,BH,,
http://statistics.data.gov.uk/doc/local-authority/00CC,BarnsleyMBC,30/08/2022,5100327295,"1,980.24",EDMUNDSON ELECTRICAL LTD,512393,BH,,
http://statistics.data.gov.uk/doc/local-authority/00CC,BarnsleyMBC,01/09/2022,5100327383,"2,593.80",EDMUNDSON ELECTRICAL LTD,512393,BH,,
http://statistics.data.gov.uk/doc/local-authority/00CC,BarnsleyMBC,02/09/2022,5100327602,"4,219.20",EDMUNDSON ELECTRICAL LTD,512393,BH,,
http://statistics.data.gov.uk/doc/local-authority/00CC,BarnsleyMBC,02/09/2022,5100327606,"17,280.00",EDMUNDSON ELECTRICAL LTD,512393,BH,,
http://statistics.data.gov.uk/doc/local-authority/00CC,BarnsleyMBC,08/09/2022,5100327650,"7,114.18",EDMUNDSON ELECTRICAL LTD,512393,BH,,
http://statistics.data.gov.uk/doc/local-authority/00CC,BarnsleyMBC,08/09/2022,5100327604,849.6,EDMUNDSON ELECTRICAL LTD,512393,BH,,
http://statistics.data.gov.uk/doc/local-authority/00CC,BarnsleyMBC,08/09/2022,5100327603,"6,328.80",EDMUNDSON ELECTRICAL LTD,512393,BH,,
http://statistics.data.gov.uk/doc/local-authority/00CC,BarnsleyMBC,08/09/2022,5100327768,"1,785.60",EDMUNDSON ELECTRICAL LTD,512393,BH,Direct - Tools & Parts,403019
http://statistics.data.gov.uk/doc/local-authority/00CC,BarnsleyMBC,08/09/2022,5100327773,"2,109.60",EDMUNDSON ELECTRICAL LTD,512393,BH,,
http://statistics.data.gov.uk/doc/local-authority/00CC,BarnsleyMBC,12/09/2022,5100327769,"1,100.04",EDMUNDSON ELECTRICAL LTD,512393,BH,,
http://statistics.data.gov.uk/doc/local-authority/00CC,BarnsleyMBC,13/09/2022,5100327833,"2,109.60",EDMUNDSON ELECTRICAL LTD,512393,BH,,
http://statistics.data.gov.uk/doc/local-authority/00CC,BarnsleyMBC,14/09/2022,5100327862,"5,612.54",EDMUNDSON ELECTRICAL LTD,512393,BH,,
http://statistics.data.gov.uk/doc/local-authority/00CC,BarnsleyMBC,14/09/2022,5100327832,883.2,EDMUNDSON ELECTRICAL LTD,512393,BH,,
http://statistics.data.gov.uk/doc/local-authority/00CC,BarnsleyMBC,15/09/2022,5100327831,"5,112.60",EDMUNDSON ELECTRICAL LTD,512393,BH,,
http://statistics.data.gov.uk/doc/local-authority/00CC,BarnsleyMBC,15/09/2022,5100327863,"2,109.60",EDMUNDSON ELECTRICAL LTD,512393,BH,,
http://statistics.data.gov.uk/doc/local-authority/00CC,BarnsleyMBC,16/09/2022,5100327879,"1,993.34",EDMUNDSON ELECTRICAL LTD,512393,BH,,
http://statistics.data.gov.uk/doc/local-authority/00CC,BarnsleyMBC,16/09/2022,5100328042,"4,219.20",EDMUNDSON ELECTRICAL LTD,512393,BH,,
http://statistics.data.gov.uk/doc/local-authority/00CC,BarnsleyMBC,20/09/2022,5100327927,"3,436.80",EDMUNDSON ELECTRICAL LTD,512393,BH,,
http://statistics.data.gov.uk/doc/local-authority/00CC,BarnsleyMBC,20/09/2022,5100327994,"1,718.40",EDMUNDSON ELECTRICAL LTD,512393,BH,,
http://statistics.data.gov.uk/doc/local-authority/00CC,BarnsleyMBC,21/09/2022,5100328104,"3,196.22",EDMUNDSON ELECTRICAL LTD,512393,BH,,
http://statistics.data.gov.uk/doc/local-authority/00CC,BarnsleyMBC,21/09/2022,5100328046,"2,886.91",EDMUNDSON ELECTRICAL LTD,512393,BH,,
http://statistics.data.gov.uk/doc/local-authority/00CC,BarnsleyMBC,22/09/2022,5100328116,"2,109.60",EDMUNDSON ELECTRICAL LTD,512393,BH,,
http://statistics.data.gov.uk/doc/local-authority/00CC,BarnsleyMBC,27/09/2022,5100328115,"6,186.24",EDMUNDSON ELECTRICAL LTD,512393,BH,,
http://statistics.data.gov.uk/doc/local-authority/00CC,BarnsleyMBC,27/09/2022,5100328117,"1,043.10",EDMUNDSON ELECTRICAL LTD,512393,BH,,
http://statistics.data.gov.uk/doc/local-authority/00CC,BarnsleyMBC,29/09/2022,5100328337,"2,109.60",EDMUNDSON ELECTRICAL LTD,512393,BH,,
http://statistics.data.gov.uk/doc/local-authority/00CC,BarnsleyMBC,29/09/2022,5100328338,"1,440.00",EDMUNDSON ELECTRICAL LTD,512393,BH,,
http://statistics.data.gov.uk/doc/local-authority/00CC,BarnsleyMBC,12/07/2022,5100325914,"1,285.96",EN:ABLE FUTURES CIC,539812,BH,Training Courses,112001
http://statistics.data.gov.uk/doc/local-authority/00CC,BarnsleyMBC,05/08/2022,5100326665,"1,334.30",EN:ABLE FUTURES CIC,539812,BH,Training Courses,112001
http://statistics.data.gov.uk/doc/local-authority/00CC,BarnsleyMBC,02/09/2022,5100327426,"1,334.30",EN:ABLE FUTURES CIC,539812,BH,Training Courses,112001
http://statistics.data.gov.uk/doc/local-authority/00CC,BarnsleyMBC,26/07/2022,5100326230,"8,345.96",ENERVEO LIMITED,552641,BH,Main contractor,506011
http://statistics.data.gov.uk/doc/local-authority/00CC,BarnsleyMBC,11/08/2022,5100326888,"15,019.60",ENERVEO LIMITED,552641,BH,Main contractor,506011
http://statistics.data.gov.uk/doc/local-authority/00CC,BarnsleyMBC,20/09/2022,5100327921,"10,732.79",ENERVEO LIMITED,552641,BH,Main contractor,506011
http://statistics.data.gov.uk/doc/local-authority/00CC,BarnsleyMBC,20/09/2022,5100328083,"83,512.38",ENERVEO LIMITED,552641,BH,Main contractor,506011
http://statistics.data.gov.uk/doc/local-authority/00CC,BarnsleyMBC,13/09/2022,5100327748,"1,947.60",EXPRESS BLINDS & CURTAINS LTD,510744,BH,Main contractor,506011
http://statistics.data.gov.uk/doc/local-authority/00CC,BarnsleyMBC,18/07/2022,5100326154,582.3,FIRST FIX IND. SUPPLIES LTD,510338,BH,Direct - Tools & Parts,403019
http://statistics.data.gov.uk/doc/local-authority/00CC,BarnsleyMBC,30/09/2022,5100328449,798,Flood Divert Ltd,552540,BH,Main contractor,506011
http://statistics.data.gov.uk/doc/local-authority/00CC,BarnsleyMBC,07/07/2022,5100325639,"9,223.20",GATENBY SANDERSON LTD,505736,BH,Basic Pay - Other,100025
http://statistics.data.gov.uk/doc/local-authority/00CC,BarnsleyMBC,16/08/2022,5100327095,"10,248.00",GATENBY SANDERSON LTD,505736,BH,Basic Pay - Other,100025
http://statistics.data.gov.uk/doc/local-authority/00CC,BarnsleyMBC,06/09/2022,5100327699,"23,570.40",GATENBY SANDERSON LTD,505736,BH,Basic Pay - Other,100025
http://statistics.data.gov.uk/doc/local-authority/00CC,BarnsleyMBC,13/09/2022,5100327747,795,GED LAING - PERSONAL SAFETY TRAININ,534814,BH,Training Courses,112001
http://statistics.data.gov.uk/doc/local-authority/00CC,BarnsleyMBC,02/09/2022,5100327600,550,GENTLE TOUCH THERAPY,540240,BH,Other Training Providers,506001
http://statistics.data.gov.uk/doc/local-authority/00CC,BarnsleyMBC,15/09/2022,5100328007,"3,660.00",GLENIS BRAILSFORD,527263,BH,Community Services,505045
http://statistics.data.gov.uk/doc/local-authority/00CC,BarnsleyMBC,15/09/2022,5100328008,"1,800.00",GLENIS BRAILSFORD,527263,BH,Community Services,505045
http://statistics.data.gov.uk/doc/local-authority/00CC,BarnsleyMBC,15/09/2022,5100328009,"2,100.00",GLENIS BRAILSFORD,527263,BH,Community Services,505045
http://statistics.data.gov.uk/doc/local-authority/00CC,BarnsleyMBC,01/07/2022,5100325273,581.76,Handletrade ltd,533871,BH,,
http://statistics.data.gov.uk/doc/local-authority/00CC,BarnsleyMBC,05/07/2022,5100325404,900,Handletrade ltd,533871,BH,,
http://statistics.data.gov.uk/doc/local-authority/00CC,BarnsleyMBC,01/08/2022,5100326374,"1,076.40",Handletrade ltd,533871,BH,Direct - Building Items,403013
http://statistics.data.gov.uk/doc/local-authority/00CC,BarnsleyMBC,05/08/2022,5100326611,823.8,Handletrade ltd,533871,BH,,
http://statistics.data.gov.uk/doc/local-authority/00CC,BarnsleyMBC,15/08/2022,5100326828,572.4,Handletrade ltd,533871,BH,,
http://statistics.data.gov.uk/doc/local-authority/00CC,BarnsleyMBC,01/09/2022,5100327467,784.51,Handletrade ltd,533871,BH,,
http://statistics.data.gov.uk/doc/local-authority/00CC,BarnsleyMBC,20/09/2022,5100327953,684.38,Handletrade ltd,533871,BH,,
http://statistics.data.gov.uk/doc/local-authority/00CC,BarnsleyMBC,29/09/2022,5100328175,507.53,Handletrade ltd,533871,BH,,
http://statistics.data.gov.uk/doc/local-authority/00CC,BarnsleyMBC,26/08/2022,5100327283,"6,210.00",HAVAS PEOPLE LIMITED,518176,BH,Subscriptions & Contributions,430002
http://statistics.data.gov.uk/doc/local-authority/00CC,BarnsleyMBC,11/08/2022,5100326899,"4,988.41",HEC Contracting Limited,532267,BH,Main contractor,506011
http://statistics.data.gov.uk/doc/local-authority/00CC,BarnsleyMBC,30/08/2022,5100327405,"3,162.00",HEC Contracting Limited,532267,BH,Main contractor,506011
http://statistics.data.gov.uk/doc/local-authority/00CC,BarnsleyMBC,13/09/2022,5100327875,"2,627.71",HEC Contracting Limited,532267,BH,Main contractor,506011
http://statistics.data.gov.uk/doc/local-authority/00CC,BarnsleyMBC,22/09/2022,5100328158,"14,127.06",HEC Contracting Limited,532267,BH,Main contractor,506011
http://statistics.data.gov.uk/doc/local-authority/00CC,BarnsleyMBC,30/09/2022,5100328421,"6,121.70",HEC Contracting Limited,532267,BH,Main contractor,506011
http://statistics.data.gov.uk/doc/local-authority/00CC,BarnsleyMBC,30/09/2022,5100328422,"15,619.20",HEC Contracting Limited,532267,BH,Main contractor,506011
http://statistics.data.gov.uk/doc/local-authority/00CC,BarnsleyMBC,27/07/2022,1900025793,"1,086.00",HETAS LTD,505988,BH,Subscriptions & Contributions,430002
http://statistics.data.gov.uk/doc/local-authority/00CC,BarnsleyMBC,01/08/2022,5100326557,"24,528.00",HighScaff Ltd,552646,BH,Main contractor,506011
http://statistics.data.gov.uk/doc/local-authority/00CC,BarnsleyMBC,01/07/2022,5100325366,570,HODGSON PHYSIOTHERAPY SERVICES LTD,517940,BH,Employee Welfare - Medical Care,115001
http://statistics.data.gov.uk/doc/local-authority/00CC,BarnsleyMBC,01/07/2022,5100325365,660,HODGSON PHYSIOTHERAPY SERVICES LTD,517940,BH,Employee Welfare - Medical Care,115001
http://statistics.data.gov.uk/doc/local-authority/00CC,BarnsleyMBC,12/09/2022,5100327433,660,HODGSON PHYSIOTHERAPY SERVICES LTD,517940,BH,Employee Welfare - Medical Care,115001
http://statistics.data.gov.uk/doc/local-authority/00CC,BarnsleyMBC,12/07/2022,5100325915,"2,061.88",HOME UTILITY GROUP LTD,534259,BH,Main contractor,506011
http://statistics.data.gov.uk/doc/local-authority/00CC,BarnsleyMBC,14/07/2022,5100325942,"2,588.94",HOME UTILITY GROUP LTD,534259,BH,Main contractor,506011
http://statistics.data.gov.uk/doc/local-authority/00CC,BarnsleyMBC,12/08/2022,5100326977,"11,823.22",HOME UTILITY GROUP LTD,534259,BH,Main contractor,506011
http://statistics.data.gov.uk/doc/local-authority/00CC,BarnsleyMBC,17/08/2022,5100327116,"5,403.00",HOME UTILITY GROUP LTD,534259,BH,Main contractor,506011
http://statistics.data.gov.uk/doc/local-authority/00CC,BarnsleyMBC,23/09/2022,5100328180,"18,382.99",HOME UTILITY GROUP LTD,534259,BH,Main contractor,506011
http://statistics.data.gov.uk/doc/local-authority/00CC,BarnsleyMBC,29/09/2022,5100328388,"23,670.38",HOME UTILITY GROUP LTD,534259,BH,Main contractor,506011
http://statistics.data.gov.uk/doc/local-authority/00CC,BarnsleyMBC,08/07/2022,5100325563,"2,340.00",Housing Diversity Network,537367,BH,Training Courses,112001
http://statistics.data.gov.uk/doc/local-authority/00CC,BarnsleyMBC,11/07/2022,5100325886,"1,506.00",HOUSING SYSTEMS LTD,529458,BH,Subscriptions & Contributions,430002
http://statistics.data.gov.uk/doc/local-authority/00CC,BarnsleyMBC,12/08/2022,5100326961,750.48,HOWDEN JOINERY LTD,501434,BH,Fixtures and Fittings - Purchase,220001
http://statistics.data.gov.uk/doc/local-authority/00CC,BarnsleyMBC,16/08/2022,5100326875,775.88,HOWDEN JOINERY LTD,501434,BH,Fixtures and Fittings - Purchase,220001
http://statistics.data.gov.uk/doc/local-authority/00CC,BarnsleyMBC,19/08/2022,5100327145,"1,217.71",HOWDEN JOINERY LTD,501434,BH,Fixtures and Fittings - Purchase,220001
http://statistics.data.gov.uk/doc/local-authority/00CC,BarnsleyMBC,01/09/2022,5100327468,549.65,HOWDEN JOINERY LTD,501434,BH,Fixtures and Fittings - Purchase,220001
http://statistics.data.gov.uk/doc/local-authority/00CC,BarnsleyMBC,14/09/2022,5100327917,"1,893.86",HOWDEN JOINERY LTD,501434,BH,Fixtures and Fittings - Purchase,220001
http://statistics.data.gov.uk/doc/local-authority/00CC,BarnsleyMBC,05/07/2022,5100325402,"2,280.00",HQN LTD,510400,BH,Training Courses,112001
http://statistics.data.gov.uk/doc/local-authority/00CC,BarnsleyMBC,14/07/2022,5100325831,900,HQN LTD,510400,BH,Training Courses,112001
http://statistics.data.gov.uk/doc/local-authority/00CC,BarnsleyMBC,25/07/2022,5100326089,900,HQN LTD,510400,BH,Training Courses,112001
http://statistics.data.gov.uk/doc/local-authority/00CC,BarnsleyMBC,12/07/2022,5100325907,561.6,IDEA LOCAL GOVERNMENT ASSOC,526377,BH,Subscriptions & Contributions,430002
http://statistics.data.gov.uk/doc/local-authority/00CC,BarnsleyMBC,12/08/2022,5100326832,"1,477.08",INSIGHT DIRECT (UK) LTD,510460,BH,ICT Services and Support,426014
http://statistics.data.gov.uk/doc/local-authority/00CC,BarnsleyMBC,25/07/2022,5100326179,810,Interior Panel Systems Ltd,534029,BH,,
http://statistics.data.gov.uk/doc/local-authority/00CC,BarnsleyMBC,22/08/2022,5100327187,843.84,Interior Panel Systems Ltd,534029,BH,,
http://statistics.data.gov.uk/doc/local-authority/00CC,BarnsleyMBC,26/08/2022,5100327272,"2,163.00",Interior Panel Systems Ltd,534029,BH,,
http://statistics.data.gov.uk/doc/local-authority/00CC,BarnsleyMBC,26/08/2022,5100327271,790.8,Interior Panel Systems Ltd,534029,BH,,
http://statistics.data.gov.uk/doc/local-authority/00CC,BarnsleyMBC,20/09/2022,5100327894,"2,163.00",Interior Panel Systems Ltd,534029,BH,,
http://statistics.data.gov.uk/doc/local-authority/00CC,BarnsleyMBC,19/08/2022,5100326934,"5,500.00",Jenga Training C.I.C,538776,BH,Other Training Providers,506001
http://statistics.data.gov.uk/doc/local-authority/00CC,BarnsleyMBC,19/08/2022,5100326795,"4,500.00",Jenga Training C.I.C,538776,BH,Other Training Providers,506001
http://statistics.data.gov.uk/doc/local-authority/00CC,BarnsleyMBC,20/09/2022,5100327225,500,Jenga Training C.I.C,538776,BH,Other Training Providers,506001
http://statistics.data.gov.uk/doc/local-authority/00CC,BarnsleyMBC,05/07/2022,5100325588,616.46,JEWSON LTD,501339,BH,,
http://statistics.data.gov.uk/doc/local-authority/00CC,BarnsleyMBC,05/07/2022,5100325604,"1,751.54",JEWSON LTD,501339,BH,,
http://statistics.data.gov.uk/doc/local-authority/00CC,BarnsleyMBC,05/07/2022,5100325583,680.4,JEWSON LTD,501339,BH,Direct - Building Items,403013
http://statistics.data.gov.uk/doc/local-authority/00CC,BarnsleyMBC,05/07/2022,5100325593,575.04,JEWSON LTD,501339,BH,,
http://statistics.data.gov.uk/doc/local-authority/00CC,BarnsleyMBC,06/07/2022,5100325688,796.06,JEWSON LTD,501339,BH,,
http://statistics.data.gov.uk/doc/local-authority/00CC,BarnsleyMBC,06/07/2022,5100325712,560.7,JEWSON LTD,501339,BH,,
http://statistics.data.gov.uk/doc/local-authority/00CC,BarnsleyMBC,06/07/2022,5100325702,588.04,JEWSON LTD,501339,BH,,
http://statistics.data.gov.uk/doc/local-authority/00CC,BarnsleyMBC,06/07/2022,5100325598,926.78,JEWSON LTD,501339,BH,,
http://statistics.data.gov.uk/doc/local-authority/00CC,BarnsleyMBC,06/07/2022,5100325618,738.65,JEWSON LTD,501339,BH,,
http://statistics.data.gov.uk/doc/local-authority/00CC,BarnsleyMBC,06/07/2022,5100325693,621.76,JEWSON LTD,501339,BH,Direct - Building Items,403013
http://statistics.data.gov.uk/doc/local-authority/00CC,BarnsleyMBC,06/07/2022,5100325674,569.42,JEWSON LTD,501339,BH,Direct - Building Items,403013
http://statistics.data.gov.uk/doc/local-authority/00CC,BarnsleyMBC,06/07/2022,5100325673,"3,956.42",JEWSON LTD,501339,BH,Direct - Building Items,403013
http://statistics.data.gov.uk/doc/local-authority/00CC,BarnsleyMBC,07/07/2022,5100325716,654.99,JEWSON LTD,501339,BH,,
http://statistics.data.gov.uk/doc/local-authority/00CC,BarnsleyMBC,11/07/2022,5100325873,"1,298.16",JEWSON LTD,501339,BH,,
http://statistics.data.gov.uk/doc/local-authority/00CC,BarnsleyMBC,11/07/2022,5100325898,506.84,JEWSON LTD,501339,BH,Equipment - Hire,400002
http://statistics.data.gov.uk/doc/local-authority/00CC,BarnsleyMBC,11/07/2022,5100325871,974.88,JEWSON LTD,501339,BH,,
http://statistics.data.gov.uk/doc/local-authority/00CC,BarnsleyMBC,12/07/2022,5100325797,"2,520.00",JEWSON LTD,501339,BH,Direct - Building Items,403013
http://statistics.data.gov.uk/doc/local-authority/00CC,BarnsleyMBC,12/07/2022,5100325908,"2,256.19",JEWSON LTD,501339,BH,,
http://statistics.data.gov.uk/doc/local-authority/00CC,BarnsleyMBC,19/07/2022,5100326021,"1,404.99",JEWSON LTD,501339,BH,,
http://statistics.data.gov.uk/doc/local-authority/00CC,BarnsleyMBC,19/07/2022,5100326032,831.6,JEWSON LTD,501339,BH,,
http://statistics.data.gov.uk/doc/local-authority/00CC,BarnsleyMBC,19/07/2022,5100326023,"1,227.60",JEWSON LTD,501339,BH,,
http://statistics.data.gov.uk/doc/local-authority/00CC,BarnsleyMBC,19/07/2022,5100326019,730.32,JEWSON LTD,501339,BH,,
http://statistics.data.gov.uk/doc/local-authority/00CC,BarnsleyMBC,19/07/2022,5100326182,"1,083.34",JEWSON LTD,501339,BH,Direct - Building Items,403013
http://statistics.data.gov.uk/doc/local-authority/00CC,BarnsleyMBC,19/07/2022,5100326118,"2,044.80",JEWSON LTD,501339,BH,,
http://statistics.data.gov.uk/doc/local-authority/00CC,BarnsleyMBC,19/07/2022,5100326056,"4,336.12",JEWSON LTD,501339,BH,Direct - Building Items,403013
http://statistics.data.gov.uk/doc/local-authority/00CC,BarnsleyMBC,20/07/2022,5100326121,924,JEWSON LTD,501339,BH,Direct - Building Items,403013
http://statistics.data.gov.uk/doc/local-authority/00CC,BarnsleyMBC,20/07/2022,5100326100,"1,067.80",JEWSON LTD,501339,BH,,
http://statistics.data.gov.uk/doc/local-authority/00CC,BarnsleyMBC,21/07/2022,5100326137,697.3,JEWSON LTD,501339,BH,Direct - Building Items,403013
http://statistics.data.gov.uk/doc/local-authority/00CC,BarnsleyMBC,21/07/2022,5100326240,734.4,JEWSON LTD,501339,BH,Direct - Building Items,403013
http://statistics.data.gov.uk/doc/local-authority/00CC,BarnsleyMBC,21/07/2022,5100326172,828,JEWSON LTD,501339,BH,Direct - UPVC Parts,403015
http://statistics.data.gov.uk/doc/local-authority/00CC,BarnsleyMBC,21/07/2022,5100326141,812.45,JEWSON LTD,501339,BH,,
http://statistics.data.gov.uk/doc/local-authority/00CC,BarnsleyMBC,21/07/2022,5100326130,960,JEWSON LTD,501339,BH,,
http://statistics.data.gov.uk/doc/local-authority/00CC,BarnsleyMBC,21/07/2022,5100326142,851.76,JEWSON LTD,501339,BH,Direct - Building Items,403013
http://statistics.data.gov.uk/doc/local-authority/00CC,BarnsleyMBC,26/07/2022,5100326237,749.52,JEWSON LTD,501339,BH,,
http://statistics.data.gov.uk/doc/local-authority/00CC,BarnsleyMBC,26/07/2022,5100326229,"1,057.59",JEWSON LTD,501339,BH,,
http://statistics.data.gov.uk/doc/local-authority/00CC,BarnsleyMBC,27/07/2022,5100326395,"3,090.17",JEWSON LTD,501339,BH,,
http://statistics.data.gov.uk/doc/local-authority/00CC,BarnsleyMBC,27/07/2022,5100326404,853.57,JEWSON LTD,501339,BH,Direct - Building Items,403013
http://statistics.data.gov.uk/doc/local-authority/00CC,BarnsleyMBC,28/07/2022,5100326470,813.12,JEWSON LTD,501339,BH,Direct - Building Items,403013
http://statistics.data.gov.uk/doc/local-authority/00CC,BarnsleyMBC,28/07/2022,5100326299,703.13,JEWSON LTD,501339,BH,,
http://statistics.data.gov.uk/doc/local-authority/00CC,BarnsleyMBC,29/07/2022,5100326346,590.4,JEWSON LTD,501339,BH,Direct - UPVC Parts,403015
http://statistics.data.gov.uk/doc/local-authority/00CC,BarnsleyMBC,29/07/2022,5100326324,"1,324.25",JEWSON LTD,501339,BH,Direct - UPVC Parts,403015
http://statistics.data.gov.uk/doc/local-authority/00CC,BarnsleyMBC,01/08/2022,5100326441,875.77,JEWSON LTD,501339,BH,,
http://statistics.data.gov.uk/doc/local-authority/00CC,BarnsleyMBC,01/08/2022,5100326440,592.2,JEWSON LTD,501339,BH,,
http://statistics.data.gov.uk/doc/local-authority/00CC,BarnsleyMBC,02/08/2022,5100326627,643.26,JEWSON LTD,501339,BH,,
http://statistics.data.gov.uk/doc/local-authority/00CC,BarnsleyMBC,02/08/2022,5100326582,991.81,JEWSON LTD,501339,BH,,
http://statistics.data.gov.uk/doc/local-authority/00CC,BarnsleyMBC,04/08/2022,5100326545,869.85,JEWSON LTD,501339,BH,,
http://statistics.data.gov.uk/doc/local-authority/00CC,BarnsleyMBC,08/08/2022,5100326661,648,JEWSON LTD,501339,BH,,
http://statistics.data.gov.uk/doc/local-authority/00CC,BarnsleyMBC,10/08/2022,5100326834,594.01,JEWSON LTD,501339,BH,Direct - Building Items,403013
http://statistics.data.gov.uk/doc/local-authority/00CC,BarnsleyMBC,11/08/2022,5100326772,"1,078.05",JEWSON LTD,501339,BH,,
http://statistics.data.gov.uk/doc/local-authority/00CC,BarnsleyMBC,11/08/2022,5100326779,570.89,JEWSON LTD,501339,BH,,
http://statistics.data.gov.uk/doc/local-authority/00CC,BarnsleyMBC,12/08/2022,5100326957,653.64,JEWSON LTD,501339,BH,,
http://statistics.data.gov.uk/doc/local-authority/00CC,BarnsleyMBC,12/08/2022,5100326948,"2,732.40",JEWSON LTD,501339,BH,,
http://statistics.data.gov.uk/doc/local-authority/00CC,BarnsleyMBC,12/08/2022,5100326954,539.67,JEWSON LTD,501339,BH,,
http://statistics.data.gov.uk/doc/local-authority/00CC,BarnsleyMBC,12/08/2022,5100326953,"3,184.03",JEWSON LTD,501339,BH,Direct - Building Items,403013
http://statistics.data.gov.uk/doc/local-authority/00CC,BarnsleyMBC,15/08/2022,5100326859,"1,672.42",JEWSON LTD,501339,BH,,
http://statistics.data.gov.uk/doc/local-authority/00CC,BarnsleyMBC,16/08/2022,5100326931,"1,458.61",JEWSON LTD,501339,BH,,
http://statistics.data.gov.uk/doc/local-authority/00CC,BarnsleyMBC,17/08/2022,5100326980,"1,095.42",JEWSON LTD,501339,BH,,
http://statistics.data.gov.uk/doc/local-authority/00CC,BarnsleyMBC,17/08/2022,5100327016,936.06,JEWSON LTD,501339,BH,,
http://statistics.data.gov.uk/doc/local-authority/00CC,BarnsleyMBC,18/08/2022,5100327076,"3,049.20",JEWSON LTD,501339,BH,Direct - Building Items,403013
http://statistics.data.gov.uk/doc/local-authority/00CC,BarnsleyMBC,18/08/2022,5100327072,"1,556.33",JEWSON LTD,501339,BH,Direct - Building Items,403013
http://statistics.data.gov.uk/doc/local-authority/00CC,BarnsleyMBC,18/08/2022,5100327070,"3,529.27",JEWSON LTD,501339,BH,Direct - Building Items,403013
http://statistics.data.gov.uk/doc/local-authority/00CC,BarnsleyMBC,18/08/2022,5100327075,840,JEWSON LTD,501339,BH,,
http://statistics.data.gov.uk/doc/local-authority/00CC,BarnsleyMBC,22/08/2022,5100327127,"1,024.22",JEWSON LTD,501339,BH,Direct - Building Items,403013
http://statistics.data.gov.uk/doc/local-authority/00CC,BarnsleyMBC,22/08/2022,5100327130,564.79,JEWSON LTD,501339,BH,,
http://statistics.data.gov.uk/doc/local-authority/00CC,BarnsleyMBC,22/08/2022,5100327121,556.2,JEWSON LTD,501339,BH,,
http://statistics.data.gov.uk/doc/local-authority/00CC,BarnsleyMBC,22/08/2022,5100327157,531.78,JEWSON LTD,501339,BH,Direct - Building Items,403013
http://statistics.data.gov.uk/doc/local-authority/00CC,BarnsleyMBC,22/08/2022,5100327131,"1,668.86",JEWSON LTD,501339,BH,,
http://statistics.data.gov.uk/doc/local-authority/00CC,BarnsleyMBC,26/08/2022,5100327301,"1,887.88",JEWSON LTD,501339,BH,,
http://statistics.data.gov.uk/doc/local-authority/00CC,BarnsleyMBC,26/08/2022,5100327315,547.2,JEWSON LTD,501339,BH,,
http://statistics.data.gov.uk/doc/local-authority/00CC,BarnsleyMBC,30/08/2022,5100327341,648.19,JEWSON LTD,501339,BH,,
http://statistics.data.gov.uk/doc/local-authority/00CC,BarnsleyMBC,01/09/2022,5100327494,"1,265.50",JEWSON LTD,501339,BH,Direct - Building Items,403013
http://statistics.data.gov.uk/doc/local-authority/00CC,BarnsleyMBC,01/09/2022,5100327411,"1,322.88",JEWSON LTD,501339,BH,,
http://statistics.data.gov.uk/doc/local-authority/00CC,BarnsleyMBC,01/09/2022,5100327413,864.9,JEWSON LTD,501339,BH,,
http://statistics.data.gov.uk/doc/local-authority/00CC,BarnsleyMBC,01/09/2022,5100327491,680.93,JEWSON LTD,501339,BH,,
http://statistics.data.gov.uk/doc/local-authority/00CC,BarnsleyMBC,01/09/2022,5100327412,"1,564.35",JEWSON LTD,501339,BH,,
http://statistics.data.gov.uk/doc/local-authority/00CC,BarnsleyMBC,01/09/2022,5100327555,"2,044.80",JEWSON LTD,501339,BH,,
http://statistics.data.gov.uk/doc/local-authority/00CC,BarnsleyMBC,01/09/2022,5100327488,-749.52,JEWSON LTD,501339,BH,,
http://statistics.data.gov.uk/doc/local-authority/00CC,BarnsleyMBC,02/09/2022,5100327613,832.8,JEWSON LTD,501339,BH,,
http://statistics.data.gov.uk/doc/local-authority/00CC,BarnsleyMBC,06/09/2022,5100327547,958.37,JEWSON LTD,501339,BH,,
http://statistics.data.gov.uk/doc/local-authority/00CC,BarnsleyMBC,07/09/2022,5100327739,"1,846.80",JEWSON LTD,501339,BH,,
http://statistics.data.gov.uk/doc/local-authority/00CC,BarnsleyMBC,08/09/2022,5100327658,611.8,JEWSON LTD,501339,BH,,
http://statistics.data.gov.uk/doc/local-authority/00CC,BarnsleyMBC,08/09/2022,5100327664,"1,468.37",JEWSON LTD,501339,BH,,
http://statistics.data.gov.uk/doc/local-authority/00CC,BarnsleyMBC,08/09/2022,5100327663,792,JEWSON LTD,501339,BH,Direct - Building Items,403013
http://statistics.data.gov.uk/doc/local-authority/00CC,BarnsleyMBC,09/09/2022,5100327750,892.46,JEWSON LTD,501339,BH,Direct - Building Items,403013
http://statistics.data.gov.uk/doc/local-authority/00CC,BarnsleyMBC,09/09/2022,5100327751,"3,962.78",JEWSON LTD,501339,BH,Direct - Building Items,403013
http://statistics.data.gov.uk/doc/local-authority/00CC,BarnsleyMBC,12/09/2022,5100327760,"1,540.26",JEWSON LTD,501339,BH,,
http://statistics.data.gov.uk/doc/local-authority/00CC,BarnsleyMBC,12/09/2022,5100327765,655.16,JEWSON LTD,501339,BH,,
http://statistics.data.gov.uk/doc/local-authority/00CC,BarnsleyMBC,12/09/2022,5100327860,"6,735.24",JEWSON LTD,501339,BH,Direct - Building Items,403013
http://statistics.data.gov.uk/doc/local-authority/00CC,BarnsleyMBC,13/09/2022,5100327809,770.22,JEWSON LTD,501339,BH,,
http://statistics.data.gov.uk/doc/local-authority/00CC,BarnsleyMBC,13/09/2022,5100327854,"2,608.75",JEWSON LTD,501339,BH,Direct - Building Items,403013
http://statistics.data.gov.uk/doc/local-authority/00CC,BarnsleyMBC,14/09/2022,5100327839,"1,907.85",JEWSON LTD,501339,BH,,
http://statistics.data.gov.uk/doc/local-authority/00CC,BarnsleyMBC,15/09/2022,5100327985,"1,635.07",JEWSON LTD,501339,BH,Direct - Building Items,403013
http://statistics.data.gov.uk/doc/local-authority/00CC,BarnsleyMBC,15/09/2022,5100327984,"3,666.00",JEWSON LTD,501339,BH,Direct - Building Items,403013
http://statistics.data.gov.uk/doc/local-authority/00CC,BarnsleyMBC,15/09/2022,5100327982,562.08,JEWSON LTD,501339,BH,,
http://statistics.data.gov.uk/doc/local-authority/00CC,BarnsleyMBC,15/09/2022,5100327887,"1,346.40",JEWSON LTD,501339,BH,,
http://statistics.data.gov.uk/doc/local-authority/00CC,BarnsleyMBC,15/09/2022,5100327892,"1,434.32",JEWSON LTD,501339,BH,,
http://statistics.data.gov.uk/doc/local-authority/00CC,BarnsleyMBC,16/09/2022,5100327983,918.84,JEWSON LTD,501339,BH,Direct - Building Items,403013
http://statistics.data.gov.uk/doc/local-authority/00CC,BarnsleyMBC,16/09/2022,5100327980,"1,242.00",JEWSON LTD,501339,BH,Direct - Building Items,403013
http://statistics.data.gov.uk/doc/local-authority/00CC,BarnsleyMBC,20/09/2022,5100327942,"1,094.40",JEWSON LTD,501339,BH,,
http://statistics.data.gov.uk/doc/local-authority/00CC,BarnsleyMBC,20/09/2022,5100327991,696.86,JEWSON LTD,501339,BH,,
http://statistics.data.gov.uk/doc/local-authority/00CC,BarnsleyMBC,20/09/2022,5100328034,531.55,JEWSON LTD,501339,BH,,
http://statistics.data.gov.uk/doc/local-authority/00CC,BarnsleyMBC,21/09/2022,5100328110,-694.8,JEWSON LTD,501339,BH,Direct - Building Items,403013
http://statistics.data.gov.uk/doc/local-authority/00CC,BarnsleyMBC,22/09/2022,5100328124,603.36,JEWSON LTD,501339,BH,Direct - Building Items,403013
http://statistics.data.gov.uk/doc/local-authority/00CC,BarnsleyMBC,23/09/2022,5100328079,"1,346.40",JEWSON LTD,501339,BH,,
http://statistics.data.gov.uk/doc/local-authority/00CC,BarnsleyMBC,27/09/2022,5100328150,"1,314.18",JEWSON LTD,501339,BH,,
http://statistics.data.gov.uk/doc/local-authority/00CC,BarnsleyMBC,27/09/2022,5100328148,534,JEWSON LTD,501339,BH,Direct - Building Items,403013
http://statistics.data.gov.uk/doc/local-authority/00CC,BarnsleyMBC,29/09/2022,5100328346,674.43,JEWSON LTD,501339,BH,Direct - Building Items,403013
http://statistics.data.gov.uk/doc/local-authority/00CC,BarnsleyMBC,30/09/2022,5100328415,694.8,JEWSON LTD,501339,BH,Direct - Building Items,403013
http://statistics.data.gov.uk/doc/local-authority/00CC,BarnsleyMBC,30/09/2022,5100328414,"1,324.80",JEWSON LTD,501339,BH,,
http://statistics.data.gov.uk/doc/local-authority/00CC,BarnsleyMBC,30/09/2022,5100328418,"1,788.46",JEWSON LTD,501339,BH,,
http://statistics.data.gov.uk/doc/local-authority/00CC,BarnsleyMBC,26/07/2022,5100326353,"1,080.00",KAREN HOUSE ASSOCIATES LTD,523762,BH,Training Courses,112001
http://statistics.data.gov.uk/doc/local-authority/00CC,BarnsleyMBC,22/09/2022,5100328159,"1,338.00",KAREN HOUSE ASSOCIATES LTD,523762,BH,Training Courses,112001
http://statistics.data.gov.uk/doc/local-authority/00CC,BarnsleyMBC,06/07/2022,5100325436,557.78,Kingfisher UPVC Doors and Windows L,535349,BH,Direct - Building Items,403013
http://statistics.data.gov.uk/doc/local-authority/00CC,BarnsleyMBC,06/07/2022,5100325435,557.63,Kingfisher UPVC Doors and Windows L,535349,BH,Direct - Building Items,403013
http://statistics.data.gov.uk/doc/local-authority/00CC,BarnsleyMBC,06/07/2022,5100325528,599.04,Kingfisher UPVC Doors and Windows L,535349,BH,Direct - UPVC Parts,403015
http://statistics.data.gov.uk/doc/local-authority/00CC,BarnsleyMBC,06/07/2022,5100325437,557.68,Kingfisher UPVC Doors and Windows L,535349,BH,Direct - UPVC Parts,403015
http://statistics.data.gov.uk/doc/local-authority/00CC,BarnsleyMBC,06/07/2022,5100325457,577.9,Kingfisher UPVC Doors and Windows L,535349,BH,Direct - UPVC Parts,403015
http://statistics.data.gov.uk/doc/local-authority/00CC,BarnsleyMBC,20/07/2022,5100326007,577.97,Kingfisher UPVC Doors and Windows L,535349,BH,Direct - UPVC Parts,403015
http://statistics.data.gov.uk/doc/local-authority/00CC,BarnsleyMBC,20/07/2022,5100326008,"1,364.60",Kingfisher UPVC Doors and Windows L,535349,BH,Direct - Building Items,403013
http://statistics.data.gov.uk/doc/local-authority/00CC,BarnsleyMBC,20/07/2022,5100326009,581.11,Kingfisher UPVC Doors and Windows L,535349,BH,Direct - Building Items,403013
http://statistics.data.gov.uk/doc/local-authority/00CC,BarnsleyMBC,12/09/2022,5100327741,706.85,Kingfisher UPVC Doors and Windows L,535349,BH,Direct - UPVC Parts,403015
http://statistics.data.gov.uk/doc/local-authority/00CC,BarnsleyMBC,12/09/2022,5100327718,592.55,Kingfisher UPVC Doors and Windows L,535349,BH,Direct - UPVC Parts,403015
http://statistics.data.gov.uk/doc/local-authority/00CC,BarnsleyMBC,12/09/2022,5100327727,764.18,Kingfisher UPVC Doors and Windows L,535349,BH,Direct - UPVC Parts,403015
http://statistics.data.gov.uk/doc/local-authority/00CC,BarnsleyMBC,12/09/2022,5100327726,557.63,Kingfisher UPVC Doors and Windows L,535349,BH,Direct - UPVC Parts,403015
http://statistics.data.gov.uk/doc/local-authority/00CC,BarnsleyMBC,12/09/2022,5100327725,675.6,Kingfisher UPVC Doors and Windows L,535349,BH,Direct - UPVC Parts,403015
http://statistics.data.gov.uk/doc/local-authority/00CC,BarnsleyMBC,12/09/2022,5100327728,738.2,Kingfisher UPVC Doors and Windows L,535349,BH,Direct - UPVC Parts,403015
http://statistics.data.gov.uk/doc/local-authority/00CC,BarnsleyMBC,12/09/2022,5100327724,646.76,Kingfisher UPVC Doors and Windows L,535349,BH,Direct - UPVC Parts,403015
http://statistics.data.gov.uk/doc/local-authority/00CC,BarnsleyMBC,21/09/2022,5100328003,516.73,Kingfisher UPVC Doors and Windows L,535349,BH,Direct - UPVC Parts,403015
http://statistics.data.gov.uk/doc/local-authority/00CC,BarnsleyMBC,21/09/2022,5100328090,516.8,Kingfisher UPVC Doors and Windows L,535349,BH,Direct - UPVC Parts,403015
http://statistics.data.gov.uk/doc/local-authority/00CC,BarnsleyMBC,21/09/2022,5100328004,516.66,Kingfisher UPVC Doors and Windows L,535349,BH,Direct - UPVC Parts,403015
http://statistics.data.gov.uk/doc/local-authority/00CC,BarnsleyMBC,21/09/2022,5100328093,516.73,Kingfisher UPVC Doors and Windows L,535349,BH,Direct - UPVC Parts,403015
http://statistics.data.gov.uk/doc/local-authority/00CC,BarnsleyMBC,21/09/2022,5100328036,516.75,Kingfisher UPVC Doors and Windows L,535349,BH,Direct - UPVC Parts,403015
http://statistics.data.gov.uk/doc/local-authority/00CC,BarnsleyMBC,21/09/2022,5100328005,516.66,Kingfisher UPVC Doors and Windows L,535349,BH,Direct - UPVC Parts,403015
http://statistics.data.gov.uk/doc/local-authority/00CC,BarnsleyMBC,21/09/2022,5100328035,516.75,Kingfisher UPVC Doors and Windows L,535349,BH,Direct - UPVC Parts,403015
http://statistics.data.gov.uk/doc/local-authority/00CC,BarnsleyMBC,21/09/2022,5100328002,516.68,Kingfisher UPVC Doors and Windows L,535349,BH,Direct - UPVC Parts,403015
http://statistics.data.gov.uk/doc/local-authority/00CC,BarnsleyMBC,21/09/2022,5100328092,577.95,Kingfisher UPVC Doors and Windows L,535349,BH,Direct - UPVC Parts,403015
http://statistics.data.gov.uk/doc/local-authority/00CC,BarnsleyMBC,21/09/2022,5100328091,557.73,Kingfisher UPVC Doors and Windows L,535349,BH,Direct - UPVC Parts,403015
http://statistics.data.gov.uk/doc/local-authority/00CC,BarnsleyMBC,27/09/2022,5100328190,611.99,Kingfisher UPVC Doors and Windows L,535349,BH,Direct - UPVC Parts,403015
http://statistics.data.gov.uk/doc/local-authority/00CC,BarnsleyMBC,27/09/2022,5100328186,516.71,Kingfisher UPVC Doors and Windows L,535349,BH,Direct - UPVC Parts,403015
http://statistics.data.gov.uk/doc/local-authority/00CC,BarnsleyMBC,27/09/2022,5100328191,581.78,Kingfisher UPVC Doors and Windows L,535349,BH,Direct - UPVC Parts,403015
http://statistics.data.gov.uk/doc/local-authority/00CC,BarnsleyMBC,27/09/2022,5100328192,628.83,Kingfisher UPVC Doors and Windows L,535349,BH,Direct - UPVC Parts,403015
http://statistics.data.gov.uk/doc/local-authority/00CC,BarnsleyMBC,27/09/2022,5100328187,516.75,Kingfisher UPVC Doors and Windows L,535349,BH,Direct - UPVC Parts,403015
http://statistics.data.gov.uk/doc/local-authority/00CC,BarnsleyMBC,27/09/2022,5100328184,625.82,Kingfisher UPVC Doors and Windows L,535349,BH,Direct - UPVC Parts,403015
http://statistics.data.gov.uk/doc/local-authority/00CC,BarnsleyMBC,27/09/2022,5100328189,516.8,Kingfisher UPVC Doors and Windows L,535349,BH,Direct - UPVC Parts,403015
http://statistics.data.gov.uk/doc/local-authority/00CC,BarnsleyMBC,27/09/2022,5100328188,516.75,Kingfisher UPVC Doors and Windows L,535349,BH,Direct - UPVC Parts,403015
http://statistics.data.gov.uk/doc/local-authority/00CC,BarnsleyMBC,27/09/2022,5100328185,516.73,Kingfisher UPVC Doors and Windows L,535349,BH,Direct - UPVC Parts,403015
http://statistics.data.gov.uk/doc/local-authority/00CC,BarnsleyMBC,25/08/2022,5100327179,"1,140.00",LEARNDIRECT LTD,540184,BH,Other Training Providers,506001
http://statistics.data.gov.uk/doc/local-authority/00CC,BarnsleyMBC,04/08/2022,5100326708,"4,987.20",Looking Local Ltd,533569,BH,Computer Software -  Licenses,426010
http://statistics.data.gov.uk/doc/local-authority/00CC,BarnsleyMBC,08/09/2022,5100327542,628.8,MAC METALCRAFT LTD,502154,BH,Direct - Building Items,403013
http://statistics.data.gov.uk/doc/local-authority/00CC,BarnsleyMBC,18/08/2022,5100327029,"13,858.28",MCP ENVIRONMENTAL LLP,551926,BH,Main contractor,506011
http://statistics.data.gov.uk/doc/local-authority/00CC,BarnsleyMBC,20/09/2022,5100327923,"4,417.34",MCP ENVIRONMENTAL LLP,551926,BH,Main contractor,506011
http://statistics.data.gov.uk/doc/local-authority/00CC,BarnsleyMBC,20/07/2022,5100326014,"14,290.80",MICHAEL DYSON ASSOCIATION LTD,505203,BH,Main contractor,506011
http://statistics.data.gov.uk/doc/local-authority/00CC,BarnsleyMBC,02/08/2022,5100326428,"23,961.60",MICHAEL DYSON ASSOCIATION LTD,505203,BH,Main contractor,506011
http://statistics.data.gov.uk/doc/local-authority/00CC,BarnsleyMBC,25/08/2022,5100327180,"13,255.20",MICHAEL DYSON ASSOCIATION LTD,505203,BH,Main contractor,506011
http://statistics.data.gov.uk/doc/local-authority/00CC,BarnsleyMBC,16/08/2022,5100327081,"1,686.62",MITSUBISHI ELECTRIC EUROPE BV,525543,BH,Direct - Building Items,403013
http://statistics.data.gov.uk/doc/local-authority/00CC,BarnsleyMBC,16/08/2022,5100325164,-594.86,MITSUBISHI ELECTRIC EUROPE BV,525543,BH,,
http://statistics.data.gov.uk/doc/local-authority/00CC,BarnsleyMBC,14/07/2022,5100326048,"1,092.00",MORGAN LAMBERT LTD,521517,BH,Main contractor,506011
http://statistics.data.gov.uk/doc/local-authority/00CC,BarnsleyMBC,14/07/2022,5100326046,"1,305.39",MORGAN LAMBERT LTD,521517,BH,Main contractor,506011
http://statistics.data.gov.uk/doc/local-authority/00CC,BarnsleyMBC,14/07/2022,5100325471,-722.4,MORGAN LAMBERT LTD,521517,BH,Main contractor,506011
http://statistics.data.gov.uk/doc/local-authority/00CC,BarnsleyMBC,15/07/2022,5100326077,546,MORGAN LAMBERT LTD,521517,BH,Main contractor,506011
http://statistics.data.gov.uk/doc/local-authority/00CC,BarnsleyMBC,08/08/2022,5100326810,"1,160.35",MORGAN LAMBERT LTD,521517,BH,Main contractor,506011
http://statistics.data.gov.uk/doc/local-authority/00CC,BarnsleyMBC,09/09/2022,5100327827,"1,794.00",MORGAN LAMBERT LTD,521517,BH,Main contractor,506011
http://statistics.data.gov.uk/doc/local-authority/00CC,BarnsleyMBC,12/09/2022,5100327870,966.97,MORGAN LAMBERT LTD,521517,BH,Main contractor,506011
http://statistics.data.gov.uk/doc/local-authority/00CC,BarnsleyMBC,13/07/2022,5100324911,"2,880.00",NEC Software Solutions UK Limited,538878,BH,Consultants Fees,424007
http://statistics.data.gov.uk/doc/local-authority/00CC,BarnsleyMBC,14/07/2022,5100325133,"5,280.00",NEC Software Solutions UK Limited,538878,BH,Consultants Fees,424007
http://statistics.data.gov.uk/doc/local-authority/00CC,BarnsleyMBC,21/07/2022,5100325439,"1,996.85",NEC Software Solutions UK Limited,538878,BH,Consultants Fees,424007
http://statistics.data.gov.uk/doc/local-authority/00CC,BarnsleyMBC,29/07/2022,5100325679,"42,000.00",NEC Software Solutions UK Limited,538878,BH,Computer Software -  Licenses,426010
http://statistics.data.gov.uk/doc/local-authority/00CC,BarnsleyMBC,03/08/2022,5100326167,"6,210.00",NEC Software Solutions UK Limited,538878,BH,Consultants Fees,424007
http://statistics.data.gov.uk/doc/local-authority/00CC,BarnsleyMBC,04/08/2022,5100326695,660,NEC Software Solutions UK Limited,538878,BH,Consultants Fees,424007
http://statistics.data.gov.uk/doc/local-authority/00CC,BarnsleyMBC,04/08/2022,5100326166,"3,369.68",NEC Software Solutions UK Limited,538878,BH,Consultants Fees,424007
http://statistics.data.gov.uk/doc/local-authority/00CC,BarnsleyMBC,02/09/2022,5100326809,"2,880.00",NEC Software Solutions UK Limited,538878,BH,Consultants Fees,424007
http://statistics.data.gov.uk/doc/local-authority/00CC,BarnsleyMBC,02/09/2022,5100326898,-900,NEC Software Solutions UK Limited,538878,BH,Consultants Fees,424007
http://statistics.data.gov.uk/doc/local-authority/00CC,BarnsleyMBC,09/09/2022,5100327403,"7,238.58",NEC Software Solutions UK Limited,538878,BH,Consultants Fees,424007
http://statistics.data.gov.uk/doc/local-authority/00CC,BarnsleyMBC,15/09/2022,5100327404,"5,340.00",NEC Software Solutions UK Limited,538878,BH,Consultants Fees,424007
http://statistics.data.gov.uk/doc/local-authority/00CC,BarnsleyMBC,21/09/2022,5100327851,"102,842.40",NEC Software Solutions UK Limited,538878,BH,Computer Software -  Maintenance,426009
http://statistics.data.gov.uk/doc/local-authority/00CC,BarnsleyMBC,26/08/2022,1900025903,752.4,NORTHERN GAS NETWORKS LIMITED,551776,BH,Main contractor,506011
http://statistics.data.gov.uk/doc/local-authority/00CC,BarnsleyMBC,28/09/2022,5100328240,"3,840.00",NORTHERN HOUSING CONSORTIUM LTD,506901,BH,Consultants Fees,424007
http://statistics.data.gov.uk/doc/local-authority/00CC,BarnsleyMBC,06/07/2022,1900025751,774,NPOWER YORKSHIRE LTD,510367,BH,Energy - Electricity,210001
http://statistics.data.gov.uk/doc/local-authority/00CC,BarnsleyMBC,06/07/2022,5100325678,"18,315.97",ONE CONSULTING & ASSOCIATES LIMITED,539742,BH,ICT Services and Support,426014
http://statistics.data.gov.uk/doc/local-authority/00CC,BarnsleyMBC,06/07/2022,5100325742,"17,964.00",ONE CONSULTING & ASSOCIATES LIMITED,539742,BH,ICT Services and Support,426014
http://statistics.data.gov.uk/doc/local-authority/00CC,BarnsleyMBC,06/07/2022,5100325717,"1,626.33",ONE CONSULTING & ASSOCIATES LIMITED,539742,BH,ICT Services and Support,426014
http://statistics.data.gov.uk/doc/local-authority/00CC,BarnsleyMBC,16/08/2022,5100327082,"27,577.04",ONE CONSULTING & ASSOCIATES LIMITED,539742,BH,ICT Services and Support,426014
http://statistics.data.gov.uk/doc/local-authority/00CC,BarnsleyMBC,09/08/2022,1900025854,556,One Time Vendor - Creditors,1000001,BH,Expenses - Compensation Payments,460010
http://statistics.data.gov.uk/doc/local-authority/00CC,BarnsleyMBC,24/08/2022,1900025913,500,One Time Vendor - Creditors,1000001,BH,Expenses - Compensation Payments,460010
http://statistics.data.gov.uk/doc/local-authority/00CC,BarnsleyMBC,26/08/2022,1900025923,890,One Time Vendor - Creditors,1000001,BH,Expenses - Compensation Payments,460010
http://statistics.data.gov.uk/doc/local-authority/00CC,BarnsleyMBC,05/09/2022,1900025953,"2,700.00",One Time Vendor - Creditors,1000001,BH,Expenses - Compensation Payments,460010
http://statistics.data.gov.uk/doc/local-authority/00CC,BarnsleyMBC,14/09/2022,1900025981,"1,000.00",One Time Vendor - Creditors,1000001,BH,Expenses - Compensation Payments,460010
http://statistics.data.gov.uk/doc/local-authority/00CC,BarnsleyMBC,22/07/2022,1900025801,"1,057.11",ONE TIME VENDORS - COMPANIES,1000025,BH,Waste & Recycling contract,506021
http://statistics.data.gov.uk/doc/local-authority/00CC,BarnsleyMBC,09/08/2022,1900025856,900,ONE TIME VENDORS - COMPANIES,1000025,BH,Training Courses,112001
http://statistics.data.gov.uk/doc/local-authority/00CC,BarnsleyMBC,10/08/2022,1900025864,780,ONE TIME VENDORS - COMPANIES,1000025,BH,Subscriptions & Contributions,430002
http://statistics.data.gov.uk/doc/local-authority/00CC,BarnsleyMBC,26/09/2022,1900026012,"1,750.00",ONE TIME VENDORS - COMPANIES,1000025,BH,Catering - External Provider,410002
http://statistics.data.gov.uk/doc/local-authority/00CC,BarnsleyMBC,07/07/2022,5100325525,"23,842.02",P BIDDLESTONE GROUNDWORKS & MAINT,551078,BH,Main contractor,506011
http://statistics.data.gov.uk/doc/local-authority/00CC,BarnsleyMBC,19/07/2022,5100326005,"30,684.00",P BIDDLESTONE GROUNDWORKS & MAINT,551078,BH,Main contractor,506011
http://statistics.data.gov.uk/doc/local-authority/00CC,BarnsleyMBC,07/09/2022,5100327561,"24,450.72",P BIDDLESTONE GROUNDWORKS & MAINT,551078,BH,Main contractor,506011
http://statistics.data.gov.uk/doc/local-authority/00CC,BarnsleyMBC,28/09/2022,5100328162,"9,990.60",P BIDDLESTONE GROUNDWORKS & MAINT,551078,BH,Main contractor,506011
http://statistics.data.gov.uk/doc/local-authority/00CC,BarnsleyMBC,13/07/2022,5100325923,"2,265.30",PENNINGTON CHOICES LTD,528871,BH,Basic pay - Agency Fees,104001
http://statistics.data.gov.uk/doc/local-authority/00CC,BarnsleyMBC,18/07/2022,5100326127,"3,768.30",PENNINGTON CHOICES LTD,528871,BH,Project development,430006
http://statistics.data.gov.uk/doc/local-authority/00CC,BarnsleyMBC,18/07/2022,5100326144,"5,415.58",PENNINGTON CHOICES LTD,528871,BH,Main contractor,506011
http://statistics.data.gov.uk/doc/local-authority/00CC,BarnsleyMBC,24/08/2022,5100327285,"6,655.50",PENNINGTON CHOICES LTD,528871,BH,Basic pay - Agency Fees,104001
http://statistics.data.gov.uk/doc/local-authority/00CC,BarnsleyMBC,23/09/2022,5100328182,"30,877.49",PIMSS DATA SYSTEMS,530902,BH,Computer Software -  Maintenance,426009
http://statistics.data.gov.uk/doc/local-authority/00CC,BarnsleyMBC,05/07/2022,5100325428,983.66,POWERTECH INDUSTRIAL LTD,502518,BH,,
http://statistics.data.gov.uk/doc/local-authority/00CC,BarnsleyMBC,22/07/2022,5100326278,"2,659.54",POWERTECH INDUSTRIAL LTD,502518,BH,,
http://statistics.data.gov.uk/doc/local-authority/00CC,BarnsleyMBC,22/07/2022,5100326275,"1,580.40",POWERTECH INDUSTRIAL LTD,502518,BH,,
http://statistics.data.gov.uk/doc/local-authority/00CC,BarnsleyMBC,22/07/2022,5100326277,947.16,POWERTECH INDUSTRIAL LTD,502518,BH,,
http://statistics.data.gov.uk/doc/local-authority/00CC,BarnsleyMBC,22/07/2022,5100326279,"13,662.00",POWERTECH INDUSTRIAL LTD,502518,BH,,
http://statistics.data.gov.uk/doc/local-authority/00CC,BarnsleyMBC,22/07/2022,5100326280,596.16,POWERTECH INDUSTRIAL LTD,502518,BH,,
http://statistics.data.gov.uk/doc/local-authority/00CC,BarnsleyMBC,26/07/2022,5100326380,610.8,POWERTECH INDUSTRIAL LTD,502518,BH,Direct - Tools & Parts,403019
http://statistics.data.gov.uk/doc/local-authority/00CC,BarnsleyMBC,27/07/2022,5100326429,504.04,POWERTECH INDUSTRIAL LTD,502518,BH,,
http://statistics.data.gov.uk/doc/local-authority/00CC,BarnsleyMBC,27/07/2022,5100326453,646.8,POWERTECH INDUSTRIAL LTD,502518,BH,Direct - Tools & Parts,403019
http://statistics.data.gov.uk/doc/local-authority/00CC,BarnsleyMBC,29/07/2022,5100326455,"1,814.40",POWERTECH INDUSTRIAL LTD,502518,BH,Equipment - Electrical Goods,400007
http://statistics.data.gov.uk/doc/local-authority/00CC,BarnsleyMBC,02/08/2022,5100326575,623.28,POWERTECH INDUSTRIAL LTD,502518,BH,,
http://statistics.data.gov.uk/doc/local-authority/00CC,BarnsleyMBC,02/08/2022,5100326631,644.4,POWERTECH INDUSTRIAL LTD,502518,BH,,
http://statistics.data.gov.uk/doc/local-authority/00CC,BarnsleyMBC,24/08/2022,5100327293,532.79,POWERTECH INDUSTRIAL LTD,502518,BH,Direct - Tools & Parts,403019
http://statistics.data.gov.uk/doc/local-authority/00CC,BarnsleyMBC,25/08/2022,5100327347,525.18,POWERTECH INDUSTRIAL LTD,502518,BH,Equipment - Repair and Maintenance,400003
http://statistics.data.gov.uk/doc/local-authority/00CC,BarnsleyMBC,25/08/2022,5100327352,"1,702.70",POWERTECH INDUSTRIAL LTD,502518,BH,,
http://statistics.data.gov.uk/doc/local-authority/00CC,BarnsleyMBC,31/08/2022,5100327393,596.4,POWERTECH INDUSTRIAL LTD,502518,BH,Direct - Tools & Parts,403019
http://statistics.data.gov.uk/doc/local-authority/00CC,BarnsleyMBC,13/09/2022,5100327807,858.41,POWERTECH INDUSTRIAL LTD,502518,BH,Direct - Tools & Parts,403019
http://statistics.data.gov.uk/doc/local-authority/00CC,BarnsleyMBC,28/09/2022,5100328284,869.15,POWERTECH INDUSTRIAL LTD,502518,BH,Direct - Tools & Parts,403019
http://statistics.data.gov.uk/doc/local-authority/00CC,BarnsleyMBC,28/09/2022,5100328293,683.88,POWERTECH INDUSTRIAL LTD,502518,BH,Direct - Tools & Parts,403019
http://statistics.data.gov.uk/doc/local-authority/00CC,BarnsleyMBC,28/09/2022,5100328298,517.19,POWERTECH INDUSTRIAL LTD,502518,BH,Direct - Tools & Parts,403019
http://statistics.data.gov.uk/doc/local-authority/00CC,BarnsleyMBC,29/09/2022,5100328358,644.4,POWERTECH INDUSTRIAL LTD,502518,BH,,
http://statistics.data.gov.uk/doc/local-authority/00CC,BarnsleyMBC,30/09/2022,5100328453,"1,635.55",POWERTECH INDUSTRIAL LTD,502518,BH,,
http://statistics.data.gov.uk/doc/local-authority/00CC,BarnsleyMBC,27/09/2022,5100328230,"1,290.00",Q1tum Ltd,534191,BH,Training Courses,112001
http://statistics.data.gov.uk/doc/local-authority/00CC,BarnsleyMBC,28/07/2022,5100326464,530.7,Quest Software International Ltd,532301,BH,Computer Software -  Licenses,426010
http://statistics.data.gov.uk/doc/local-authority/00CC,BarnsleyMBC,04/08/2022,5100326699,"1,979.70",Quest Software International Ltd,532301,BH,Computer Software -  Licenses,426010
http://statistics.data.gov.uk/doc/local-authority/00CC,BarnsleyMBC,01/07/2022,5200076450,825.65,REED SPECIALIST RECRUITMENT LTD,502689,BH,Basic pay - Agency Fees,104001
http://statistics.data.gov.uk/doc/local-authority/00CC,BarnsleyMBC,01/07/2022,5200076451,891.1,REED SPECIALIST RECRUITMENT LTD,502689,BH,Basic pay - Agency Fees,104001
http://statistics.data.gov.uk/doc/local-authority/00CC,BarnsleyMBC,01/07/2022,5200076452,889.33,REED SPECIALIST RECRUITMENT LTD,502689,BH,Basic pay - Agency Fees,104001
http://statistics.data.gov.uk/doc/local-authority/00CC,BarnsleyMBC,01/07/2022,5200076453,635.15,REED SPECIALIST RECRUITMENT LTD,502689,BH,Basic pay - Agency Fees,104001
http://statistics.data.gov.uk/doc/local-authority/00CC,BarnsleyMBC,01/07/2022,5200076454,825.65,REED SPECIALIST RECRUITMENT LTD,502689,BH,Basic pay - Agency Fees,104001
http://statistics.data.gov.uk/doc/local-authority/00CC,BarnsleyMBC,01/07/2022,5200076455,825.65,REED SPECIALIST RECRUITMENT LTD,502689,BH,Basic pay - Agency Fees,104001
http://statistics.data.gov.uk/doc/local-authority/00CC,BarnsleyMBC,01/07/2022,5200076472,838.97,REED SPECIALIST RECRUITMENT LTD,502689,BH,Basic pay - Agency Fees,104001
http://statistics.data.gov.uk/doc/local-authority/00CC,BarnsleyMBC,01/07/2022,5200076456,838.97,REED SPECIALIST RECRUITMENT LTD,502689,BH,Basic pay - Agency Fees,104001
http://statistics.data.gov.uk/doc/local-authority/00CC,BarnsleyMBC,01/07/2022,5200076457,501.17,REED SPECIALIST RECRUITMENT LTD,502689,BH,Basic pay - Agency Fees,104001
http://statistics.data.gov.uk/doc/local-authority/00CC,BarnsleyMBC,01/07/2022,5200076459,825.65,REED SPECIALIST RECRUITMENT LTD,502689,BH,Basic pay - Agency Fees,104001
http://statistics.data.gov.uk/doc/local-authority/00CC,BarnsleyMBC,01/07/2022,5200076460,747.62,REED SPECIALIST RECRUITMENT LTD,502689,BH,Basic pay - Agency Fees,104001
http://statistics.data.gov.uk/doc/local-authority/00CC,BarnsleyMBC,01/07/2022,5200076461,502.1,REED SPECIALIST RECRUITMENT LTD,502689,BH,Basic pay - Agency Fees,104001
http://statistics.data.gov.uk/doc/local-authority/00CC,BarnsleyMBC,01/07/2022,5200076462,"1,482.32",REED SPECIALIST RECRUITMENT LTD,502689,BH,Basic pay - Agency Fees,104001
http://statistics.data.gov.uk/doc/local-authority/00CC,BarnsleyMBC,01/07/2022,5200076470,"1,264.06",REED SPECIALIST RECRUITMENT LTD,502689,BH,Basic pay - Agency Fees,104001
http://statistics.data.gov.uk/doc/local-authority/00CC,BarnsleyMBC,01/07/2022,5200076463,887.11,REED SPECIALIST RECRUITMENT LTD,502689,BH,Basic pay - Agency Fees,104001
http://statistics.data.gov.uk/doc/local-authority/00CC,BarnsleyMBC,01/07/2022,5200076464,825.65,REED SPECIALIST RECRUITMENT LTD,502689,BH,Basic pay - Agency Fees,104001
http://statistics.data.gov.uk/doc/local-authority/00CC,BarnsleyMBC,01/07/2022,5200076465,635.15,REED SPECIALIST RECRUITMENT LTD,502689,BH,Basic pay - Agency Fees,104001
http://statistics.data.gov.uk/doc/local-authority/00CC,BarnsleyMBC,01/07/2022,5200076466,862.69,REED SPECIALIST RECRUITMENT LTD,502689,BH,Basic pay - Agency Fees,104001
http://statistics.data.gov.uk/doc/local-authority/00CC,BarnsleyMBC,01/07/2022,5200076467,747.56,REED SPECIALIST RECRUITMENT LTD,502689,BH,Basic pay - Agency Fees,104001
http://statistics.data.gov.uk/doc/local-authority/00CC,BarnsleyMBC,01/07/2022,5200076469,658.3,REED SPECIALIST RECRUITMENT LTD,502689,BH,Basic pay - Agency Fees,104001
http://statistics.data.gov.uk/doc/local-authority/00CC,BarnsleyMBC,01/07/2022,5200076468,747.62,REED SPECIALIST RECRUITMENT LTD,502689,BH,Basic pay - Agency Fees,104001
http://statistics.data.gov.uk/doc/local-authority/00CC,BarnsleyMBC,08/07/2022,5200076499,668.92,REED SPECIALIST RECRUITMENT LTD,502689,BH,Basic pay - Agency Fees,104001
http://statistics.data.gov.uk/doc/local-authority/00CC,BarnsleyMBC,08/07/2022,5200076498,635.15,REED SPECIALIST RECRUITMENT LTD,502689,BH,Basic pay - Agency Fees,104001
http://statistics.data.gov.uk/doc/local-authority/00CC,BarnsleyMBC,08/07/2022,5200076497,"1,264.06",REED SPECIALIST RECRUITMENT LTD,502689,BH,Basic pay - Agency Fees,104001
http://statistics.data.gov.uk/doc/local-authority/00CC,BarnsleyMBC,08/07/2022,5200076496,825.65,REED SPECIALIST RECRUITMENT LTD,502689,BH,Basic pay - Agency Fees,104001
http://statistics.data.gov.uk/doc/local-authority/00CC,BarnsleyMBC,08/07/2022,5200076495,747.62,REED SPECIALIST RECRUITMENT LTD,502689,BH,Basic pay - Agency Fees,104001
http://statistics.data.gov.uk/doc/local-authority/00CC,BarnsleyMBC,08/07/2022,5200076493,825.65,REED SPECIALIST RECRUITMENT LTD,502689,BH,Basic pay - Agency Fees,104001
http://statistics.data.gov.uk/doc/local-authority/00CC,BarnsleyMBC,08/07/2022,5200076492,862.69,REED SPECIALIST RECRUITMENT LTD,502689,BH,Basic pay - Agency Fees,104001
http://statistics.data.gov.uk/doc/local-authority/00CC,BarnsleyMBC,08/07/2022,5200076478,825.65,REED SPECIALIST RECRUITMENT LTD,502689,BH,Basic pay - Agency Fees,104001
http://statistics.data.gov.uk/doc/local-authority/00CC,BarnsleyMBC,08/07/2022,5200076479,889.33,REED SPECIALIST RECRUITMENT LTD,502689,BH,Basic pay - Agency Fees,104001
http://statistics.data.gov.uk/doc/local-authority/00CC,BarnsleyMBC,08/07/2022,5200076480,635.15,REED SPECIALIST RECRUITMENT LTD,502689,BH,Basic pay - Agency Fees,104001
http://statistics.data.gov.uk/doc/local-authority/00CC,BarnsleyMBC,08/07/2022,5200076481,825.65,REED SPECIALIST RECRUITMENT LTD,502689,BH,Basic pay - Agency Fees,104001
http://statistics.data.gov.uk/doc/local-authority/00CC,BarnsleyMBC,08/07/2022,5200076482,825.65,REED SPECIALIST RECRUITMENT LTD,502689,BH,Basic pay - Agency Fees,104001
http://statistics.data.gov.uk/doc/local-authority/00CC,BarnsleyMBC,08/07/2022,5200076483,838.97,REED SPECIALIST RECRUITMENT LTD,502689,BH,Basic pay - Agency Fees,104001
http://statistics.data.gov.uk/doc/local-authority/00CC,BarnsleyMBC,08/07/2022,5200076484,501.17,REED SPECIALIST RECRUITMENT LTD,502689,BH,Basic pay - Agency Fees,104001
http://statistics.data.gov.uk/doc/local-authority/00CC,BarnsleyMBC,08/07/2022,5200076485,535.18,REED SPECIALIST RECRUITMENT LTD,502689,BH,Basic pay - Agency Fees,104001
http://statistics.data.gov.uk/doc/local-authority/00CC,BarnsleyMBC,08/07/2022,5200076486,904.62,REED SPECIALIST RECRUITMENT LTD,502689,BH,Basic pay - Agency Fees,104001
http://statistics.data.gov.uk/doc/local-authority/00CC,BarnsleyMBC,08/07/2022,5200076487,747.62,REED SPECIALIST RECRUITMENT LTD,502689,BH,Basic pay - Agency Fees,104001
http://statistics.data.gov.uk/doc/local-authority/00CC,BarnsleyMBC,08/07/2022,5200076488,502.1,REED SPECIALIST RECRUITMENT LTD,502689,BH,Basic pay - Agency Fees,104001
http://statistics.data.gov.uk/doc/local-authority/00CC,BarnsleyMBC,08/07/2022,5200076489,"1,482.32",REED SPECIALIST RECRUITMENT LTD,502689,BH,Basic pay - Agency Fees,104001
http://statistics.data.gov.uk/doc/local-authority/00CC,BarnsleyMBC,08/07/2022,5200076490,886.22,REED SPECIALIST RECRUITMENT LTD,502689,BH,Basic pay - Agency Fees,104001
http://statistics.data.gov.uk/doc/local-authority/00CC,BarnsleyMBC,08/07/2022,5200076491,825.65,REED SPECIALIST RECRUITMENT LTD,502689,BH,Basic pay - Agency Fees,104001
http://statistics.data.gov.uk/doc/local-authority/00CC,BarnsleyMBC,15/07/2022,5200076503,722.52,REED SPECIALIST RECRUITMENT LTD,502689,BH,Basic pay - Agency Fees,104001
http://statistics.data.gov.uk/doc/local-authority/00CC,BarnsleyMBC,15/07/2022,5200076504,891.1,REED SPECIALIST RECRUITMENT LTD,502689,BH,Basic pay - Agency Fees,104001
http://statistics.data.gov.uk/doc/local-authority/00CC,BarnsleyMBC,15/07/2022,5200076505,635.15,REED SPECIALIST RECRUITMENT LTD,502689,BH,Basic pay - Agency Fees,104001
http://statistics.data.gov.uk/doc/local-authority/00CC,BarnsleyMBC,15/07/2022,5200076506,825.65,REED SPECIALIST RECRUITMENT LTD,502689,BH,Basic pay - Agency Fees,104001
http://statistics.data.gov.uk/doc/local-authority/00CC,BarnsleyMBC,15/07/2022,5200076507,658.3,REED SPECIALIST RECRUITMENT LTD,502689,BH,Basic pay - Agency Fees,104001
http://statistics.data.gov.uk/doc/local-authority/00CC,BarnsleyMBC,15/07/2022,5200076508,838.97,REED SPECIALIST RECRUITMENT LTD,502689,BH,Basic pay - Agency Fees,104001
http://statistics.data.gov.uk/doc/local-authority/00CC,BarnsleyMBC,15/07/2022,5200076509,660.03,REED SPECIALIST RECRUITMENT LTD,502689,BH,Basic pay - Agency Fees,104001
http://statistics.data.gov.uk/doc/local-authority/00CC,BarnsleyMBC,15/07/2022,5200076510,903.72,REED SPECIALIST RECRUITMENT LTD,502689,BH,Basic pay - Agency Fees,104001
http://statistics.data.gov.uk/doc/local-authority/00CC,BarnsleyMBC,15/07/2022,5200076523,838.97,REED SPECIALIST RECRUITMENT LTD,502689,BH,Basic pay - Agency Fees,104001
http://statistics.data.gov.uk/doc/local-authority/00CC,BarnsleyMBC,15/07/2022,5200076522,618.11,REED SPECIALIST RECRUITMENT LTD,502689,BH,Basic pay - Agency Fees,104001
http://statistics.data.gov.uk/doc/local-authority/00CC,BarnsleyMBC,15/07/2022,5200076521,635.15,REED SPECIALIST RECRUITMENT LTD,502689,BH,Basic pay - Agency Fees,104001
http://statistics.data.gov.uk/doc/local-authority/00CC,BarnsleyMBC,15/07/2022,5200076520,"1,264.06",REED SPECIALIST RECRUITMENT LTD,502689,BH,Basic pay - Agency Fees,104001
http://statistics.data.gov.uk/doc/local-authority/00CC,BarnsleyMBC,15/07/2022,5200076519,825.65,REED SPECIALIST RECRUITMENT LTD,502689,BH,Basic pay - Agency Fees,104001
http://statistics.data.gov.uk/doc/local-authority/00CC,BarnsleyMBC,15/07/2022,5200076513,747.62,REED SPECIALIST RECRUITMENT LTD,502689,BH,Basic pay - Agency Fees,104001
http://statistics.data.gov.uk/doc/local-authority/00CC,BarnsleyMBC,15/07/2022,5200076512,825.65,REED SPECIALIST RECRUITMENT LTD,502689,BH,Basic pay - Agency Fees,104001
http://statistics.data.gov.uk/doc/local-authority/00CC,BarnsleyMBC,15/07/2022,5200076511,747.55,REED SPECIALIST RECRUITMENT LTD,502689,BH,Basic pay - Agency Fees,104001
http://statistics.data.gov.uk/doc/local-authority/00CC,BarnsleyMBC,15/07/2022,5200076514,"1,482.32",REED SPECIALIST RECRUITMENT LTD,502689,BH,Basic pay - Agency Fees,104001
http://statistics.data.gov.uk/doc/local-authority/00CC,BarnsleyMBC,15/07/2022,5200076515,635.15,REED SPECIALIST RECRUITMENT LTD,502689,BH,Basic pay - Agency Fees,104001
http://statistics.data.gov.uk/doc/local-authority/00CC,BarnsleyMBC,15/07/2022,5200076516,758.69,REED SPECIALIST RECRUITMENT LTD,502689,BH,Basic pay - Agency Fees,104001
http://statistics.data.gov.uk/doc/local-authority/00CC,BarnsleyMBC,15/07/2022,5200076518,747.62,REED SPECIALIST RECRUITMENT LTD,502689,BH,Basic pay - Agency Fees,104001
http://statistics.data.gov.uk/doc/local-authority/00CC,BarnsleyMBC,20/07/2022,5200076549,924.04,REED SPECIALIST RECRUITMENT LTD,502689,BH,Basic pay - Agency Fees,104001
http://statistics.data.gov.uk/doc/local-authority/00CC,BarnsleyMBC,20/07/2022,5200076548,"1,046.70",REED SPECIALIST RECRUITMENT LTD,502689,BH,Basic pay - Agency Fees,104001
http://statistics.data.gov.uk/doc/local-authority/00CC,BarnsleyMBC,20/07/2022,5200076547,635.15,REED SPECIALIST RECRUITMENT LTD,502689,BH,Basic pay - Agency Fees,104001
http://statistics.data.gov.uk/doc/local-authority/00CC,BarnsleyMBC,20/07/2022,5200076546,"1,482.32",REED SPECIALIST RECRUITMENT LTD,502689,BH,Basic pay - Agency Fees,104001
http://statistics.data.gov.uk/doc/local-authority/00CC,BarnsleyMBC,20/07/2022,5200076545,502.1,REED SPECIALIST RECRUITMENT LTD,502689,BH,Basic pay - Agency Fees,104001
http://statistics.data.gov.uk/doc/local-authority/00CC,BarnsleyMBC,20/07/2022,5200076544,747.62,REED SPECIALIST RECRUITMENT LTD,502689,BH,Basic pay - Agency Fees,104001
http://statistics.data.gov.uk/doc/local-authority/00CC,BarnsleyMBC,20/07/2022,5200076543,825.65,REED SPECIALIST RECRUITMENT LTD,502689,BH,Basic pay - Agency Fees,104001
http://statistics.data.gov.uk/doc/local-authority/00CC,BarnsleyMBC,20/07/2022,5200076542,886.22,REED SPECIALIST RECRUITMENT LTD,502689,BH,Basic pay - Agency Fees,104001
http://statistics.data.gov.uk/doc/local-authority/00CC,BarnsleyMBC,20/07/2022,5200076541,588.71,REED SPECIALIST RECRUITMENT LTD,502689,BH,Basic pay - Agency Fees,104001
http://statistics.data.gov.uk/doc/local-authority/00CC,BarnsleyMBC,20/07/2022,5200076540,838.97,REED SPECIALIST RECRUITMENT LTD,502689,BH,Basic pay - Agency Fees,104001
http://statistics.data.gov.uk/doc/local-authority/00CC,BarnsleyMBC,20/07/2022,5200076539,591.36,REED SPECIALIST RECRUITMENT LTD,502689,BH,Basic pay - Agency Fees,104001
http://statistics.data.gov.uk/doc/local-authority/00CC,BarnsleyMBC,20/07/2022,5200076538,825.65,REED SPECIALIST RECRUITMENT LTD,502689,BH,Basic pay - Agency Fees,104001
http://statistics.data.gov.uk/doc/local-authority/00CC,BarnsleyMBC,20/07/2022,5200076537,635.15,REED SPECIALIST RECRUITMENT LTD,502689,BH,Basic pay - Agency Fees,104001
http://statistics.data.gov.uk/doc/local-authority/00CC,BarnsleyMBC,20/07/2022,5200076536,889.33,REED SPECIALIST RECRUITMENT LTD,502689,BH,Basic pay - Agency Fees,104001
http://statistics.data.gov.uk/doc/local-authority/00CC,BarnsleyMBC,20/07/2022,5200076535,825.65,REED SPECIALIST RECRUITMENT LTD,502689,BH,Basic pay - Agency Fees,104001
http://statistics.data.gov.uk/doc/local-authority/00CC,BarnsleyMBC,20/07/2022,5200076534,814.5,REED SPECIALIST RECRUITMENT LTD,502689,BH,Basic pay - Agency Fees,104001
http://statistics.data.gov.uk/doc/local-authority/00CC,BarnsleyMBC,20/07/2022,5200076552,747.62,REED SPECIALIST RECRUITMENT LTD,502689,BH,Basic pay - Agency Fees,104001
http://statistics.data.gov.uk/doc/local-authority/00CC,BarnsleyMBC,20/07/2022,5200076550,825.65,REED SPECIALIST RECRUITMENT LTD,502689,BH,Basic pay - Agency Fees,104001
http://statistics.data.gov.uk/doc/local-authority/00CC,BarnsleyMBC,20/07/2022,5200076553,825.65,REED SPECIALIST RECRUITMENT LTD,502689,BH,Basic pay - Agency Fees,104001
http://statistics.data.gov.uk/doc/local-authority/00CC,BarnsleyMBC,20/07/2022,5200076554,758.44,REED SPECIALIST RECRUITMENT LTD,502689,BH,Basic pay - Agency Fees,104001
http://statistics.data.gov.uk/doc/local-authority/00CC,BarnsleyMBC,20/07/2022,5200076555,635.15,REED SPECIALIST RECRUITMENT LTD,502689,BH,Basic pay - Agency Fees,104001
http://statistics.data.gov.uk/doc/local-authority/00CC,BarnsleyMBC,20/07/2022,5200076556,618.11,REED SPECIALIST RECRUITMENT LTD,502689,BH,Basic pay - Agency Fees,104001
http://statistics.data.gov.uk/doc/local-authority/00CC,BarnsleyMBC,20/07/2022,5200076558,680.27,REED SPECIALIST RECRUITMENT LTD,502689,BH,Basic pay - Agency Fees,104001
http://statistics.data.gov.uk/doc/local-authority/00CC,BarnsleyMBC,20/07/2022,5200076560,-825.65,REED SPECIALIST RECRUITMENT LTD,502689,BH,Basic pay - Agency Fees,104001
http://statistics.data.gov.uk/doc/local-authority/00CC,BarnsleyMBC,03/08/2022,5200076616,886.22,REED SPECIALIST RECRUITMENT LTD,502689,BH,Basic pay - Agency Fees,104001
http://statistics.data.gov.uk/doc/local-authority/00CC,BarnsleyMBC,03/08/2022,5200076628,635.15,REED SPECIALIST RECRUITMENT LTD,502689,BH,Basic pay - Agency Fees,104001
http://statistics.data.gov.uk/doc/local-authority/00CC,BarnsleyMBC,03/08/2022,5200076615,660.03,REED SPECIALIST RECRUITMENT LTD,502689,BH,Basic pay - Agency Fees,104001
http://statistics.data.gov.uk/doc/local-authority/00CC,BarnsleyMBC,03/08/2022,5200076614,838.97,REED SPECIALIST RECRUITMENT LTD,502689,BH,Basic pay - Agency Fees,104001
http://statistics.data.gov.uk/doc/local-authority/00CC,BarnsleyMBC,03/08/2022,5200076609,825.65,REED SPECIALIST RECRUITMENT LTD,502689,BH,Basic pay - Agency Fees,104001
http://statistics.data.gov.uk/doc/local-authority/00CC,BarnsleyMBC,03/08/2022,5200076610,889.33,REED SPECIALIST RECRUITMENT LTD,502689,BH,Basic pay - Agency Fees,104001
http://statistics.data.gov.uk/doc/local-authority/00CC,BarnsleyMBC,03/08/2022,5200076617,825.65,REED SPECIALIST RECRUITMENT LTD,502689,BH,Basic pay - Agency Fees,104001
http://statistics.data.gov.uk/doc/local-authority/00CC,BarnsleyMBC,03/08/2022,5200076618,747.62,REED SPECIALIST RECRUITMENT LTD,502689,BH,Basic pay - Agency Fees,104001
http://statistics.data.gov.uk/doc/local-authority/00CC,BarnsleyMBC,03/08/2022,5200076612,769.87,REED SPECIALIST RECRUITMENT LTD,502689,BH,Basic pay - Agency Fees,104001
http://statistics.data.gov.uk/doc/local-authority/00CC,BarnsleyMBC,03/08/2022,5200076619,502.1,REED SPECIALIST RECRUITMENT LTD,502689,BH,Basic pay - Agency Fees,104001
http://statistics.data.gov.uk/doc/local-authority/00CC,BarnsleyMBC,03/08/2022,5200076620,"1,482.32",REED SPECIALIST RECRUITMENT LTD,502689,BH,Basic pay - Agency Fees,104001
http://statistics.data.gov.uk/doc/local-authority/00CC,BarnsleyMBC,03/08/2022,5200076621,635.15,REED SPECIALIST RECRUITMENT LTD,502689,BH,Basic pay - Agency Fees,104001
http://statistics.data.gov.uk/doc/local-authority/00CC,BarnsleyMBC,03/08/2022,5200076613,825.65,REED SPECIALIST RECRUITMENT LTD,502689,BH,Basic pay - Agency Fees,104001
http://statistics.data.gov.uk/doc/local-authority/00CC,BarnsleyMBC,03/08/2022,5200076622,862.69,REED SPECIALIST RECRUITMENT LTD,502689,BH,Basic pay - Agency Fees,104001
http://statistics.data.gov.uk/doc/local-authority/00CC,BarnsleyMBC,03/08/2022,5200076623,747.56,REED SPECIALIST RECRUITMENT LTD,502689,BH,Basic pay - Agency Fees,104001
http://statistics.data.gov.uk/doc/local-authority/00CC,BarnsleyMBC,03/08/2022,5200076626,825.65,REED SPECIALIST RECRUITMENT LTD,502689,BH,Basic pay - Agency Fees,104001
http://statistics.data.gov.uk/doc/local-authority/00CC,BarnsleyMBC,03/08/2022,5200076629,618.11,REED SPECIALIST RECRUITMENT LTD,502689,BH,Basic pay - Agency Fees,104001
http://statistics.data.gov.uk/doc/local-authority/00CC,BarnsleyMBC,03/08/2022,5200076627,"1,264.06",REED SPECIALIST RECRUITMENT LTD,502689,BH,Basic pay - Agency Fees,104001
http://statistics.data.gov.uk/doc/local-authority/00CC,BarnsleyMBC,03/08/2022,5200076652,838.97,REED SPECIALIST RECRUITMENT LTD,502689,BH,Basic pay - Agency Fees,104001
http://statistics.data.gov.uk/doc/local-authority/00CC,BarnsleyMBC,03/08/2022,5200076651,835.42,REED SPECIALIST RECRUITMENT LTD,502689,BH,Basic pay - Agency Fees,104001
http://statistics.data.gov.uk/doc/local-authority/00CC,BarnsleyMBC,03/08/2022,5200076650,618.11,REED SPECIALIST RECRUITMENT LTD,502689,BH,Basic pay - Agency Fees,104001
http://statistics.data.gov.uk/doc/local-authority/00CC,BarnsleyMBC,03/08/2022,5200076649,515,REED SPECIALIST RECRUITMENT LTD,502689,BH,Basic pay - Agency Fees,104001
http://statistics.data.gov.uk/doc/local-authority/00CC,BarnsleyMBC,03/08/2022,5200076648,515,REED SPECIALIST RECRUITMENT LTD,502689,BH,Basic pay - Agency Fees,104001
http://statistics.data.gov.uk/doc/local-authority/00CC,BarnsleyMBC,03/08/2022,5200076647,825.65,REED SPECIALIST RECRUITMENT LTD,502689,BH,Basic pay - Agency Fees,104001
http://statistics.data.gov.uk/doc/local-authority/00CC,BarnsleyMBC,03/08/2022,5200076646,862.69,REED SPECIALIST RECRUITMENT LTD,502689,BH,Basic pay - Agency Fees,104001
http://statistics.data.gov.uk/doc/local-authority/00CC,BarnsleyMBC,03/08/2022,5200076645,635.15,REED SPECIALIST RECRUITMENT LTD,502689,BH,Basic pay - Agency Fees,104001
http://statistics.data.gov.uk/doc/local-authority/00CC,BarnsleyMBC,03/08/2022,5200076644,"1,100.07",REED SPECIALIST RECRUITMENT LTD,502689,BH,Basic pay - Agency Fees,104001
http://statistics.data.gov.uk/doc/local-authority/00CC,BarnsleyMBC,03/08/2022,5200076643,658.3,REED SPECIALIST RECRUITMENT LTD,502689,BH,Basic pay - Agency Fees,104001
http://statistics.data.gov.uk/doc/local-authority/00CC,BarnsleyMBC,03/08/2022,5200076642,747.62,REED SPECIALIST RECRUITMENT LTD,502689,BH,Basic pay - Agency Fees,104001
http://statistics.data.gov.uk/doc/local-authority/00CC,BarnsleyMBC,03/08/2022,5200076641,825.65,REED SPECIALIST RECRUITMENT LTD,502689,BH,Basic pay - Agency Fees,104001
http://statistics.data.gov.uk/doc/local-authority/00CC,BarnsleyMBC,03/08/2022,5200076630,835.42,REED SPECIALIST RECRUITMENT LTD,502689,BH,Basic pay - Agency Fees,104001
http://statistics.data.gov.uk/doc/local-authority/00CC,BarnsleyMBC,03/08/2022,5200076631,510.2,REED SPECIALIST RECRUITMENT LTD,502689,BH,Basic pay - Agency Fees,104001
http://statistics.data.gov.uk/doc/local-authority/00CC,BarnsleyMBC,03/08/2022,5200076640,886.22,REED SPECIALIST RECRUITMENT LTD,502689,BH,Basic pay - Agency Fees,104001
http://statistics.data.gov.uk/doc/local-authority/00CC,BarnsleyMBC,03/08/2022,5200076633,825.65,REED SPECIALIST RECRUITMENT LTD,502689,BH,Basic pay - Agency Fees,104001
http://statistics.data.gov.uk/doc/local-authority/00CC,BarnsleyMBC,03/08/2022,5200076639,887.11,REED SPECIALIST RECRUITMENT LTD,502689,BH,Basic pay - Agency Fees,104001
http://statistics.data.gov.uk/doc/local-authority/00CC,BarnsleyMBC,03/08/2022,5200076634,889.33,REED SPECIALIST RECRUITMENT LTD,502689,BH,Basic pay - Agency Fees,104001
http://statistics.data.gov.uk/doc/local-authority/00CC,BarnsleyMBC,03/08/2022,5200076636,825.65,REED SPECIALIST RECRUITMENT LTD,502689,BH,Basic pay - Agency Fees,104001
http://statistics.data.gov.uk/doc/local-authority/00CC,BarnsleyMBC,03/08/2022,5200076638,660.03,REED SPECIALIST RECRUITMENT LTD,502689,BH,Basic pay - Agency Fees,104001
http://statistics.data.gov.uk/doc/local-authority/00CC,BarnsleyMBC,03/08/2022,5200076637,838.97,REED SPECIALIST RECRUITMENT LTD,502689,BH,Basic pay - Agency Fees,104001
http://statistics.data.gov.uk/doc/local-authority/00CC,BarnsleyMBC,12/08/2022,5200076770,838.97,REED SPECIALIST RECRUITMENT LTD,502689,BH,Basic pay - Agency Fees,104001
http://statistics.data.gov.uk/doc/local-authority/00CC,BarnsleyMBC,12/08/2022,5200076769,758.7,REED SPECIALIST RECRUITMENT LTD,502689,BH,Basic pay - Agency Fees,104001
http://statistics.data.gov.uk/doc/local-authority/00CC,BarnsleyMBC,12/08/2022,5200076768,825.65,REED SPECIALIST RECRUITMENT LTD,502689,BH,Basic pay - Agency Fees,104001
http://statistics.data.gov.uk/doc/local-authority/00CC,BarnsleyMBC,12/08/2022,5200076766,583.66,REED SPECIALIST RECRUITMENT LTD,502689,BH,Basic pay - Agency Fees,104001
http://statistics.data.gov.uk/doc/local-authority/00CC,BarnsleyMBC,12/08/2022,5200076765,889.33,REED SPECIALIST RECRUITMENT LTD,502689,BH,Basic pay - Agency Fees,104001
http://statistics.data.gov.uk/doc/local-authority/00CC,BarnsleyMBC,12/08/2022,5200076771,660.03,REED SPECIALIST RECRUITMENT LTD,502689,BH,Basic pay - Agency Fees,104001
http://statistics.data.gov.uk/doc/local-authority/00CC,BarnsleyMBC,12/08/2022,5200076772,886.22,REED SPECIALIST RECRUITMENT LTD,502689,BH,Basic pay - Agency Fees,104001
http://statistics.data.gov.uk/doc/local-authority/00CC,BarnsleyMBC,12/08/2022,5200076764,825.65,REED SPECIALIST RECRUITMENT LTD,502689,BH,Basic pay - Agency Fees,104001
http://statistics.data.gov.uk/doc/local-authority/00CC,BarnsleyMBC,12/08/2022,5200076773,825.65,REED SPECIALIST RECRUITMENT LTD,502689,BH,Basic pay - Agency Fees,104001
http://statistics.data.gov.uk/doc/local-authority/00CC,BarnsleyMBC,12/08/2022,5200076774,747.62,REED SPECIALIST RECRUITMENT LTD,502689,BH,Basic pay - Agency Fees,104001
http://statistics.data.gov.uk/doc/local-authority/00CC,BarnsleyMBC,12/08/2022,5200076775,502.1,REED SPECIALIST RECRUITMENT LTD,502689,BH,Basic pay - Agency Fees,104001
http://statistics.data.gov.uk/doc/local-authority/00CC,BarnsleyMBC,12/08/2022,5200076776,502.1,REED SPECIALIST RECRUITMENT LTD,502689,BH,Basic pay - Agency Fees,104001
http://statistics.data.gov.uk/doc/local-authority/00CC,BarnsleyMBC,12/08/2022,5200076777,"1,482.32",REED SPECIALIST RECRUITMENT LTD,502689,BH,Basic pay - Agency Fees,104001
http://statistics.data.gov.uk/doc/local-authority/00CC,BarnsleyMBC,12/08/2022,5200076778,635.15,REED SPECIALIST RECRUITMENT LTD,502689,BH,Basic pay - Agency Fees,104001
http://statistics.data.gov.uk/doc/local-authority/00CC,BarnsleyMBC,12/08/2022,5200076780,747.62,REED SPECIALIST RECRUITMENT LTD,502689,BH,Basic pay - Agency Fees,104001
http://statistics.data.gov.uk/doc/local-authority/00CC,BarnsleyMBC,12/08/2022,5200076781,658.3,REED SPECIALIST RECRUITMENT LTD,502689,BH,Basic pay - Agency Fees,104001
http://statistics.data.gov.uk/doc/local-authority/00CC,BarnsleyMBC,12/08/2022,5200076782,635.15,REED SPECIALIST RECRUITMENT LTD,502689,BH,Basic pay - Agency Fees,104001
http://statistics.data.gov.uk/doc/local-authority/00CC,BarnsleyMBC,12/08/2022,5200076783,666.09,REED SPECIALIST RECRUITMENT LTD,502689,BH,Basic pay - Agency Fees,104001
http://statistics.data.gov.uk/doc/local-authority/00CC,BarnsleyMBC,12/08/2022,5200076784,838.97,REED SPECIALIST RECRUITMENT LTD,502689,BH,Basic pay - Agency Fees,104001
http://statistics.data.gov.uk/doc/local-authority/00CC,BarnsleyMBC,12/08/2022,5200076785,825.65,REED SPECIALIST RECRUITMENT LTD,502689,BH,Basic pay - Agency Fees,104001
http://statistics.data.gov.uk/doc/local-authority/00CC,BarnsleyMBC,12/08/2022,5200076793,886.22,REED SPECIALIST RECRUITMENT LTD,502689,BH,Basic pay - Agency Fees,104001
http://statistics.data.gov.uk/doc/local-authority/00CC,BarnsleyMBC,12/08/2022,5200076792,660.03,REED SPECIALIST RECRUITMENT LTD,502689,BH,Basic pay - Agency Fees,104001
http://statistics.data.gov.uk/doc/local-authority/00CC,BarnsleyMBC,12/08/2022,5200076794,825.65,REED SPECIALIST RECRUITMENT LTD,502689,BH,Basic pay - Agency Fees,104001
http://statistics.data.gov.uk/doc/local-authority/00CC,BarnsleyMBC,12/08/2022,5200076791,838.97,REED SPECIALIST RECRUITMENT LTD,502689,BH,Basic pay - Agency Fees,104001
http://statistics.data.gov.uk/doc/local-authority/00CC,BarnsleyMBC,12/08/2022,5200076790,758.7,REED SPECIALIST RECRUITMENT LTD,502689,BH,Basic pay - Agency Fees,104001
http://statistics.data.gov.uk/doc/local-authority/00CC,BarnsleyMBC,12/08/2022,5200076789,825.65,REED SPECIALIST RECRUITMENT LTD,502689,BH,Basic pay - Agency Fees,104001
http://statistics.data.gov.uk/doc/local-authority/00CC,BarnsleyMBC,12/08/2022,5200076795,747.62,REED SPECIALIST RECRUITMENT LTD,502689,BH,Basic pay - Agency Fees,104001
http://statistics.data.gov.uk/doc/local-authority/00CC,BarnsleyMBC,12/08/2022,5200076796,502.1,REED SPECIALIST RECRUITMENT LTD,502689,BH,Basic pay - Agency Fees,104001
http://statistics.data.gov.uk/doc/local-authority/00CC,BarnsleyMBC,12/08/2022,5200076797,502.1,REED SPECIALIST RECRUITMENT LTD,502689,BH,Basic pay - Agency Fees,104001
http://statistics.data.gov.uk/doc/local-authority/00CC,BarnsleyMBC,12/08/2022,5200076798,"1,482.32",REED SPECIALIST RECRUITMENT LTD,502689,BH,Basic pay - Agency Fees,104001
http://statistics.data.gov.uk/doc/local-authority/00CC,BarnsleyMBC,12/08/2022,5200076799,635.15,REED SPECIALIST RECRUITMENT LTD,502689,BH,Basic pay - Agency Fees,104001
http://statistics.data.gov.uk/doc/local-authority/00CC,BarnsleyMBC,12/08/2022,5200076801,747.62,REED SPECIALIST RECRUITMENT LTD,502689,BH,Basic pay - Agency Fees,104001
http://statistics.data.gov.uk/doc/local-authority/00CC,BarnsleyMBC,12/08/2022,5200076802,658.3,REED SPECIALIST RECRUITMENT LTD,502689,BH,Basic pay - Agency Fees,104001
http://statistics.data.gov.uk/doc/local-authority/00CC,BarnsleyMBC,12/08/2022,5200076803,635.15,REED SPECIALIST RECRUITMENT LTD,502689,BH,Basic pay - Agency Fees,104001
http://statistics.data.gov.uk/doc/local-authority/00CC,BarnsleyMBC,12/08/2022,5200076804,666.09,REED SPECIALIST RECRUITMENT LTD,502689,BH,Basic pay - Agency Fees,104001
http://statistics.data.gov.uk/doc/local-authority/00CC,BarnsleyMBC,12/08/2022,5200076805,838.97,REED SPECIALIST RECRUITMENT LTD,502689,BH,Basic pay - Agency Fees,104001
http://statistics.data.gov.uk/doc/local-authority/00CC,BarnsleyMBC,12/08/2022,5200076786,889.33,REED SPECIALIST RECRUITMENT LTD,502689,BH,Basic pay - Agency Fees,104001
http://statistics.data.gov.uk/doc/local-authority/00CC,BarnsleyMBC,12/08/2022,5200076787,583.66,REED SPECIALIST RECRUITMENT LTD,502689,BH,Basic pay - Agency Fees,104001
http://statistics.data.gov.uk/doc/local-authority/00CC,BarnsleyMBC,25/08/2022,5200076808,889.33,REED SPECIALIST RECRUITMENT LTD,502689,BH,Basic pay - Agency Fees,104001
http://statistics.data.gov.uk/doc/local-authority/00CC,BarnsleyMBC,25/08/2022,5200076810,506.44,REED SPECIALIST RECRUITMENT LTD,502689,BH,Basic pay - Agency Fees,104001
http://statistics.data.gov.uk/doc/local-authority/00CC,BarnsleyMBC,25/08/2022,5200076811,669.47,REED SPECIALIST RECRUITMENT LTD,502689,BH,Basic pay - Agency Fees,104001
http://statistics.data.gov.uk/doc/local-authority/00CC,BarnsleyMBC,25/08/2022,5200076812,747.55,REED SPECIALIST RECRUITMENT LTD,502689,BH,Basic pay - Agency Fees,104001
http://statistics.data.gov.uk/doc/local-authority/00CC,BarnsleyMBC,25/08/2022,5200076813,838.97,REED SPECIALIST RECRUITMENT LTD,502689,BH,Basic pay - Agency Fees,104001
http://statistics.data.gov.uk/doc/local-authority/00CC,BarnsleyMBC,25/08/2022,5200076814,526.29,REED SPECIALIST RECRUITMENT LTD,502689,BH,Basic pay - Agency Fees,104001
http://statistics.data.gov.uk/doc/local-authority/00CC,BarnsleyMBC,25/08/2022,5200076815,886.22,REED SPECIALIST RECRUITMENT LTD,502689,BH,Basic pay - Agency Fees,104001
http://statistics.data.gov.uk/doc/local-authority/00CC,BarnsleyMBC,25/08/2022,5200076816,825.65,REED SPECIALIST RECRUITMENT LTD,502689,BH,Basic pay - Agency Fees,104001
http://statistics.data.gov.uk/doc/local-authority/00CC,BarnsleyMBC,25/08/2022,5200076817,747.62,REED SPECIALIST RECRUITMENT LTD,502689,BH,Basic pay - Agency Fees,104001
http://statistics.data.gov.uk/doc/local-authority/00CC,BarnsleyMBC,25/08/2022,5200076826,618.11,REED SPECIALIST RECRUITMENT LTD,502689,BH,Basic pay - Agency Fees,104001
http://statistics.data.gov.uk/doc/local-authority/00CC,BarnsleyMBC,25/08/2022,5200076825,635.15,REED SPECIALIST RECRUITMENT LTD,502689,BH,Basic pay - Agency Fees,104001
http://statistics.data.gov.uk/doc/local-authority/00CC,BarnsleyMBC,25/08/2022,5200076824,825.65,REED SPECIALIST RECRUITMENT LTD,502689,BH,Basic pay - Agency Fees,104001
http://statistics.data.gov.uk/doc/local-authority/00CC,BarnsleyMBC,25/08/2022,5200076823,747.62,REED SPECIALIST RECRUITMENT LTD,502689,BH,Basic pay - Agency Fees,104001
http://statistics.data.gov.uk/doc/local-authority/00CC,BarnsleyMBC,25/08/2022,5200076822,747.62,REED SPECIALIST RECRUITMENT LTD,502689,BH,Basic pay - Agency Fees,104001
http://statistics.data.gov.uk/doc/local-authority/00CC,BarnsleyMBC,25/08/2022,5200076821,515,REED SPECIALIST RECRUITMENT LTD,502689,BH,Basic pay - Agency Fees,104001
http://statistics.data.gov.uk/doc/local-authority/00CC,BarnsleyMBC,25/08/2022,5200076820,635.15,REED SPECIALIST RECRUITMENT LTD,502689,BH,Basic pay - Agency Fees,104001
http://statistics.data.gov.uk/doc/local-authority/00CC,BarnsleyMBC,25/08/2022,5200076819,"1,178.64",REED SPECIALIST RECRUITMENT LTD,502689,BH,Basic pay - Agency Fees,104001
http://statistics.data.gov.uk/doc/local-authority/00CC,BarnsleyMBC,25/08/2022,5200076818,502.1,REED SPECIALIST RECRUITMENT LTD,502689,BH,Basic pay - Agency Fees,104001
http://statistics.data.gov.uk/doc/local-authority/00CC,BarnsleyMBC,25/08/2022,5200076843,618.11,REED SPECIALIST RECRUITMENT LTD,502689,BH,Basic pay - Agency Fees,104001
http://statistics.data.gov.uk/doc/local-authority/00CC,BarnsleyMBC,25/08/2022,5200076833,825.65,REED SPECIALIST RECRUITMENT LTD,502689,BH,Basic pay - Agency Fees,104001
http://statistics.data.gov.uk/doc/local-authority/00CC,BarnsleyMBC,25/08/2022,5200076834,838.97,REED SPECIALIST RECRUITMENT LTD,502689,BH,Basic pay - Agency Fees,104001
http://statistics.data.gov.uk/doc/local-authority/00CC,BarnsleyMBC,25/08/2022,5200076835,588.71,REED SPECIALIST RECRUITMENT LTD,502689,BH,Basic pay - Agency Fees,104001
http://statistics.data.gov.uk/doc/local-authority/00CC,BarnsleyMBC,25/08/2022,5200076836,825.65,REED SPECIALIST RECRUITMENT LTD,502689,BH,Basic pay - Agency Fees,104001
http://statistics.data.gov.uk/doc/local-authority/00CC,BarnsleyMBC,25/08/2022,5200076837,747.62,REED SPECIALIST RECRUITMENT LTD,502689,BH,Basic pay - Agency Fees,104001
http://statistics.data.gov.uk/doc/local-authority/00CC,BarnsleyMBC,25/08/2022,5200076838,502.1,REED SPECIALIST RECRUITMENT LTD,502689,BH,Basic pay - Agency Fees,104001
http://statistics.data.gov.uk/doc/local-authority/00CC,BarnsleyMBC,25/08/2022,5200076839,635.15,REED SPECIALIST RECRUITMENT LTD,502689,BH,Basic pay - Agency Fees,104001
http://statistics.data.gov.uk/doc/local-authority/00CC,BarnsleyMBC,25/08/2022,5200076840,515,REED SPECIALIST RECRUITMENT LTD,502689,BH,Basic pay - Agency Fees,104001
http://statistics.data.gov.uk/doc/local-authority/00CC,BarnsleyMBC,25/08/2022,5200076827,835.42,REED SPECIALIST RECRUITMENT LTD,502689,BH,Basic pay - Agency Fees,104001
http://statistics.data.gov.uk/doc/local-authority/00CC,BarnsleyMBC,25/08/2022,5200076844,835.42,REED SPECIALIST RECRUITMENT LTD,502689,BH,Basic pay - Agency Fees,104001
http://statistics.data.gov.uk/doc/local-authority/00CC,BarnsleyMBC,25/08/2022,5200076841,825.65,REED SPECIALIST RECRUITMENT LTD,502689,BH,Basic pay - Agency Fees,104001
http://statistics.data.gov.uk/doc/local-authority/00CC,BarnsleyMBC,25/08/2022,5200076842,635.15,REED SPECIALIST RECRUITMENT LTD,502689,BH,Basic pay - Agency Fees,104001
http://statistics.data.gov.uk/doc/local-authority/00CC,BarnsleyMBC,25/08/2022,5200076832,532.16,REED SPECIALIST RECRUITMENT LTD,502689,BH,Basic pay - Agency Fees,104001
http://statistics.data.gov.uk/doc/local-authority/00CC,BarnsleyMBC,25/08/2022,5200076828,838.97,REED SPECIALIST RECRUITMENT LTD,502689,BH,Basic pay - Agency Fees,104001
http://statistics.data.gov.uk/doc/local-authority/00CC,BarnsleyMBC,25/08/2022,5200076830,889.33,REED SPECIALIST RECRUITMENT LTD,502689,BH,Basic pay - Agency Fees,104001
http://statistics.data.gov.uk/doc/local-authority/00CC,BarnsleyMBC,25/08/2022,5200076831,539.72,REED SPECIALIST RECRUITMENT LTD,502689,BH,Basic pay - Agency Fees,104001
http://statistics.data.gov.uk/doc/local-authority/00CC,BarnsleyMBC,25/08/2022,5200076807,"-15,264.59",REED SPECIALIST RECRUITMENT LTD,502689,BH,Basic pay - Agency Fees,104001
http://statistics.data.gov.uk/doc/local-authority/00CC,BarnsleyMBC,02/09/2022,5200076906,747.62,REED SPECIALIST RECRUITMENT LTD,502689,BH,Basic pay - Agency Fees,104001
http://statistics.data.gov.uk/doc/local-authority/00CC,BarnsleyMBC,02/09/2022,5200076905,747.62,REED SPECIALIST RECRUITMENT LTD,502689,BH,Basic pay - Agency Fees,104001
http://statistics.data.gov.uk/doc/local-authority/00CC,BarnsleyMBC,02/09/2022,5200076896,762.72,REED SPECIALIST RECRUITMENT LTD,502689,BH,Basic pay - Agency Fees,104001
http://statistics.data.gov.uk/doc/local-authority/00CC,BarnsleyMBC,02/09/2022,5200076895,889.33,REED SPECIALIST RECRUITMENT LTD,502689,BH,Basic pay - Agency Fees,104001
http://statistics.data.gov.uk/doc/local-authority/00CC,BarnsleyMBC,02/09/2022,5200076897,758.7,REED SPECIALIST RECRUITMENT LTD,502689,BH,Basic pay - Agency Fees,104001
http://statistics.data.gov.uk/doc/local-authority/00CC,BarnsleyMBC,02/09/2022,5200076898,838.97,REED SPECIALIST RECRUITMENT LTD,502689,BH,Basic pay - Agency Fees,104001
http://statistics.data.gov.uk/doc/local-authority/00CC,BarnsleyMBC,02/09/2022,5200076899,825.65,REED SPECIALIST RECRUITMENT LTD,502689,BH,Basic pay - Agency Fees,104001
http://statistics.data.gov.uk/doc/local-authority/00CC,BarnsleyMBC,02/09/2022,5200076900,747.62,REED SPECIALIST RECRUITMENT LTD,502689,BH,Basic pay - Agency Fees,104001
http://statistics.data.gov.uk/doc/local-authority/00CC,BarnsleyMBC,02/09/2022,5200076901,502.1,REED SPECIALIST RECRUITMENT LTD,502689,BH,Basic pay - Agency Fees,104001
http://statistics.data.gov.uk/doc/local-authority/00CC,BarnsleyMBC,02/09/2022,5200076902,"1,482.32",REED SPECIALIST RECRUITMENT LTD,502689,BH,Basic pay - Agency Fees,104001
http://statistics.data.gov.uk/doc/local-authority/00CC,BarnsleyMBC,02/09/2022,5200076904,515,REED SPECIALIST RECRUITMENT LTD,502689,BH,Basic pay - Agency Fees,104001
http://statistics.data.gov.uk/doc/local-authority/00CC,BarnsleyMBC,02/09/2022,5200076903,515,REED SPECIALIST RECRUITMENT LTD,502689,BH,Basic pay - Agency Fees,104001
http://statistics.data.gov.uk/doc/local-authority/00CC,BarnsleyMBC,02/09/2022,5200076910,835.42,REED SPECIALIST RECRUITMENT LTD,502689,BH,Basic pay - Agency Fees,104001
http://statistics.data.gov.uk/doc/local-authority/00CC,BarnsleyMBC,02/09/2022,5200076909,618.11,REED SPECIALIST RECRUITMENT LTD,502689,BH,Basic pay - Agency Fees,104001
http://statistics.data.gov.uk/doc/local-authority/00CC,BarnsleyMBC,02/09/2022,5200076908,635.15,REED SPECIALIST RECRUITMENT LTD,502689,BH,Basic pay - Agency Fees,104001
http://statistics.data.gov.uk/doc/local-authority/00CC,BarnsleyMBC,02/09/2022,5200076907,658.3,REED SPECIALIST RECRUITMENT LTD,502689,BH,Basic pay - Agency Fees,104001
http://statistics.data.gov.uk/doc/local-authority/00CC,BarnsleyMBC,12/09/2022,5200076929,"1,482.32",REED SPECIALIST RECRUITMENT LTD,502689,BH,Basic pay - Agency Fees,104001
http://statistics.data.gov.uk/doc/local-authority/00CC,BarnsleyMBC,12/09/2022,5200076930,635.15,REED SPECIALIST RECRUITMENT LTD,502689,BH,Basic pay - Agency Fees,104001
http://statistics.data.gov.uk/doc/local-authority/00CC,BarnsleyMBC,12/09/2022,5200076931,515,REED SPECIALIST RECRUITMENT LTD,502689,BH,Basic pay - Agency Fees,104001
http://statistics.data.gov.uk/doc/local-authority/00CC,BarnsleyMBC,12/09/2022,5200076928,747.62,REED SPECIALIST RECRUITMENT LTD,502689,BH,Basic pay - Agency Fees,104001
http://statistics.data.gov.uk/doc/local-authority/00CC,BarnsleyMBC,12/09/2022,5200076936,835.42,REED SPECIALIST RECRUITMENT LTD,502689,BH,Basic pay - Agency Fees,104001
http://statistics.data.gov.uk/doc/local-authority/00CC,BarnsleyMBC,12/09/2022,5200076935,618.11,REED SPECIALIST RECRUITMENT LTD,502689,BH,Basic pay - Agency Fees,104001
http://statistics.data.gov.uk/doc/local-authority/00CC,BarnsleyMBC,12/09/2022,5200076934,635.15,REED SPECIALIST RECRUITMENT LTD,502689,BH,Basic pay - Agency Fees,104001
http://statistics.data.gov.uk/doc/local-authority/00CC,BarnsleyMBC,12/09/2022,5200076933,825.65,REED SPECIALIST RECRUITMENT LTD,502689,BH,Basic pay - Agency Fees,104001
http://statistics.data.gov.uk/doc/local-authority/00CC,BarnsleyMBC,12/09/2022,5200076932,747.62,REED SPECIALIST RECRUITMENT LTD,502689,BH,Basic pay - Agency Fees,104001
http://statistics.data.gov.uk/doc/local-authority/00CC,BarnsleyMBC,12/09/2022,5200076923,806.31,REED SPECIALIST RECRUITMENT LTD,502689,BH,Basic pay - Agency Fees,104001
http://statistics.data.gov.uk/doc/local-authority/00CC,BarnsleyMBC,12/09/2022,5200076924,825.65,REED SPECIALIST RECRUITMENT LTD,502689,BH,Basic pay - Agency Fees,104001
http://statistics.data.gov.uk/doc/local-authority/00CC,BarnsleyMBC,12/09/2022,5200076925,660.03,REED SPECIALIST RECRUITMENT LTD,502689,BH,Basic pay - Agency Fees,104001
http://statistics.data.gov.uk/doc/local-authority/00CC,BarnsleyMBC,12/09/2022,5200076919,546.73,REED SPECIALIST RECRUITMENT LTD,502689,BH,Basic pay - Agency Fees,104001
http://statistics.data.gov.uk/doc/local-authority/00CC,BarnsleyMBC,12/09/2022,5200076920,636.96,REED SPECIALIST RECRUITMENT LTD,502689,BH,Basic pay - Agency Fees,104001
http://statistics.data.gov.uk/doc/local-authority/00CC,BarnsleyMBC,12/09/2022,5200076921,520.92,REED SPECIALIST RECRUITMENT LTD,502689,BH,Basic pay - Agency Fees,104001
http://statistics.data.gov.uk/doc/local-authority/00CC,BarnsleyMBC,12/09/2022,5200076922,635.15,REED SPECIALIST RECRUITMENT LTD,502689,BH,Basic pay - Agency Fees,104001
http://statistics.data.gov.uk/doc/local-authority/00CC,BarnsleyMBC,12/09/2022,5200076926,825.65,REED SPECIALIST RECRUITMENT LTD,502689,BH,Basic pay - Agency Fees,104001
http://statistics.data.gov.uk/doc/local-authority/00CC,BarnsleyMBC,12/09/2022,5200076927,806.31,REED SPECIALIST RECRUITMENT LTD,502689,BH,Basic pay - Agency Fees,104001
http://statistics.data.gov.uk/doc/local-authority/00CC,BarnsleyMBC,16/09/2022,5200076954,658.3,REED SPECIALIST RECRUITMENT LTD,502689,BH,Basic pay - Agency Fees,104001
http://statistics.data.gov.uk/doc/local-authority/00CC,BarnsleyMBC,16/09/2022,5200076953,526.29,REED SPECIALIST RECRUITMENT LTD,502689,BH,Basic pay - Agency Fees,104001
http://statistics.data.gov.uk/doc/local-authority/00CC,BarnsleyMBC,16/09/2022,5200076952,668.92,REED SPECIALIST RECRUITMENT LTD,502689,BH,Basic pay - Agency Fees,104001
http://statistics.data.gov.uk/doc/local-authority/00CC,BarnsleyMBC,16/09/2022,5200076955,642.87,REED SPECIALIST RECRUITMENT LTD,502689,BH,Basic pay - Agency Fees,104001
http://statistics.data.gov.uk/doc/local-authority/00CC,BarnsleyMBC,16/09/2022,5200076956,596.08,REED SPECIALIST RECRUITMENT LTD,502689,BH,Basic pay - Agency Fees,104001
http://statistics.data.gov.uk/doc/local-authority/00CC,BarnsleyMBC,16/09/2022,5200076957,502.1,REED SPECIALIST RECRUITMENT LTD,502689,BH,Basic pay - Agency Fees,104001
http://statistics.data.gov.uk/doc/local-authority/00CC,BarnsleyMBC,16/09/2022,5200076946,709.07,REED SPECIALIST RECRUITMENT LTD,502689,BH,Basic pay - Agency Fees,104001
http://statistics.data.gov.uk/doc/local-authority/00CC,BarnsleyMBC,16/09/2022,5200076947,512.24,REED SPECIALIST RECRUITMENT LTD,502689,BH,Basic pay - Agency Fees,104001
http://statistics.data.gov.uk/doc/local-authority/00CC,BarnsleyMBC,16/09/2022,5200076951,658.3,REED SPECIALIST RECRUITMENT LTD,502689,BH,Basic pay - Agency Fees,104001
http://statistics.data.gov.uk/doc/local-authority/00CC,BarnsleyMBC,16/09/2022,5200076950,642.87,REED SPECIALIST RECRUITMENT LTD,502689,BH,Basic pay - Agency Fees,104001
http://statistics.data.gov.uk/doc/local-authority/00CC,BarnsleyMBC,16/09/2022,5200076968,838.97,REED SPECIALIST RECRUITMENT LTD,502689,BH,Basic pay - Agency Fees,104001
http://statistics.data.gov.uk/doc/local-authority/00CC,BarnsleyMBC,16/09/2022,5200076967,668.92,REED SPECIALIST RECRUITMENT LTD,502689,BH,Basic pay - Agency Fees,104001
http://statistics.data.gov.uk/doc/local-authority/00CC,BarnsleyMBC,16/09/2022,5200076965,506.44,REED SPECIALIST RECRUITMENT LTD,502689,BH,Basic pay - Agency Fees,104001
http://statistics.data.gov.uk/doc/local-authority/00CC,BarnsleyMBC,16/09/2022,5200076964,502.1,REED SPECIALIST RECRUITMENT LTD,502689,BH,Basic pay - Agency Fees,104001
http://statistics.data.gov.uk/doc/local-authority/00CC,BarnsleyMBC,16/09/2022,5200076963,889.14,REED SPECIALIST RECRUITMENT LTD,502689,BH,Basic pay - Agency Fees,104001
http://statistics.data.gov.uk/doc/local-authority/00CC,BarnsleyMBC,16/09/2022,5200076961,"1,261.35",REED SPECIALIST RECRUITMENT LTD,502689,BH,Basic pay - Agency Fees,104001
http://statistics.data.gov.uk/doc/local-authority/00CC,BarnsleyMBC,16/09/2022,5200076960,506.44,REED SPECIALIST RECRUITMENT LTD,502689,BH,Basic pay - Agency Fees,104001
http://statistics.data.gov.uk/doc/local-authority/00CC,BarnsleyMBC,16/09/2022,5200076959,"1,177.92",REED SPECIALIST RECRUITMENT LTD,502689,BH,Basic pay - Agency Fees,104001
http://statistics.data.gov.uk/doc/local-authority/00CC,BarnsleyMBC,16/09/2022,5200076949,506.44,REED SPECIALIST RECRUITMENT LTD,502689,BH,Basic pay - Agency Fees,104001
http://statistics.data.gov.uk/doc/local-authority/00CC,BarnsleyMBC,16/09/2022,5200076948,642.46,REED SPECIALIST RECRUITMENT LTD,502689,BH,Basic pay - Agency Fees,104001
http://statistics.data.gov.uk/doc/local-authority/00CC,BarnsleyMBC,16/09/2022,5200076958,502.1,REED SPECIALIST RECRUITMENT LTD,502689,BH,Basic pay - Agency Fees,104001
http://statistics.data.gov.uk/doc/local-authority/00CC,BarnsleyMBC,23/09/2022,5200076972,889.33,REED SPECIALIST RECRUITMENT LTD,502689,BH,Basic pay - Agency Fees,104001
http://statistics.data.gov.uk/doc/local-authority/00CC,BarnsleyMBC,23/09/2022,5200076973,583.14,REED SPECIALIST RECRUITMENT LTD,502689,BH,Basic pay - Agency Fees,104001
http://statistics.data.gov.uk/doc/local-authority/00CC,BarnsleyMBC,23/09/2022,5200076975,806.31,REED SPECIALIST RECRUITMENT LTD,502689,BH,Basic pay - Agency Fees,104001
http://statistics.data.gov.uk/doc/local-authority/00CC,BarnsleyMBC,23/09/2022,5200076976,825.65,REED SPECIALIST RECRUITMENT LTD,502689,BH,Basic pay - Agency Fees,104001
http://statistics.data.gov.uk/doc/local-authority/00CC,BarnsleyMBC,23/09/2022,5200076977,838.97,REED SPECIALIST RECRUITMENT LTD,502689,BH,Basic pay - Agency Fees,104001
http://statistics.data.gov.uk/doc/local-authority/00CC,BarnsleyMBC,23/09/2022,5200076978,588.71,REED SPECIALIST RECRUITMENT LTD,502689,BH,Basic pay - Agency Fees,104001
http://statistics.data.gov.uk/doc/local-authority/00CC,BarnsleyMBC,23/09/2022,5200076979,758.7,REED SPECIALIST RECRUITMENT LTD,502689,BH,Basic pay - Agency Fees,104001
http://statistics.data.gov.uk/doc/local-authority/00CC,BarnsleyMBC,23/09/2022,5200076980,806.31,REED SPECIALIST RECRUITMENT LTD,502689,BH,Basic pay - Agency Fees,104001
http://statistics.data.gov.uk/doc/local-authority/00CC,BarnsleyMBC,23/09/2022,5200076981,606.2,REED SPECIALIST RECRUITMENT LTD,502689,BH,Basic pay - Agency Fees,104001
http://statistics.data.gov.uk/doc/local-authority/00CC,BarnsleyMBC,23/09/2022,5200076990,838.97,REED SPECIALIST RECRUITMENT LTD,502689,BH,Basic pay - Agency Fees,104001
http://statistics.data.gov.uk/doc/local-authority/00CC,BarnsleyMBC,23/09/2022,5200076988,635.15,REED SPECIALIST RECRUITMENT LTD,502689,BH,Basic pay - Agency Fees,104001
http://statistics.data.gov.uk/doc/local-authority/00CC,BarnsleyMBC,23/09/2022,5200076986,747.62,REED SPECIALIST RECRUITMENT LTD,502689,BH,Basic pay - Agency Fees,104001
http://statistics.data.gov.uk/doc/local-authority/00CC,BarnsleyMBC,23/09/2022,5200076984,"1,660.02",REED SPECIALIST RECRUITMENT LTD,502689,BH,Basic pay - Agency Fees,104001
http://statistics.data.gov.uk/doc/local-authority/00CC,BarnsleyMBC,23/09/2022,5200076982,"1,482.78",REED SPECIALIST RECRUITMENT LTD,502689,BH,Basic pay - Agency Fees,104001
http://statistics.data.gov.uk/doc/local-authority/00CC,BarnsleyMBC,23/09/2022,5200076983,515,REED SPECIALIST RECRUITMENT LTD,502689,BH,Basic pay - Agency Fees,104001
http://statistics.data.gov.uk/doc/local-authority/00CC,BarnsleyMBC,28/09/2022,5200076999,747.62,REED SPECIALIST RECRUITMENT LTD,502689,BH,Basic pay - Agency Fees,104001
http://statistics.data.gov.uk/doc/local-authority/00CC,BarnsleyMBC,28/09/2022,5200077000,502.1,REED SPECIALIST RECRUITMENT LTD,502689,BH,Basic pay - Agency Fees,104001
http://statistics.data.gov.uk/doc/local-authority/00CC,BarnsleyMBC,28/09/2022,5200077007,618.11,REED SPECIALIST RECRUITMENT LTD,502689,BH,Basic pay - Agency Fees,104001
http://statistics.data.gov.uk/doc/local-authority/00CC,BarnsleyMBC,28/09/2022,5200077006,635.15,REED SPECIALIST RECRUITMENT LTD,502689,BH,Basic pay - Agency Fees,104001
http://statistics.data.gov.uk/doc/local-authority/00CC,BarnsleyMBC,28/09/2022,5200077005,669.47,REED SPECIALIST RECRUITMENT LTD,502689,BH,Basic pay - Agency Fees,104001
http://statistics.data.gov.uk/doc/local-authority/00CC,BarnsleyMBC,28/09/2022,5200077004,647.87,REED SPECIALIST RECRUITMENT LTD,502689,BH,Basic pay - Agency Fees,104001
http://statistics.data.gov.uk/doc/local-authority/00CC,BarnsleyMBC,28/09/2022,5200077001,502.1,REED SPECIALIST RECRUITMENT LTD,502689,BH,Basic pay - Agency Fees,104001
http://statistics.data.gov.uk/doc/local-authority/00CC,BarnsleyMBC,28/09/2022,5200077003,"1,660.02",REED SPECIALIST RECRUITMENT LTD,502689,BH,Basic pay - Agency Fees,104001
http://statistics.data.gov.uk/doc/local-authority/00CC,BarnsleyMBC,28/09/2022,5200077002,"1,482.78",REED SPECIALIST RECRUITMENT LTD,502689,BH,Basic pay - Agency Fees,104001
http://statistics.data.gov.uk/doc/local-authority/00CC,BarnsleyMBC,28/09/2022,5200076994,642.87,REED SPECIALIST RECRUITMENT LTD,502689,BH,Basic pay - Agency Fees,104001
http://statistics.data.gov.uk/doc/local-authority/00CC,BarnsleyMBC,28/09/2022,5200076992,889.33,REED SPECIALIST RECRUITMENT LTD,502689,BH,Basic pay - Agency Fees,104001
http://statistics.data.gov.uk/doc/local-authority/00CC,BarnsleyMBC,28/09/2022,5200077008,508.04,REED SPECIALIST RECRUITMENT LTD,502689,BH,Basic pay - Agency Fees,104001
http://statistics.data.gov.uk/doc/local-authority/00CC,BarnsleyMBC,28/09/2022,5200076997,660.03,REED SPECIALIST RECRUITMENT LTD,502689,BH,Basic pay - Agency Fees,104001
http://statistics.data.gov.uk/doc/local-authority/00CC,BarnsleyMBC,28/09/2022,5200076998,806.31,REED SPECIALIST RECRUITMENT LTD,502689,BH,Basic pay - Agency Fees,104001
http://statistics.data.gov.uk/doc/local-authority/00CC,BarnsleyMBC,28/09/2022,5200076996,838.97,REED SPECIALIST RECRUITMENT LTD,502689,BH,Basic pay - Agency Fees,104001
http://statistics.data.gov.uk/doc/local-authority/00CC,BarnsleyMBC,07/07/2022,5100325761,"4,609.61",SAFETY RAMPS UK LTD,551868,BH,Main contractor,506011
http://statistics.data.gov.uk/doc/local-authority/00CC,BarnsleyMBC,11/08/2022,5100326892,"1,020.00",SAFETY RAMPS UK LTD,551868,BH,Main contractor,506011
http://statistics.data.gov.uk/doc/local-authority/00CC,BarnsleyMBC,25/08/2022,5100327366,"1,782.00",SOCIAL WELFARE TRAINING LIMITED,529125,BH,Training Courses,112001
http://statistics.data.gov.uk/doc/local-authority/00CC,BarnsleyMBC,06/07/2022,5100325663,"3,166.67",SOUTH WEST YORKSHIRE PARTNERSHIP,524025,BH,Community Services,505045
http://statistics.data.gov.uk/doc/local-authority/00CC,BarnsleyMBC,06/07/2022,5100325664,"3,166.67",SOUTH WEST YORKSHIRE PARTNERSHIP,524025,BH,Community Services,505045
http://statistics.data.gov.uk/doc/local-authority/00CC,BarnsleyMBC,06/07/2022,5100325665,"3,166.67",SOUTH WEST YORKSHIRE PARTNERSHIP,524025,BH,Community Services,505045
http://statistics.data.gov.uk/doc/local-authority/00CC,BarnsleyMBC,23/08/2022,5100327259,"3,166.67",SOUTH WEST YORKSHIRE PARTNERSHIP,524025,BH,Community Services,505045
http://statistics.data.gov.uk/doc/local-authority/00CC,BarnsleyMBC,25/08/2022,5100327364,"3,166.67",SOUTH WEST YORKSHIRE PARTNERSHIP,524025,BH,Community Services,505045
http://statistics.data.gov.uk/doc/local-authority/00CC,BarnsleyMBC,22/09/2022,5100328059,"3,166.67",SOUTH WEST YORKSHIRE PARTNERSHIP,524025,BH,Community Services,505045
http://statistics.data.gov.uk/doc/local-authority/00CC,BarnsleyMBC,07/07/2022,1900025757,"2,854.60",SOUTH YORKSHIRE PENSIONS AUTHORITY,503030,BH,Non Stat Rechargeable Pensions,114005
http://statistics.data.gov.uk/doc/local-authority/00CC,BarnsleyMBC,05/08/2022,1900025758,"2,854.60",SOUTH YORKSHIRE PENSIONS AUTHORITY,503030,BH,Non Stat Rechargeable Pensions,114005
http://statistics.data.gov.uk/doc/local-authority/00CC,BarnsleyMBC,02/09/2022,1900025848,"2,854.60",SOUTH YORKSHIRE PENSIONS AUTHORITY,503030,BH,Non Stat Rechargeable Pensions,114005
http://statistics.data.gov.uk/doc/local-authority/00CC,BarnsleyMBC,14/09/2022,1900025979,"2,854.60",SOUTH YORKSHIRE PENSIONS AUTHORITY,503030,BH,Non Stat Rechargeable Pensions,114005
http://statistics.data.gov.uk/doc/local-authority/00CC,BarnsleyMBC,14/07/2022,5100326053,"16,675.51",STEVES STEELS ENGINEERING LTD,551066,BH,Main contractor,506011
http://statistics.data.gov.uk/doc/local-authority/00CC,BarnsleyMBC,21/09/2022,5100328119,"11,334.74",STEVES STEELS ENGINEERING LTD,551066,BH,Main contractor,506011
http://statistics.data.gov.uk/doc/local-authority/00CC,BarnsleyMBC,21/09/2022,5100328120,"13,033.57",STEVES STEELS ENGINEERING LTD,551066,BH,Main contractor,506011
http://statistics.data.gov.uk/doc/local-authority/00CC,BarnsleyMBC,01/07/2022,5100325514,"1,169.93",SYMPHONY GROUP PLC,513131,BH,Direct - Building Items,403013
http://statistics.data.gov.uk/doc/local-authority/00CC,BarnsleyMBC,01/07/2022,5100325513,732.07,SYMPHONY GROUP PLC,513131,BH,Direct - Building Items,403013
http://statistics.data.gov.uk/doc/local-authority/00CC,BarnsleyMBC,01/07/2022,5100325512,950.17,SYMPHONY GROUP PLC,513131,BH,Direct - Building Items,403013
http://statistics.data.gov.uk/doc/local-authority/00CC,BarnsleyMBC,26/07/2022,5100326214,831.44,SYMPHONY GROUP PLC,513131,BH,Direct - Building Items,403013
http://statistics.data.gov.uk/doc/local-authority/00CC,BarnsleyMBC,26/07/2022,5100326217,864.58,SYMPHONY GROUP PLC,513131,BH,Fixtures and Fittings - Purchase,220001
http://statistics.data.gov.uk/doc/local-authority/00CC,BarnsleyMBC,26/07/2022,5100326215,571.94,SYMPHONY GROUP PLC,513131,BH,Fixtures and Fittings - Purchase,220001
http://statistics.data.gov.uk/doc/local-authority/00CC,BarnsleyMBC,26/07/2022,5100326225,558.66,SYMPHONY GROUP PLC,513131,BH,Fixtures and Fittings - Purchase,220001
http://statistics.data.gov.uk/doc/local-authority/00CC,BarnsleyMBC,29/07/2022,5100326344,612.26,SYMPHONY GROUP PLC,513131,BH,Fixtures and Fittings - Purchase,220001
http://statistics.data.gov.uk/doc/local-authority/00CC,BarnsleyMBC,29/07/2022,5100326342,749.87,SYMPHONY GROUP PLC,513131,BH,Fixtures and Fittings - Purchase,220001
http://statistics.data.gov.uk/doc/local-authority/00CC,BarnsleyMBC,29/07/2022,5100326343,793.22,SYMPHONY GROUP PLC,513131,BH,Fixtures and Fittings - Purchase,220001
http://statistics.data.gov.uk/doc/local-authority/00CC,BarnsleyMBC,29/07/2022,5100326341,734.44,SYMPHONY GROUP PLC,513131,BH,Fixtures and Fittings - Purchase,220001
http://statistics.data.gov.uk/doc/local-authority/00CC,BarnsleyMBC,29/07/2022,5100326335,832.72,SYMPHONY GROUP PLC,513131,BH,Fixtures and Fittings - Purchase,220001
http://statistics.data.gov.uk/doc/local-authority/00CC,BarnsleyMBC,15/08/2022,5100327020,978.89,SYMPHONY GROUP PLC,513131,BH,Fixtures and Fittings - Purchase,220001
http://statistics.data.gov.uk/doc/local-authority/00CC,BarnsleyMBC,15/08/2022,5100327021,"1,054.36",SYMPHONY GROUP PLC,513131,BH,Fixtures and Fittings - Purchase,220001
http://statistics.data.gov.uk/doc/local-authority/00CC,BarnsleyMBC,19/08/2022,5100327091,816.48,SYMPHONY GROUP PLC,513131,BH,Fixtures and Fittings - Purchase,220001
http://statistics.data.gov.uk/doc/local-authority/00CC,BarnsleyMBC,19/08/2022,5100327102,"1,019.34",SYMPHONY GROUP PLC,513131,BH,Fixtures and Fittings - Purchase,220001
http://statistics.data.gov.uk/doc/local-authority/00CC,BarnsleyMBC,19/08/2022,5100327101,846.72,SYMPHONY GROUP PLC,513131,BH,Fixtures and Fittings - Purchase,220001
http://statistics.data.gov.uk/doc/local-authority/00CC,BarnsleyMBC,19/08/2022,5100327103,"1,180.50",SYMPHONY GROUP PLC,513131,BH,Fixtures and Fittings - Purchase,220001
http://statistics.data.gov.uk/doc/local-authority/00CC,BarnsleyMBC,26/08/2022,5100327248,"1,033.03",SYMPHONY GROUP PLC,513131,BH,Fixtures and Fittings - Purchase,220001
http://statistics.data.gov.uk/doc/local-authority/00CC,BarnsleyMBC,26/08/2022,5100327258,"1,093.00",SYMPHONY GROUP PLC,513131,BH,Fixtures and Fittings - Purchase,220001
http://statistics.data.gov.uk/doc/local-authority/00CC,BarnsleyMBC,26/08/2022,5100327246,"1,155.18",SYMPHONY GROUP PLC,513131,BH,Fixtures and Fittings - Purchase,220001
http://statistics.data.gov.uk/doc/local-authority/00CC,BarnsleyMBC,01/09/2022,5100327554,549.31,SYMPHONY GROUP PLC,513131,BH,Fixtures and Fittings - Purchase,220001
http://statistics.data.gov.uk/doc/local-authority/00CC,BarnsleyMBC,02/09/2022,5100327441,"1,184.20",SYMPHONY GROUP PLC,513131,BH,Fixtures and Fittings - Purchase,220001
http://statistics.data.gov.uk/doc/local-authority/00CC,BarnsleyMBC,02/09/2022,5100327434,739.02,SYMPHONY GROUP PLC,513131,BH,Fixtures and Fittings - Purchase,220001
http://statistics.data.gov.uk/doc/local-authority/00CC,BarnsleyMBC,02/09/2022,5100327633,"1,087.82",SYMPHONY GROUP PLC,513131,BH,Direct - Building Items,403013
http://statistics.data.gov.uk/doc/local-authority/00CC,BarnsleyMBC,02/09/2022,5100327444,647.51,SYMPHONY GROUP PLC,513131,BH,Fixtures and Fittings - Purchase,220001
http://statistics.data.gov.uk/doc/local-authority/00CC,BarnsleyMBC,02/09/2022,5100327443,948.28,SYMPHONY GROUP PLC,513131,BH,Fixtures and Fittings - Purchase,220001
http://statistics.data.gov.uk/doc/local-authority/00CC,BarnsleyMBC,06/09/2022,5100327667,843.31,SYMPHONY GROUP PLC,513131,BH,Fixtures and Fittings - Purchase,220001
http://statistics.data.gov.uk/doc/local-authority/00CC,BarnsleyMBC,06/09/2022,5100327666,"1,113.48",SYMPHONY GROUP PLC,513131,BH,Fixtures and Fittings - Purchase,220001
http://statistics.data.gov.uk/doc/local-authority/00CC,BarnsleyMBC,06/09/2022,5100327675,636.2,SYMPHONY GROUP PLC,513131,BH,Fixtures and Fittings - Purchase,220001
http://statistics.data.gov.uk/doc/local-authority/00CC,BarnsleyMBC,07/09/2022,5100327560,813.05,SYMPHONY GROUP PLC,513131,BH,Direct - Building Items,403013
http://statistics.data.gov.uk/doc/local-authority/00CC,BarnsleyMBC,09/09/2022,5100327681,772.22,SYMPHONY GROUP PLC,513131,BH,Fixtures and Fittings - Purchase,220001
http://statistics.data.gov.uk/doc/local-authority/00CC,BarnsleyMBC,16/09/2022,5100327878,772.84,SYMPHONY GROUP PLC,513131,BH,Fixtures and Fittings - Purchase,220001
http://statistics.data.gov.uk/doc/local-authority/00CC,BarnsleyMBC,16/09/2022,5100327893,676.86,SYMPHONY GROUP PLC,513131,BH,Fixtures and Fittings - Purchase,220001
http://statistics.data.gov.uk/doc/local-authority/00CC,BarnsleyMBC,29/09/2022,5100328215,861.62,SYMPHONY GROUP PLC,513131,BH,Fixtures and Fittings - Purchase,220001
http://statistics.data.gov.uk/doc/local-authority/00CC,BarnsleyMBC,29/09/2022,5100328214,850.98,SYMPHONY GROUP PLC,513131,BH,Fixtures and Fittings - Purchase,220001
http://statistics.data.gov.uk/doc/local-authority/00CC,BarnsleyMBC,30/09/2022,5100328433,561.83,SYMPHONY GROUP PLC,513131,BH,Fixtures and Fittings - Purchase,220001
http://statistics.data.gov.uk/doc/local-authority/00CC,BarnsleyMBC,30/09/2022,5100328434,"1,129.90",SYMPHONY GROUP PLC,513131,BH,Fixtures and Fittings - Purchase,220001
http://statistics.data.gov.uk/doc/local-authority/00CC,BarnsleyMBC,17/08/2022,5100326914,"12,000.00",SYSMAX LIMITED,540194,BH,Consultants Fees,424007
http://statistics.data.gov.uk/doc/local-authority/00CC,BarnsleyMBC,07/07/2022,5100325681,794.4,T K LYNSKEY EXCAVATIONS LTD,551826,BH,Waste & Recycling contract,506021
http://statistics.data.gov.uk/doc/local-authority/00CC,BarnsleyMBC,08/07/2022,5100325759,"12,441.30",T K LYNSKEY EXCAVATIONS LTD,551826,BH,Waste & Recycling contract,506021
http://statistics.data.gov.uk/doc/local-authority/00CC,BarnsleyMBC,08/07/2022,5100325760,"2,320.72",T K LYNSKEY EXCAVATIONS LTD,551826,BH,Waste & Recycling contract,506021
http://statistics.data.gov.uk/doc/local-authority/00CC,BarnsleyMBC,14/07/2022,5100326052,"4,826.40",T K LYNSKEY EXCAVATIONS LTD,551826,BH,Waste & Recycling contract,506021
http://statistics.data.gov.uk/doc/local-authority/00CC,BarnsleyMBC,22/07/2022,5100326261,"1,248.00",T K LYNSKEY EXCAVATIONS LTD,551826,BH,Plant hire,320002
http://statistics.data.gov.uk/doc/local-authority/00CC,BarnsleyMBC,22/07/2022,5100326260,"1,248.00",T K LYNSKEY EXCAVATIONS LTD,551826,BH,Plant hire,320002
http://statistics.data.gov.uk/doc/local-authority/00CC,BarnsleyMBC,22/07/2022,5100326259,"1,248.00",T K LYNSKEY EXCAVATIONS LTD,551826,BH,Plant hire,320002
http://statistics.data.gov.uk/doc/local-authority/00CC,BarnsleyMBC,08/08/2022,5100326648,"3,124.38",T K LYNSKEY EXCAVATIONS LTD,551826,BH,Waste & Recycling contract,506021
http://statistics.data.gov.uk/doc/local-authority/00CC,BarnsleyMBC,08/08/2022,5100326649,"11,631.30",T K LYNSKEY EXCAVATIONS LTD,551826,BH,Waste & Recycling contract,506021
http://statistics.data.gov.uk/doc/local-authority/00CC,BarnsleyMBC,11/08/2022,5100326893,"2,175.60",T K LYNSKEY EXCAVATIONS LTD,551826,BH,Waste & Recycling contract,506021
http://statistics.data.gov.uk/doc/local-authority/00CC,BarnsleyMBC,18/08/2022,5100327028,774,T K LYNSKEY EXCAVATIONS LTD,551826,BH,Waste & Recycling contract,506021
http://statistics.data.gov.uk/doc/local-authority/00CC,BarnsleyMBC,02/09/2022,5100327556,"1,751.70",T K LYNSKEY EXCAVATIONS LTD,551826,BH,Collection & Disposal Of Waste,424013
http://statistics.data.gov.uk/doc/local-authority/00CC,BarnsleyMBC,23/09/2022,5100328088,"2,283.31",T K LYNSKEY EXCAVATIONS LTD,551826,BH,Waste & Recycling contract,506021
http://statistics.data.gov.uk/doc/local-authority/00CC,BarnsleyMBC,23/09/2022,5100328087,"14,382.90",T K LYNSKEY EXCAVATIONS LTD,551826,BH,Waste & Recycling contract,506021
http://statistics.data.gov.uk/doc/local-authority/00CC,BarnsleyMBC,20/07/2022,5100324951,690,Talos360 Ltd,539169,BH,Recruitment - Advertising,113001
http://statistics.data.gov.uk/doc/local-authority/00CC,BarnsleyMBC,06/07/2022,5100325455,"2,118.00",Tetra Consulting Limited,533193,BH,Training Courses,112001
http://statistics.data.gov.uk/doc/local-authority/00CC,BarnsleyMBC,21/07/2022,5100326087,"3,294.00",THE KW ACADEMY,540073,BH,Other Training Providers,506001
http://statistics.data.gov.uk/doc/local-authority/00CC,BarnsleyMBC,21/07/2022,5100326088,"1,700.00",THE KW ACADEMY,540073,BH,Other Training Providers,506001
http://statistics.data.gov.uk/doc/local-authority/00CC,BarnsleyMBC,08/09/2022,5100327800,"1,782.00",Train Locksmiths Ltd,540301,BH,Training Courses,112001
http://statistics.data.gov.uk/doc/local-authority/00CC,BarnsleyMBC,08/09/2022,5100327799,"4,779.36",Train Locksmiths Ltd,540301,BH,Training Courses,112001
http://statistics.data.gov.uk/doc/local-authority/00CC,BarnsleyMBC,12/07/2022,5100325918,"20,594.12",UNITYDOORS- T/A BRITDOORS,536837,BH,Main contractor,506011
http://statistics.data.gov.uk/doc/local-authority/00CC,BarnsleyMBC,21/07/2022,5100326234,"2,649.65",UNITYDOORS- T/A BRITDOORS,536837,BH,Main contractor,506011
http://statistics.data.gov.uk/doc/local-authority/00CC,BarnsleyMBC,07/09/2022,5100327731,"1,536.00",UNITYDOORS- T/A BRITDOORS,536837,BH,Main contractor,506011
http://statistics.data.gov.uk/doc/local-authority/00CC,BarnsleyMBC,11/08/2022,5100326889,"1,513.08",VPS UK LTD,552272,BH,Main contractor,506011
http://statistics.data.gov.uk/doc/local-authority/00CC,BarnsleyMBC,21/09/2022,5100328086,"2,457.78",VPS UK LTD,552272,BH,Main contractor,506011
http://statistics.data.gov.uk/doc/local-authority/00CC,BarnsleyMBC,22/09/2022,5100328085,"19,270.36",VPS UK LTD,552272,BH,Main contractor,506011
http://statistics.data.gov.uk/doc/local-authority/00CC,BarnsleyMBC,18/08/2022,5100327133,500,Wellspring Academy Trust,534761,BH,Other Training Providers,506001
http://statistics.data.gov.uk/doc/local-authority/00CC,BarnsleyMBC,04/07/2022,5100325541,"7,200.00",WHITE ROSE SCHOOL OF,526239,BH,Other Training Providers,506001
http://statistics.data.gov.uk/doc/local-authority/00CC,BarnsleyMBC,07/07/2022,5100325776,"3,000.00",WHITE ROSE SCHOOL OF,526239,BH,Other Training Providers,506001
http://statistics.data.gov.uk/doc/local-authority/00CC,BarnsleyMBC,07/07/2022,5100325772,"6,000.00",WHITE ROSE SCHOOL OF,526239,BH,Other Training Providers,506001
http://statistics.data.gov.uk/doc/local-authority/00CC,BarnsleyMBC,18/07/2022,5100325912,"2,400.00",WHITE ROSE SCHOOL OF,526239,BH,Other Training Providers,506001
http://statistics.data.gov.uk/doc/local-authority/00CC,BarnsleyMBC,10/08/2022,5100326821,623.38,WILKES GROUP T/A,529868,BH,Equipment - Hire,400002
http://statistics.data.gov.uk/doc/local-authority/00CC,BarnsleyMBC,05/07/2022,5100325580,510.12,WOLSELEY UK LTD,510002,BH,,
http://statistics.data.gov.uk/doc/local-authority/00CC,BarnsleyMBC,12/08/2022,5100327003,615.04,WOLSELEY UK LTD,510002,BH,Direct - Building Items,403013
http://statistics.data.gov.uk/doc/local-authority/00CC,BarnsleyMBC,01/09/2022,5100327520,686.99,WOLSELEY UK LTD,510002,BH,,
http://statistics.data.gov.uk/doc/local-authority/00CC,BarnsleyMBC,07/09/2022,5100327740,"1,683.15",WOLSELEY UK LTD,510002,BH,,
http://statistics.data.gov.uk/doc/local-authority/00CC,BarnsleyMBC,04/08/2022,5100326666,516,Women in Social Housing,531928,BH,Training Courses,112001
http://statistics.data.gov.uk/doc/local-authority/00CC,BarnsleyMBC,09/09/2022,5100327849,839,WORTLEY HALL LTD,503587,BH,External Hire of Premises/Rooms,211001
http://statistics.data.gov.uk/doc/local-authority/00CC,BarnsleyMBC,09/09/2022,5100327850,-839,WORTLEY HALL LTD,503587,BH,External Hire of Premises/Rooms,211001
http://statistics.data.gov.uk/doc/local-authority/00CC,BarnsleyMBC,13/09/2022,5100327876,839,WORTLEY HALL LTD,503587,BH,External Hire of Premises/Rooms,211001
http://statistics.data.gov.uk/doc/local-authority/00CC,BarnsleyMBC,01/09/2022,5100327540,750,WYATT COACHES LTD,510334,BH,Public Transport,330001
http://statistics.data.gov.uk/doc/local-authority/00CC,BarnsleyMBC,17/08/2022,5100327113,"8,469.72",YORKS. PURCH. ORGANISATION,520546,BH,Furniture,404001
http://statistics.data.gov.uk/doc/local-authority/00CC,BarnsleyMBC,29/09/2022,5100328217,504.24,YORKS. PURCH. ORGANISATION,520546,BH,Stationery,422004
http://statistics.data.gov.uk/doc/local-authority/00CC,BarnsleyMBC,27/07/2022,5100326255,574.56,ZIP HEATERS (UK) LTD,509401,BH,Equipment - Repair and Maintenance,400003
